{"text_format":"1","workbook":"xlsx","n_sheets":15,"sheets":["Инструкция","Регистр получателей","Перечень услуг","Сиделки, Соц. раб","Отказ от услуг","Реестр","Справочник Поставщики","Справочник Услуги","Справочник Категории","Справочник формы обслуживания","Места предоставления услуг","Размер субсидии","Достижение результата","Акт","Акт сдачи-приемки"],"not_rendered":{"charts":0,"images":0,"macros":1,"external_links":1,"defined_names":38,"comments":0,"pivot_tables":0},"unopened":[],"bounds":{"document_bytes":16777216,"sheet_cells":100000,"rows_first":2000,"rows_last":500,"rows_between":2000,"halvings":0,"cell_chars":16384,"cell_head_chars":4096},"cells_cut":0,"cells_raw":0,"read":"whole","date_system":"1900"}

{"sheet":"Инструкция","index":0,"n_rows":99,"n_cols":3,"rows_kept":99,"cut":false,"hidden":false,"merged":[[0,0,0,2],[19,0,19,2],[29,0,29,2],[12,0,12,2],[13,0,13,2],[14,0,14,2],[15,0,15,2],[16,0,16,2],[17,0,17,2],[7,0,7,2],[8,0,8,2],[9,0,9,2],[10,0,10,2],[11,0,11,2],[1,0,1,2],[2,0,2,2],[6,0,6,2],[5,0,5,2],[85,0,85,2],[32,0,32,2],[3,0,3,2],[4,0,4,2]]}
["Рекомендации по заполнению файла данных"]
["Версия от 29.07.2024"]
["1. Добавлена возможность выбора новых категорий, услуги которым с 20.07.2024 предоставляются бесплатно."]
["Версия от 15.11.2023"]
["1. Добавлен лист \"Отказ от услуг\", где можно заполнить информацию об отказе получателя от получения конкретных услуг по договору. Серые поля заполняются автоматизированно."]
["Версия от 03.03.2023"]
["1. Внесены новые категории получателей социальных услуг согласно изменениям в 442-ФЗ"]
["Версия от 25.04.2022"]
["1. На лист \"Справочник услуги\" добавлен стобец \"Количество минут на оказание услуги по тех. регламенту\" для посчета времени обслуживания клиента сиделкой/социальным работником."]
["2. На лист \"Перечень услуг\" добавлено 2 столбца: \"Количество минут на оказание одной услуги по технологическому регламенту\" и \"Количество минут на оказание услуг\" - заполяются автоматизированно."]
["3. На лист \"Сиделки, Соц. раб\" добавлены столбцы: \"Количество оказанных услуг\", \"Количество минут обслуживания\", \"Количество часов обслуживания\". Все столбцы заполняются автоматизированно."]
["4. Добавлен лист \"Акт сдачи-приемки\". Имеется возможность распечатать акт сдачи-приемки услуг с сиделкой. Туда подставляются количество оказанных услуги количество часов обслуживания."]
["Версия от 28.12.2021"]
["На листе \"Регистр получателей\" добавлено 2 поля: \"11.24 Место фактического предоставления социальных услуг\", \"11.25 Социальный работник/сиделка, предоставляющий социальные услуги на дому\". Обновлена форма реестра. На лист \"Перечень услуг\" добавлено поле \"11.35 Социальный работник/сиделка\", который выбирается из справочника на листе \"Сиделки, Соц. раб.\". На листе \"Сиделки, соц. раб.\" заполняете поля \"ФИО социального работника/сиделки\", \"Дата рождения социального работника/сиделки\", \"СНИЛС социального работника/сиделки\". Поле \"Полная информация о социальном работнике/сиделке\" заполняется автоматизированно."]
["Заполнение поля \"11.24 Место фактического предоставления социальных услуг\" на листе Регистр получателей: реализован множественный выбор из справочника с листа \"Места предоставления услуг\". Справочник заполнен по данным из реестра поставщиков социальных услуг. Для выбора двух адресов в случае предоставления услуг по разным площадкам необходимо сначала выбрать один адрес, а потом второй, в ячейке появится объединенная информация с первым и вторым выбранными адресами."]
["Заполнение поля \"11.36 Место предоставления социальных услуг\" на листе Перечень услуг: реализован выбор из справочника с листа \"Места предоставления услуг\". Справочник заполнен по данным из реестра поставщиков социальных услуг. На листе Перечень услуг адрес места предоставления необходимо заполнять в случае, если адресов предоставления услуг больше одного. Необходимо указать какие услуги на каком адресе предоставлялись."]
["Адрес места предоставления заполняется только для форм социального обслуживания: стационар и полустационар. Для формы обслуживания на дому будет производиться анализ введенного адреса места жительства."]
["28.12.2021 На лист \"Регистр получателей\" добавлено 2 поля: \"11.26 Дата начала приостановки обслуживания по акту\" и \"11.27 Дата окончания приостановки обслуживания по акту\". Заполняется, если гражданин поменял форму обслуживания за период по акту, но договор с ним не расторгнут и обсуживание будет продолжено позднее."]
[]
["Внимание! Для обеспечения проверки при вводе в файле настроены связи между листами, а также подстановка наименований и тарифов из справочников.\nЗаполнять файл необходимо построчно, путем выбора из справочника.\nКопирование и вставка строк целиком приведет к удалению ссылок и ошибке загрузки данных.\n\n"]
[]
["Лист «Регистр получателей» - заполняются все поля."]
["Лист «Перечень услуг» - заполняются поля, отмеченные зелёным. Остальные поля – вычисляются автоматически. Первый столбец – ссылка на лист «Регистр получателей»."]
["Заполнение перечня услуг начинается строго с первого столбца, в этом случае подключаются все справочники (тарифы, наименования)."]
["Лист «Сиделки, Соц. раб» - заполняются цветные поля, серые поля заполняются автоматизированно."]
["Лист «Отказ от услуг» - заполняются цветные поля, серые поля заполняются автоматизированно."]
["Лист «Реестр» - таблица заполняется автоматически"]
["Лист «Размер субсидии» - поля 1, 2 заполняются из файла «Форма предоставления ежемесячной субсидии», если файла нет, то поля можно заполнить вручную. Остальные поля вычисляются автоматически"]
[]
["Состав передаваемых данных для включения в регистр получателей социальных услуг"]
[]
["Наименование поля файла данных","Обязательные к заполнению поля при первичной подаче сведений для включения клиента в регистр получателей","Обязательные к заполнению поля при последующей передаче сведений об оказанных услугах"]
["Регистр получателей"]
["1. Регистрационный номер учетной записи ","Устанавливается автоматически","Устанавливается автоматически"]
["2. Фамилия, имя, отчество"]
["2.1 Фамилия","да","да"]
["2.2 Имя","да","да"]
["2.3 Отчество","да","да"]
["3. Дата рождения","да","да"]
["4. Пол","да","да"]
["5. Адрес (место жительства), контактный телефон "]
["5.1 Индекс","да","да"]
["5.2 Город","да","да"]
["5.3 Улица","да","да"]
["5.4 Дом","да","да"]
["5.5 Корпус","да","да"]
["5.6 Квартира","да","да"]
["5.7 Контактный телефон","да","да"]
["6. Страховой номер индивидуального лицевого счета","да","да"]
["7. Серия, номер паспорта или данные иного документа, удостоверяющего личность, дата выдачи этих документов и наименование выдавшего их органа"]
["7.1 Серия","да","да"]
["7.2 Номер","да","да"]
["7.3 Дата выдачи","да","да"]
["7.4 Наименование выдавшего органа","да","да"]
["8. Дата обращения с просьбой о предоставлении социальных услуг","да","да"]
["9. Дата оформления и номер индивидуальной программы"]
["9.1 Дата оформления","да","да"]
["9.2 Номер  ИППСУ","Уникальный электронный номер ИППСУ, присвоенный в подсистеме ПУКДССО","да"]
["9.3 Дата начала действия ИППСУ","да","да"]
["9.4 Дата окончания действия ИППСУ","да","да"]
["10. Наименование поставщика или наименования поставщиков социальных услуг, реализующих индивидуальную программу","По реестру поставщиков социальных услуг","да"]
["11. Перечень социальных услуг, предоставленных и предоставляемых получателю социальных услуг в соответствии с заключенным договором о предоставлении социальных услуг с указанием тарифов, стоимости социальных услуг для получателя социальных услуг, источников финансирования, периодичности и результатов их предоставления"]
["11.1 № договора","да","да"]
["11.2 Дата заключения договора","да","да"]
["11.3 Дата начала оказания услуг по договору","да","да"]
["11.4 Дата окончания оказания услуг по договору","да","да"]
["11.5 Форма обслуживания по договору","да","да"]
["11.6 Номер акта о предоставлении социальных услуг по договору",null,"да"]
["11.7 Дата акта о предоставлении социальных услуг",null,"да"]
["11.8 Дата начала периода оказания услуг, указанных в акте",null,"да"]
["11.9 Дата окончания периода оказания услуг, указанных в акте",null,"да"]
["11.10 Количество дней оказания услуг",null,"да"]
["11.11 № справки-расчета",null,"да"]
["11.12 Количество услуг, предоставленных бесплатно",null,"да"]
["11.13 Количество услуг, предоставленных за плату или частичную плату",null,"да"]
["11.14 Стоимость оказанных услуг по тарифу, руб.",null,"Вычисляется автоматически"]
["11.15 Стоимость оказанных услуг по нормативу, руб.",null,"Вычисляется автоматически"]
["11.16 Среднедушевой доход получателя, руб.",null,"да (только в случае взымания платы с клиента)"]
["11.17 Величина прожиточного минимума для расчета размера платы за предоставленные услуги, руб. ",null,"да (только в случае взымания платы с клиента)"]
["11.18 Размер платы за предоставленные  социальные услуги из расчета 75%  от среднедушевого дохода, руб.",null,"да (только в случае взымания платы с клиента)"]
["11.19 Категория получателя услуг, указанная в п.2, ст. 7 Закона Санкт-Петербурга №717-135; инвалиды ВОВ",null,"да"]
["11.20 Процент оплаты услуг в %",null,"да (только в случае взымания платы с клиента)"]
["11.21 Размер платы клиента за отчетный период по акту, руб.",null,"да (только в случае взымания платы с клиента)"]
["11.22 Размер возмещения поставщику стоимости предоставленных услуг за отчетный период по акту, руб.",null,"Вычисляется автоматически"]
["11.23 Дата расторжения договора",null,"Заполняется в случае досрочного расторжения договора"]
["Перечень услуг"]
["11.23 Код услуги","Вычисляется автоматически","Вычисляется автоматически"]
["11.24 Наименование услуги","да","да"]
["11.25 Вид услуги","Вычисляется автоматически","Вычисляется автоматически"]
["11.26 Кол-во предоставленных услуг за период",null,"да"]
["11.27 Общее предельное количество назначенных услуг, указанное в ИППСУ","да"]
["11.28 Тариф на социальную услугу, руб.",null,"Вычисляется автоматически"]
["11.29 Ед.изм.тарифа",null,"Вычисляется автоматически"]
["11.30 Стоимость предоставленных услуг по тарифу для расчета взымания платы с клиента, руб.",null,"Вычисляется автоматически"]
["11.31 Наименование подушевого норматива финансирования социальной услуги",null,"Вычисляется автоматически"]
["11.32 Подушевой норматив финансирования социальной услуги, руб.",null,"Вычисляется автоматически"]
["11.33 Единица измерения норматива ",null,"Вычисляется автоматически"]
["11.34 Стоимость предоставленных услуг по нормативу для расчета возмещения поставщику, руб.",null,"Вычисляется автоматически"]
["11.35 Причина отказа"]

{"sheet":"Регистр получателей","index":1,"n_rows":3,"n_cols":49,"rows_kept":3,"cut":false,"hidden":false,"merged":[]}
["1. Регистрационный номер учетной записи ","2.1 Фамилия","2.2 Имя","2.3 Отчество","3. Дата рождения","4. Пол","5.1 Адрес места жительства","5.2 Адрес места пребывания","5.3 Контактный телефон","6. Страховой номер индивидуального лицевого счета","7.1 Серия","7.2 Номер","7.3 Дата выдачи","7.4 Наименование выдавшего органа","8. Дата обращения с просьбой о предоставлении социальных услуг","9.1 Дата оформления (указывается дата составления ИППСУ)","9.2 Номер  ИИПСУ","9.3 Дата начала действия ИППСУ (указывается дата составления ИППСУ)","9.4 Дата окончания действия ИППСУ","10.0 Регистрационный номер поставщика по реестру поставщиков","10. Наименование поставщика или наименования поставщиков социальных услуг, реализующих индивидуальную программу","11.1 № договора","11.2 Дата заключения договора","11.3 Дата начала оказания услуг по договору","11.4 Дата окончания оказания услуг по договору","11.5 Форма обслуживания по договору","11.6 Номер акта о предоставлении социальных услуг по договору","11.7 Дата акта о предоставлении социальных услуг","11.8 Дата начала периода оказания услуг, указанных в акте","11.9 Дата окончания периода оказания услуг, указанных в акте","11.10 Количество дней оказания услуг","11.11 № справки-расчета","11.12 Количество услуг, предоставленных бесплатно","11.13 Количество услуг, предоставленных за плату или частичную плату","11.14 Стоимость оказанных услуг по тарифу, руб.","11.15 Стоимость оказанных услуг по нормативу, руб.","11.16 Среднедушевой доход получателя","11.17 Величина прожиточного минимума для расчета размера платы за предоставленные услуги, руб. ","11.18 Размер платы за предоставленные  социальные услуги из расчета 75%  от среднедушевого дохода, руб.","11.19 Категория получателя услуг, указанная в п.2, ст. 7 Закона Санкт-Петербурга №717-135; инвалиды ВОВ","11.20 Процент оплаты услуг в %","11.21 Размер платы клиента за отчетный период по акту, руб.","11.22 Размер возмещения поставщику стоимости предоставленных услуг за отчетный период по акту, руб.","11.23 Дата расторжения договора","Служебный_1","11.24 Место фактического предоставления социальных услуг","11.25 Социальный работник/сиделка, предоставляющий социальные услуги на дому","11.26 Дата начала приостановки обслуживания по акту","11.27 Дата окончания приостановки обслуживания по акту"]
[{"$f":"IF(LEN(B2)>1,ROW(B2)-ROW(B$1),\"\")","v":1},"Абрамова","Мария","Александровна","1930-05-06",null,null,null,null,null,null,null,null,null,"2020-06-05","2020-06-11",111111,"2020-06-11","2023-06-11",null,"Общество с ограниченной ответственностью «Гармония»","66/3","2020-06-13","2020-06-13","2021-06-12","Cоциальное обслуживание на дому",null,null,null,null,null,null,null,null,{"$f":"ROUND(SUMIF(ПереченьУслуг[1. Регистрационный номер учетной записи],A2,ПереченьУслуг[11.30 Стоимость предоставленных услуг по тарифу для расчета взымания платы с клиента, руб.]), 2)","v":0},{"$f":"ROUND(SUMIF(ПереченьУслуг[1. Регистрационный номер учетной записи],A2,ПереченьУслуг[11.34 Стоимость предоставленных услуг по нормативу для расчета возмещения поставщику, руб.]), 2)","v":0},null,null,null,"Прочие",null,null,{"$f":"ROUND(РегистрПолучателей[[#This Row],[11.15 Стоимость оказанных услуг по нормативу, руб.]]-РегистрПолучателей[[#This Row],[11.21 Размер платы клиента за отчетный период по акту, руб.]], 2)","v":0},null,{"$f":"CONCATENATE(РегистрПолучателей[[#This Row],[2.1 Фамилия]],РегистрПолучателей[[#This Row],[2.2 Имя]],РегистрПолучателей[[#This Row],[2.3 Отчество]],TEXT(РегистрПолучателей[[#This Row],[3. Дата рождения]],\"ДД.ММ.ГГГГ\"))","v":"АбрамоваМарияАлександровна06.05.1930"}]
["↑ Устанавливается автоматически","↑ Начните заполнение таблицы с этого поля. При необходимости вставьте дополнительные строки",null,null,null,null,null,null,null,null,null,null,null,null,null,null,null,null,null,"↑ Устанавливается автоматически на основании поля \"10. Наименование поставщика\"","↑ Выберите поставщика из выпадающего списка",null,null,null,null,null,null,null,null,null,null,null,null,null,"↑ Вычисляется автоматически по листу Перечень услуг","↑ Вычисляется автоматически по листу Перечень услуг",null,null,null,null,null,null,"↑ Вычисляется автоматически"]

{"sheet":"Перечень услуг","index":2,"n_rows":3,"n_cols":28,"rows_kept":3,"cut":false,"hidden":false,"merged":[]}
["1. Регистрационный номер учетной записи","Дата акта о предоставлении социальных услуг","Дата начала периода оказания услуг, указанных в акте","Дата окончания периода оказания услуг, указанных в акте","2.1 Фамилия","2.1 Имя","2.2 Отчество","3. Дата рождения","9.1 Дата оформления","9.2 Номер  ИИПСУ","11.23 Код услуги","11.24 Наименование услуги","11.5 Форма обслуживания по договору","11.25 Вид услуги","11.26 Кол-во предоставленных услуг за период","11.27 Общее предельное количество назначенных услуг, указанное в ИППСУ","11.28 Тариф на социальную услугу, руб.","11.29 Ед.изм.тарифа","11.30 Стоимость предоставленных услуг по тарифу для расчета взымания платы с клиента, руб.","11.31 Наименование подушевого  норматива финансирования социальной услуги","11.32 Подушевой норматив финансирования социальной услуги, руб.","11.33 Единица измерения норматива ","11.34 Стоимость предоставленных услуг по нормативу для расчета возмещения поставщику, руб.","11.35 Социальный работник/сиделка","11.35 Причина отказа","11.36 Место предоставления социальных услуг","Количество минут на оказание одной услуги по технологическому регламенту","Количество минут на оказание услуг"]
[null,{"$f":"VLOOKUP(ПереченьУслуг[[#This Row],[1. Регистрационный номер учетной записи]],РегистрПолучателей[],28,0)","v":{"$error":"#N/A"}},{"$f":"VLOOKUP(ПереченьУслуг[[#This Row],[1. Регистрационный номер учетной записи]],РегистрПолучателей[],29,0)","v":{"$error":"#N/A"}},{"$f":"VLOOKUP(ПереченьУслуг[[#This Row],[1. Регистрационный номер учетной записи]],РегистрПолучателей[],30,0)","v":{"$error":"#N/A"}},{"$f":"VLOOKUP(ПереченьУслуг[[#This Row],[1. Регистрационный номер учетной записи]],РегистрПолучателей[],2,0)","v":{"$error":"#N/A"}},{"$f":"VLOOKUP(ПереченьУслуг[[#This Row],[1. Регистрационный номер учетной записи]],РегистрПолучателей[],3,0)","v":{"$error":"#N/A"}},{"$f":"VLOOKUP(ПереченьУслуг[[#This Row],[1. Регистрационный номер учетной записи]],РегистрПолучателей[],4,0)","v":{"$error":"#N/A"}},{"$f":"VLOOKUP(ПереченьУслуг[[#This Row],[1. Регистрационный номер учетной записи]],РегистрПолучателей[],5,0)","v":{"$error":"#N/A"}},{"$f":"VLOOKUP(ПереченьУслуг[[#This Row],[1. Регистрационный номер учетной записи]],РегистрПолучателей[],16,0)","v":{"$error":"#N/A"}},{"$f":"VLOOKUP(ПереченьУслуг[[#This Row],[1. Регистрационный номер учетной записи]],РегистрПолучателей[],17,0)","v":{"$error":"#N/A"}},{"$f":"VLOOKUP(LEFT(ПереченьУслуг[[#This Row],[11.24 Наименование услуги]],255),LEFT(СправочникУслуги[],255),2,0)","v":"1.1.1"},"1.1.1 Покупка за счет средств получателя социальных услуг и доставка на дом продуктов питания, промышленных товаров первой необходимости, средств санитарии и гигиены, средств ухода",{"$f":"VLOOKUP(LEFT(ПереченьУслуг[[#This Row],[11.24 Наименование услуги]],255),LEFT(СправочникУслуги[],255),6,0)","v":"Cоциальное обслуживание на дому"},{"$f":"VLOOKUP(LEFT(ПереченьУслуг[[#This Row],[11.24 Наименование услуги]],255),LEFT(СправочникУслуги[],255),4,0)","v":"Социально-бытовые"},12,156,{"$f":"VLOOKUP(LEFT(ПереченьУслуг[[#This Row],[11.24 Наименование услуги]],255),LEFT(СправочникУслуги[],255),7,0)","v":"381,64"},{"$f":"VLOOKUP(LEFT(ПереченьУслуг[[#This Row],[11.24 Наименование услуги]],255),LEFT(СправочникУслуги[],255),8,0)","v":"руб. за услугу"},{"$f":"ПереченьУслуг[[#This Row],[11.26 Кол-во предоставленных услуг за период]]*ПереченьУслуг[[#This Row],[11.28 Тариф на социальную услугу, руб.]]","v":4579.68},{"$f":"VLOOKUP(LEFT(ПереченьУслуг[[#This Row],[11.24 Наименование услуги]],255),LEFT(СправочникУслуги[],255),9,0)","v":""},{"$f":"VLOOKUP(LEFT(ПереченьУслуг[[#This Row],[11.24 Наименование услуги]],255),LEFT(СправочникУслуги[],255),10,0)","v":"363,47"},{"$f":"VLOOKUP(LEFT(ПереченьУслуг[[#This Row],[11.24 Наименование услуги]],255),LEFT(СправочникУслуги[],255),11,0)","v":"руб. за услугу"},{"$f":"ПереченьУслуг[[#This Row],[11.26 Кол-во предоставленных услуг за период]]*ПереченьУслуг[[#This Row],[11.32 Подушевой норматив финансирования социальной услуги, руб.]]","v":4361.6400000000003},null,null,null,{"$f":"VLOOKUP(LEFT(ПереченьУслуг[[#This Row],[11.24 Наименование услуги]],255),LEFT(СправочникУслуги[],255),12,0)","v":"40"},{"$f":"ПереченьУслуг[[#This Row],[Количество минут на оказание одной услуги по технологическому регламенту]]*ПереченьУслуг[[#This Row],[11.26 Кол-во предоставленных услуг за период]]","v":480}]
["↑ Начните заполнение таблицы с этого поля. Укажите номер записи по листу Регистр получателей. При необходимости вставьте дополнительные строки",null,null,null,"↑ ФИО подставится автоматически",null,null,null,null,null,null,"↑ Выберите услугу из выпадающего списка",null,null,"↑ Кол-во услуг"]

{"sheet":"Сиделки, Соц. раб","index":3,"n_rows":2,"n_cols":7,"rows_kept":2,"cut":false,"hidden":false,"merged":[]}
["Полная информация о социальном работнике/сиделке","ФИО социального работника/сиделки","Дата рождения социального работника/сиделки","СНИЛС социального работника/сиделки","Количество оказанных услуг","Количество минут обслуживания","Количество часов обслуживания"]
[{"$f":"CONCATENATE(B2,\", \",TEXT(C2,\"ДД.ММ.ГГГГ\"),\", \",D2)","v":", 00.01.1900, "},null,null,null,{"$f":"ROUND(SUMIF(ПереченьУслуг[11.35 Социальный работник/сиделка],СправочникУслуги8[Полная информация о социальном работнике/сиделке],ПереченьУслуг[11.26 Кол-во предоставленных услуг за период]), 2)","v":0},{"$f":"ROUND(SUMIF(ПереченьУслуг[11.35 Социальный работник/сиделка],СправочникУслуги8[Полная информация о социальном работнике/сиделке],ПереченьУслуг[Количество минут на оказание услуг]), 2)","v":0},{"$f":"ROUND(СправочникУслуги8[Количество минут обслуживания]/60,2)","v":0}]

{"sheet":"Отказ от услуг","index":4,"n_rows":3,"n_cols":13,"rows_kept":3,"cut":false,"hidden":false,"merged":[]}
["1. Регистрационный номер учетной записи","2.1 Фамилия","2.1 Имя","2.2 Отчество","3. Дата рождения","9.2 Номер  ИИПСУ","Дата отказа","Код услуги","Наименование услуги","Вид услуги","Кол-во отказанных услуг","Причина отказа","Дата отмены отказа"]
[null,{"$f":"VLOOKUP(ПереченьУслуг10[[#This Row],[1. Регистрационный номер учетной записи]],РегистрПолучателей[],2,0)","v":{"$error":"#N/A"}},{"$f":"VLOOKUP(ПереченьУслуг10[[#This Row],[1. Регистрационный номер учетной записи]],РегистрПолучателей[],3,0)","v":{"$error":"#N/A"}},{"$f":"VLOOKUP(ПереченьУслуг10[[#This Row],[1. Регистрационный номер учетной записи]],РегистрПолучателей[],4,0)","v":{"$error":"#N/A"}},{"$f":"VLOOKUP(ПереченьУслуг10[[#This Row],[1. Регистрационный номер учетной записи]],РегистрПолучателей[],5,0)","v":{"$error":"#N/A"}},{"$f":"VLOOKUP(ПереченьУслуг10[[#This Row],[1. Регистрационный номер учетной записи]],РегистрПолучателей[],17,0)","v":{"$error":"#N/A"}},null,{"$f":"VLOOKUP(LEFT(ПереченьУслуг10[[#This Row],[Наименование услуги]],255),LEFT(СправочникУслуги[],255),2,0)","v":"1.1.1"},"1.1.1 Покупка за счет средств получателя социальных услуг и доставка на дом продуктов питания, промышленных товаров первой необходимости, средств санитарии и гигиены, средств ухода",{"$f":"VLOOKUP(LEFT(ПереченьУслуг10[[#This Row],[Наименование услуги]],255),LEFT(СправочникУслуги[],255),4,0)","v":"Социально-бытовые"},12]
["↑ Начните заполнение таблицы с этого поля. Укажите номер записи по листу Регистр получателей. При необходимости вставьте дополнительные строки","↑ ФИО подставится автоматически",null,null,null,null,null,null,"↑ Выберите услугу из выпадающего списка",null,"↑ Кол-во отказанных услуг"]

{"sheet":"Реестр","index":5,"n_rows":37,"n_cols":22,"rows_kept":37,"cut":false,"hidden":false,"merged":[[10,20,11,20],[10,21,11,21],[2,4,2,13],[4,1,4,19],[3,4,3,13],[7,1,7,19],[8,14,8,18],[8,19,8,20],[10,18,11,18],[5,4,5,13],[6,4,6,13],[10,9,10,11],[10,4,10,5],[8,4,8,13],[10,12,10,15],[35,3,35,6],[10,17,11,17],[26,6,26,7],[10,16,11,16],[10,19,11,19],[28,0,28,7],[36,3,36,6],[24,3,24,7],[10,3,11,3],[10,6,10,8],[20,0,20,4],[23,0,23,11],[10,0,11,0],[10,1,11,1],[26,0,26,4],[10,2,11,2],[36,1,36,2],[32,0,32,4],[33,0,33,4],[33,6,33,7],[30,0,30,4],[35,1,35,2]]}
[]
[]
[null,null,null,null,"Реестр  от __________ № ______"]
[null,null,null,null,"получателей социальных услуг Санкт-Петербурга"]
[null,{"$f":"CONCATENATE(\"в \",VLOOKUP(A14,РегистрПолучателей[],21,0))","v":"в Общество с ограниченной ответственностью «Гармония»"}]
[null,null,null,null,"(наименование поставщика социальных услуг)"]
[null,null,null,null,"  за период с ______________ 20______  по ______________ 20______ года"]
[null,"по форме социального обслуживания"]
[null,null,null,null,"Форма социального обслуживания на дому; полустационарная форма социального обслуживания (до четырех часов, свыше четырех часов); стационарная форма социального обслуживания (временное, постоянное, пятидневное проживание)",null,null,null,null,null,null,null,null,null," ",null,null,null,null,"\"______\"______20________"]
[]
["№ п/п","Фамилия, имя, отчетство получателя социальных услуг","Документ, удостоверяющий личность получателя социальных услуг, серия, номер","Дата рождения получателя социальных услуг","Адрес получателя социальных услуг",null,"ИППСУ ",null,null,"Договор",null,null,"Предоставление услуг ",null,null,null,"Дата и номер  акта о предоставлении социальных услуг","Количество оказанных социальных услуг","Стоимость оказанных услуг  из расчета подушевого норматива финансирования, руб.","Размер ежемесячной субсидии поставщику социальных услуг, руб.","Размер платы за счет средств получателя социальных услуг, руб.","Сведения о социальном работнике/сиделке, предоставляющем социальные услуги на дому*"]
[null,null,null,null,"Адрес места жительства получателя социальных услуг","Адерс места пребывания получателя социальных услуг","№","Дата составления","Срок действия с \"__\"___20__ по \"__\"___20__","№","Дата","Срок действия с \"__\"___20__ по \"__\"___20__","Дата начала предоставления","Дата окончания предоставления","Количество дней предоставления","Место фактического предоставления социальных услуг"]
[1,2,3,4,5,6,7,8,9,10,11,12,13,14,15,16,17,18,19,20,21,22]
[1,{"$f":"CONCATENATE(VLOOKUP(A14,РегистрПолучателей[],2,0),\" \",VLOOKUP(A14,РегистрПолучателей[],3,0),\" \",VLOOKUP(A14,РегистрПолучателей[],4,0))","v":"Абрамова Мария Александровна"},{"$f":"CONCATENATE(VLOOKUP(A14,РегистрПолучателей[],11,0),\" \",VLOOKUP(A14,РегистрПолучателей[],12,0))","v":" "},{"$f":"TEXT(CONCATENATE(VLOOKUP(A14,РегистрПолучателей[],5,0)),\"дд.ММ.гггг\")","v":"06.05.1930"},{"$f":"CONCATENATE(VLOOKUP(A14,РегистрПолучателей[],7,0))","v":""},{"$f":"CONCATENATE(VLOOKUP(A14,РегистрПолучателей[],8,0))","v":""},{"$f":"CONCATENATE(VLOOKUP(A14,РегистрПолучателей[],17,0))","v":"111111"},{"$f":"TEXT(VLOOKUP(A14,РегистрПолучателей[],16,0),\"дд.ММ.гггг\")","v":"11.06.2020"},{"$f":"CONCATENATE(TEXT(VLOOKUP(A14,РегистрПолучателей[],18,0),\"дд.ММ.гггг\"),\"-\",TEXT(VLOOKUP(A14,РегистрПолучателей[],19,0),\"дд.ММ.гггг\"))","v":"11.06.2020-11.06.2023"},{"$f":"CONCATENATE(VLOOKUP(A14,РегистрПолучателей[],22,0))","v":"66/3"},{"$f":"TEXT(VLOOKUP(A14,РегистрПолучателей[],23,0),\"дд.ММ.гггг\")","v":"13.06.2020"},{"$f":"CONCATENATE(TEXT(VLOOKUP(A14,РегистрПолучателей[],24,0),\"дд.ММ.гггг\"),\"-\",TEXT(VLOOKUP(A14,РегистрПолучателей[],25,0),\"дд.ММ.гггг\"))","v":"13.06.2020-12.06.2021"},{"$f":"TEXT(VLOOKUP(A14,РегистрПолучателей[],29,0),\"дд.ММ.гггг\")","v":"00.01.1900"},{"$f":"TEXT(VLOOKUP(A14,РегистрПолучателей[],30,0),\"дд.ММ.гггг\")","v":"00.01.1900"},{"$f":"CONCATENATE(VLOOKUP(A14,РегистрПолучателей[],31,0))","v":""},{"$f":"IF(VLOOKUP(A14,РегистрПолучателей[],46,0)<>0,CONCATENATE(VLOOKUP(A14,РегистрПолучателей[],46,0)),F14)","v":""},{"$f":"CONCATENATE(VLOOKUP(A14,РегистрПолучателей[],27,0),\"от \",TEXT(VLOOKUP(A14,РегистрПолучателей[],28,0),\"дд.ММ.гггг\"))","v":"от 00.01.1900"},{"$f":"VLOOKUP(A14,РегистрПолучателей[],33,0)+VLOOKUP(A14,РегистрПолучателей[],34,0)","v":0},{"$f":"CONCATENATE(VLOOKUP(A14,РегистрПолучателей[],36,0))","v":"0"},{"$f":"CONCATENATE(VLOOKUP(A14,РегистрПолучателей[],43,0))","v":"0"},{"$f":"CONCATENATE(VLOOKUP(A14,РегистрПолучателей[],42,0))","v":""},{"$f":"CONCATENATE(VLOOKUP(A14,РегистрПолучателей[],47,0))","v":""}]
[2,{"$f":"CONCATENATE(VLOOKUP(A15,РегистрПолучателей[],2,0),\" \",VLOOKUP(A15,РегистрПолучателей[],3,0),\" \",VLOOKUP(A15,РегистрПолучателей[],4,0))","v":{"$error":"#N/A"}},{"$f":"CONCATENATE(VLOOKUP(A15,РегистрПолучателей[],11,0),\" \",VLOOKUP(A15,РегистрПолучателей[],12,0))","v":{"$error":"#N/A"}},{"$f":"TEXT(CONCATENATE(VLOOKUP(A15,РегистрПолучателей[],5,0)),\"дд.ММ.гггг\")","v":{"$error":"#N/A"}},{"$f":"CONCATENATE(VLOOKUP(A15,РегистрПолучателей[],7,0))","v":{"$error":"#N/A"}},{"$f":"CONCATENATE(VLOOKUP(A15,РегистрПолучателей[],8,0))","v":{"$error":"#N/A"}},{"$f":"CONCATENATE(VLOOKUP(A15,РегистрПолучателей[],17,0))","v":{"$error":"#N/A"}},{"$f":"TEXT(VLOOKUP(A15,РегистрПолучателей[],16,0),\"дд.ММ.гггг\")","v":{"$error":"#N/A"}},{"$f":"CONCATENATE(TEXT(VLOOKUP(A15,РегистрПолучателей[],18,0),\"дд.ММ.гггг\"),\"-\",TEXT(VLOOKUP(A15,РегистрПолучателей[],19,0),\"дд.ММ.гггг\"))","v":{"$error":"#N/A"}},{"$f":"CONCATENATE(VLOOKUP(A15,РегистрПолучателей[],22,0))","v":{"$error":"#N/A"}},{"$f":"TEXT(VLOOKUP(A15,РегистрПолучателей[],23,0),\"дд.ММ.гггг\")","v":{"$error":"#N/A"}},{"$f":"CONCATENATE(TEXT(VLOOKUP(A15,РегистрПолучателей[],24,0),\"дд.ММ.гггг\"),\"-\",TEXT(VLOOKUP(A15,РегистрПолучателей[],25,0),\"дд.ММ.гггг\"))","v":{"$error":"#N/A"}},{"$f":"TEXT(VLOOKUP(A15,РегистрПолучателей[],29,0),\"дд.ММ.гггг\")","v":{"$error":"#N/A"}},{"$f":"TEXT(VLOOKUP(A15,РегистрПолучателей[],30,0),\"дд.ММ.гггг\")","v":{"$error":"#N/A"}},{"$f":"CONCATENATE(VLOOKUP(A15,РегистрПолучателей[],31,0))","v":{"$error":"#N/A"}},{"$f":"IF(VLOOKUP(A15,РегистрПолучателей[],46,0)<>0,CONCATENATE(VLOOKUP(A15,РегистрПолучателей[],46,0)),F15)","v":{"$error":"#N/A"}},{"$f":"CONCATENATE(VLOOKUP(A15,РегистрПолучателей[],27,0),\"от \",TEXT(VLOOKUP(A15,РегистрПолучателей[],28,0),\"дд.ММ.гггг\"))","v":{"$error":"#N/A"}},{"$f":"VLOOKUP(A15,РегистрПолучателей[],33,0)+VLOOKUP(A15,РегистрПолучателей[],34,0)","v":{"$error":"#N/A"}},{"$f":"CONCATENATE(VLOOKUP(A15,РегистрПолучателей[],36,0))","v":{"$error":"#N/A"}},{"$f":"CONCATENATE(VLOOKUP(A15,РегистрПолучателей[],43,0))","v":{"$error":"#N/A"}},{"$f":"CONCATENATE(VLOOKUP(A15,РегистрПолучателей[],42,0))","v":{"$error":"#N/A"}},{"$f":"CONCATENATE(VLOOKUP(A15,РегистрПолучателей[],47,0))","v":{"$error":"#N/A"}}]
[3,{"$f":"CONCATENATE(VLOOKUP(A16,РегистрПолучателей[],2,0),\" \",VLOOKUP(A16,РегистрПолучателей[],3,0),\" \",VLOOKUP(A16,РегистрПолучателей[],4,0))","v":{"$error":"#N/A"}},{"$f":"CONCATENATE(VLOOKUP(A16,РегистрПолучателей[],11,0),\" \",VLOOKUP(A16,РегистрПолучателей[],12,0))","v":{"$error":"#N/A"}},{"$f":"TEXT(CONCATENATE(VLOOKUP(A16,РегистрПолучателей[],5,0)),\"дд.ММ.гггг\")","v":{"$error":"#N/A"}},{"$f":"CONCATENATE(VLOOKUP(A16,РегистрПолучателей[],7,0))","v":{"$error":"#N/A"}},{"$f":"CONCATENATE(VLOOKUP(A16,РегистрПолучателей[],8,0))","v":{"$error":"#N/A"}},{"$f":"CONCATENATE(VLOOKUP(A16,РегистрПолучателей[],17,0))","v":{"$error":"#N/A"}},{"$f":"TEXT(VLOOKUP(A16,РегистрПолучателей[],16,0),\"дд.ММ.гггг\")","v":{"$error":"#N/A"}},{"$f":"CONCATENATE(TEXT(VLOOKUP(A16,РегистрПолучателей[],18,0),\"дд.ММ.гггг\"),\"-\",TEXT(VLOOKUP(A16,РегистрПолучателей[],19,0),\"дд.ММ.гггг\"))","v":{"$error":"#N/A"}},{"$f":"CONCATENATE(VLOOKUP(A16,РегистрПолучателей[],22,0))","v":{"$error":"#N/A"}},{"$f":"TEXT(VLOOKUP(A16,РегистрПолучателей[],23,0),\"дд.ММ.гггг\")","v":{"$error":"#N/A"}},{"$f":"CONCATENATE(TEXT(VLOOKUP(A16,РегистрПолучателей[],24,0),\"дд.ММ.гггг\"),\"-\",TEXT(VLOOKUP(A16,РегистрПолучателей[],25,0),\"дд.ММ.гггг\"))","v":{"$error":"#N/A"}},{"$f":"TEXT(VLOOKUP(A16,РегистрПолучателей[],29,0),\"дд.ММ.гггг\")","v":{"$error":"#N/A"}},{"$f":"TEXT(VLOOKUP(A16,РегистрПолучателей[],30,0),\"дд.ММ.гггг\")","v":{"$error":"#N/A"}},{"$f":"CONCATENATE(VLOOKUP(A16,РегистрПолучателей[],31,0))","v":{"$error":"#N/A"}},{"$f":"IF(VLOOKUP(A16,РегистрПолучателей[],46,0)<>0,CONCATENATE(VLOOKUP(A16,РегистрПолучателей[],46,0)),F16)","v":{"$error":"#N/A"}},{"$f":"CONCATENATE(VLOOKUP(A16,РегистрПолучателей[],27,0),\"от \",TEXT(VLOOKUP(A16,РегистрПолучателей[],28,0),\"дд.ММ.гггг\"))","v":{"$error":"#N/A"}},{"$f":"VLOOKUP(A16,РегистрПолучателей[],33,0)+VLOOKUP(A16,РегистрПолучателей[],34,0)","v":{"$error":"#N/A"}},{"$f":"CONCATENATE(VLOOKUP(A16,РегистрПолучателей[],36,0))","v":{"$error":"#N/A"}},{"$f":"CONCATENATE(VLOOKUP(A16,РегистрПолучателей[],43,0))","v":{"$error":"#N/A"}},{"$f":"CONCATENATE(VLOOKUP(A16,РегистрПолучателей[],42,0))","v":{"$error":"#N/A"}},{"$f":"CONCATENATE(VLOOKUP(A16,РегистрПолучателей[],47,0))","v":{"$error":"#N/A"}}]
[4,{"$f":"CONCATENATE(VLOOKUP(A17,РегистрПолучателей[],2,0),\" \",VLOOKUP(A17,РегистрПолучателей[],3,0),\" \",VLOOKUP(A17,РегистрПолучателей[],4,0))","v":{"$error":"#N/A"}},{"$f":"CONCATENATE(VLOOKUP(A17,РегистрПолучателей[],11,0),\" \",VLOOKUP(A17,РегистрПолучателей[],12,0))","v":{"$error":"#N/A"}},{"$f":"TEXT(CONCATENATE(VLOOKUP(A17,РегистрПолучателей[],5,0)),\"дд.ММ.гггг\")","v":{"$error":"#N/A"}},{"$f":"CONCATENATE(VLOOKUP(A17,РегистрПолучателей[],7,0))","v":{"$error":"#N/A"}},{"$f":"CONCATENATE(VLOOKUP(A17,РегистрПолучателей[],8,0))","v":{"$error":"#N/A"}},{"$f":"CONCATENATE(VLOOKUP(A17,РегистрПолучателей[],17,0))","v":{"$error":"#N/A"}},{"$f":"TEXT(VLOOKUP(A17,РегистрПолучателей[],16,0),\"дд.ММ.гггг\")","v":{"$error":"#N/A"}},{"$f":"CONCATENATE(TEXT(VLOOKUP(A17,РегистрПолучателей[],18,0),\"дд.ММ.гггг\"),\"-\",TEXT(VLOOKUP(A17,РегистрПолучателей[],19,0),\"дд.ММ.гггг\"))","v":{"$error":"#N/A"}},{"$f":"CONCATENATE(VLOOKUP(A17,РегистрПолучателей[],22,0))","v":{"$error":"#N/A"}},{"$f":"TEXT(VLOOKUP(A17,РегистрПолучателей[],23,0),\"дд.ММ.гггг\")","v":{"$error":"#N/A"}},{"$f":"CONCATENATE(TEXT(VLOOKUP(A17,РегистрПолучателей[],24,0),\"дд.ММ.гггг\"),\"-\",TEXT(VLOOKUP(A17,РегистрПолучателей[],25,0),\"дд.ММ.гггг\"))","v":{"$error":"#N/A"}},{"$f":"TEXT(VLOOKUP(A17,РегистрПолучателей[],29,0),\"дд.ММ.гггг\")","v":{"$error":"#N/A"}},{"$f":"TEXT(VLOOKUP(A17,РегистрПолучателей[],30,0),\"дд.ММ.гггг\")","v":{"$error":"#N/A"}},{"$f":"CONCATENATE(VLOOKUP(A17,РегистрПолучателей[],31,0))","v":{"$error":"#N/A"}},{"$f":"IF(VLOOKUP(A17,РегистрПолучателей[],46,0)<>0,CONCATENATE(VLOOKUP(A17,РегистрПолучателей[],46,0)),F17)","v":{"$error":"#N/A"}},{"$f":"CONCATENATE(VLOOKUP(A17,РегистрПолучателей[],27,0),\"от \",TEXT(VLOOKUP(A17,РегистрПолучателей[],28,0),\"дд.ММ.гггг\"))","v":{"$error":"#N/A"}},{"$f":"VLOOKUP(A17,РегистрПолучателей[],33,0)+VLOOKUP(A17,РегистрПолучателей[],34,0)","v":{"$error":"#N/A"}},{"$f":"CONCATENATE(VLOOKUP(A17,РегистрПолучателей[],36,0))","v":{"$error":"#N/A"}},{"$f":"CONCATENATE(VLOOKUP(A17,РегистрПолучателей[],43,0))","v":{"$error":"#N/A"}},{"$f":"CONCATENATE(VLOOKUP(A17,РегистрПолучателей[],42,0))","v":{"$error":"#N/A"}},{"$f":"CONCATENATE(VLOOKUP(A17,РегистрПолучателей[],47,0))","v":{"$error":"#N/A"}}]
[5,{"$f":"CONCATENATE(VLOOKUP(A18,РегистрПолучателей[],2,0),\" \",VLOOKUP(A18,РегистрПолучателей[],3,0),\" \",VLOOKUP(A18,РегистрПолучателей[],4,0))","v":{"$error":"#N/A"}},{"$f":"CONCATENATE(VLOOKUP(A18,РегистрПолучателей[],11,0),\" \",VLOOKUP(A18,РегистрПолучателей[],12,0))","v":{"$error":"#N/A"}},{"$f":"TEXT(CONCATENATE(VLOOKUP(A18,РегистрПолучателей[],5,0)),\"дд.ММ.гггг\")","v":{"$error":"#N/A"}},{"$f":"CONCATENATE(VLOOKUP(A18,РегистрПолучателей[],7,0))","v":{"$error":"#N/A"}},{"$f":"CONCATENATE(VLOOKUP(A18,РегистрПолучателей[],8,0))","v":{"$error":"#N/A"}},{"$f":"CONCATENATE(VLOOKUP(A18,РегистрПолучателей[],17,0))","v":{"$error":"#N/A"}},{"$f":"TEXT(VLOOKUP(A18,РегистрПолучателей[],16,0),\"дд.ММ.гггг\")","v":{"$error":"#N/A"}},{"$f":"CONCATENATE(TEXT(VLOOKUP(A18,РегистрПолучателей[],18,0),\"дд.ММ.гггг\"),\"-\",TEXT(VLOOKUP(A18,РегистрПолучателей[],19,0),\"дд.ММ.гггг\"))","v":{"$error":"#N/A"}},{"$f":"CONCATENATE(VLOOKUP(A18,РегистрПолучателей[],22,0))","v":{"$error":"#N/A"}},{"$f":"TEXT(VLOOKUP(A18,РегистрПолучателей[],23,0),\"дд.ММ.гггг\")","v":{"$error":"#N/A"}},{"$f":"CONCATENATE(TEXT(VLOOKUP(A18,РегистрПолучателей[],24,0),\"дд.ММ.гггг\"),\"-\",TEXT(VLOOKUP(A18,РегистрПолучателей[],25,0),\"дд.ММ.гггг\"))","v":{"$error":"#N/A"}},{"$f":"TEXT(VLOOKUP(A18,РегистрПолучателей[],29,0),\"дд.ММ.гггг\")","v":{"$error":"#N/A"}},{"$f":"TEXT(VLOOKUP(A18,РегистрПолучателей[],30,0),\"дд.ММ.гггг\")","v":{"$error":"#N/A"}},{"$f":"CONCATENATE(VLOOKUP(A18,РегистрПолучателей[],31,0))","v":{"$error":"#N/A"}},{"$f":"IF(VLOOKUP(A18,РегистрПолучателей[],46,0)<>0,CONCATENATE(VLOOKUP(A18,РегистрПолучателей[],46,0)),F18)","v":{"$error":"#N/A"}},{"$f":"CONCATENATE(VLOOKUP(A18,РегистрПолучателей[],27,0),\"от \",TEXT(VLOOKUP(A18,РегистрПолучателей[],28,0),\"дд.ММ.гггг\"))","v":{"$error":"#N/A"}},{"$f":"VLOOKUP(A18,РегистрПолучателей[],33,0)+VLOOKUP(A18,РегистрПолучателей[],34,0)","v":{"$error":"#N/A"}},{"$f":"CONCATENATE(VLOOKUP(A18,РегистрПолучателей[],36,0))","v":{"$error":"#N/A"}},{"$f":"CONCATENATE(VLOOKUP(A18,РегистрПолучателей[],43,0))","v":{"$error":"#N/A"}},{"$f":"CONCATENATE(VLOOKUP(A18,РегистрПолучателей[],42,0))","v":{"$error":"#N/A"}},{"$f":"CONCATENATE(VLOOKUP(A18,РегистрПолучателей[],47,0))","v":{"$error":"#N/A"}}]
[6,{"$f":"CONCATENATE(VLOOKUP(A19,РегистрПолучателей[],2,0),\" \",VLOOKUP(A19,РегистрПолучателей[],3,0),\" \",VLOOKUP(A19,РегистрПолучателей[],4,0))","v":{"$error":"#N/A"}},{"$f":"CONCATENATE(VLOOKUP(A19,РегистрПолучателей[],11,0),\" \",VLOOKUP(A19,РегистрПолучателей[],12,0))","v":{"$error":"#N/A"}},{"$f":"TEXT(CONCATENATE(VLOOKUP(A19,РегистрПолучателей[],5,0)),\"дд.ММ.гггг\")","v":{"$error":"#N/A"}},{"$f":"CONCATENATE(VLOOKUP(A19,РегистрПолучателей[],7,0))","v":{"$error":"#N/A"}},{"$f":"CONCATENATE(VLOOKUP(A19,РегистрПолучателей[],8,0))","v":{"$error":"#N/A"}},{"$f":"CONCATENATE(VLOOKUP(A19,РегистрПолучателей[],17,0))","v":{"$error":"#N/A"}},{"$f":"TEXT(VLOOKUP(A19,РегистрПолучателей[],16,0),\"дд.ММ.гггг\")","v":{"$error":"#N/A"}},{"$f":"CONCATENATE(TEXT(VLOOKUP(A19,РегистрПолучателей[],18,0),\"дд.ММ.гггг\"),\"-\",TEXT(VLOOKUP(A19,РегистрПолучателей[],19,0),\"дд.ММ.гггг\"))","v":{"$error":"#N/A"}},{"$f":"CONCATENATE(VLOOKUP(A19,РегистрПолучателей[],22,0))","v":{"$error":"#N/A"}},{"$f":"TEXT(VLOOKUP(A19,РегистрПолучателей[],23,0),\"дд.ММ.гггг\")","v":{"$error":"#N/A"}},{"$f":"CONCATENATE(TEXT(VLOOKUP(A19,РегистрПолучателей[],24,0),\"дд.ММ.гггг\"),\"-\",TEXT(VLOOKUP(A19,РегистрПолучателей[],25,0),\"дд.ММ.гггг\"))","v":{"$error":"#N/A"}},{"$f":"TEXT(VLOOKUP(A19,РегистрПолучателей[],29,0),\"дд.ММ.гггг\")","v":{"$error":"#N/A"}},{"$f":"TEXT(VLOOKUP(A19,РегистрПолучателей[],30,0),\"дд.ММ.гггг\")","v":{"$error":"#N/A"}},{"$f":"CONCATENATE(VLOOKUP(A19,РегистрПолучателей[],31,0))","v":{"$error":"#N/A"}},{"$f":"IF(VLOOKUP(A19,РегистрПолучателей[],46,0)<>0,CONCATENATE(VLOOKUP(A19,РегистрПолучателей[],46,0)),F19)","v":{"$error":"#N/A"}},{"$f":"CONCATENATE(VLOOKUP(A19,РегистрПолучателей[],27,0),\"от \",TEXT(VLOOKUP(A19,РегистрПолучателей[],28,0),\"дд.ММ.гггг\"))","v":{"$error":"#N/A"}},{"$f":"VLOOKUP(A19,РегистрПолучателей[],33,0)+VLOOKUP(A19,РегистрПолучателей[],34,0)","v":{"$error":"#N/A"}},{"$f":"CONCATENATE(VLOOKUP(A19,РегистрПолучателей[],36,0))","v":{"$error":"#N/A"}},{"$f":"CONCATENATE(VLOOKUP(A19,РегистрПолучателей[],43,0))","v":{"$error":"#N/A"}},{"$f":"CONCATENATE(VLOOKUP(A19,РегистрПолучателей[],42,0))","v":{"$error":"#N/A"}},{"$f":"CONCATENATE(VLOOKUP(A19,РегистрПолучателей[],47,0))","v":{"$error":"#N/A"}}]
[7,{"$f":"CONCATENATE(VLOOKUP(A20,РегистрПолучателей[],2,0),\" \",VLOOKUP(A20,РегистрПолучателей[],3,0),\" \",VLOOKUP(A20,РегистрПолучателей[],4,0))","v":{"$error":"#N/A"}},{"$f":"CONCATENATE(VLOOKUP(A20,РегистрПолучателей[],11,0),\" \",VLOOKUP(A20,РегистрПолучателей[],12,0))","v":{"$error":"#N/A"}},{"$f":"TEXT(CONCATENATE(VLOOKUP(A20,РегистрПолучателей[],5,0)),\"дд.ММ.гггг\")","v":{"$error":"#N/A"}},{"$f":"CONCATENATE(VLOOKUP(A20,РегистрПолучателей[],7,0))","v":{"$error":"#N/A"}},{"$f":"CONCATENATE(VLOOKUP(A20,РегистрПолучателей[],8,0))","v":{"$error":"#N/A"}},{"$f":"CONCATENATE(VLOOKUP(A20,РегистрПолучателей[],17,0))","v":{"$error":"#N/A"}},{"$f":"TEXT(VLOOKUP(A20,РегистрПолучателей[],16,0),\"дд.ММ.гггг\")","v":{"$error":"#N/A"}},{"$f":"CONCATENATE(TEXT(VLOOKUP(A20,РегистрПолучателей[],18,0),\"дд.ММ.гггг\"),\"-\",TEXT(VLOOKUP(A20,РегистрПолучателей[],19,0),\"дд.ММ.гггг\"))","v":{"$error":"#N/A"}},{"$f":"CONCATENATE(VLOOKUP(A20,РегистрПолучателей[],22,0))","v":{"$error":"#N/A"}},{"$f":"TEXT(VLOOKUP(A20,РегистрПолучателей[],23,0),\"дд.ММ.гггг\")","v":{"$error":"#N/A"}},{"$f":"CONCATENATE(TEXT(VLOOKUP(A20,РегистрПолучателей[],24,0),\"дд.ММ.гггг\"),\"-\",TEXT(VLOOKUP(A20,РегистрПолучателей[],25,0),\"дд.ММ.гггг\"))","v":{"$error":"#N/A"}},{"$f":"TEXT(VLOOKUP(A20,РегистрПолучателей[],29,0),\"дд.ММ.гггг\")","v":{"$error":"#N/A"}},{"$f":"TEXT(VLOOKUP(A20,РегистрПолучателей[],30,0),\"дд.ММ.гггг\")","v":{"$error":"#N/A"}},{"$f":"CONCATENATE(VLOOKUP(A20,РегистрПолучателей[],31,0))","v":{"$error":"#N/A"}},{"$f":"IF(VLOOKUP(A20,РегистрПолучателей[],46,0)<>0,CONCATENATE(VLOOKUP(A20,РегистрПолучателей[],46,0)),F20)","v":{"$error":"#N/A"}},{"$f":"CONCATENATE(VLOOKUP(A20,РегистрПолучателей[],27,0),\"от \",TEXT(VLOOKUP(A20,РегистрПолучателей[],28,0),\"дд.ММ.гггг\"))","v":{"$error":"#N/A"}},{"$f":"VLOOKUP(A20,РегистрПолучателей[],33,0)+VLOOKUP(A20,РегистрПолучателей[],34,0)","v":{"$error":"#N/A"}},{"$f":"CONCATENATE(VLOOKUP(A20,РегистрПолучателей[],36,0))","v":{"$error":"#N/A"}},{"$f":"CONCATENATE(VLOOKUP(A20,РегистрПолучателей[],43,0))","v":{"$error":"#N/A"}},{"$f":"CONCATENATE(VLOOKUP(A20,РегистрПолучателей[],42,0))","v":{"$error":"#N/A"}},{"$f":"CONCATENATE(VLOOKUP(A20,РегистрПолучателей[],47,0))","v":{"$error":"#N/A"}}]
["Итого",null,null,null,null,null,"х","х","х","х","х","х","х","х"," ",null,"х",{"$f":"SUM(R14:R20)","v":{"$error":"#N/A"}},null,{"$f":"SUM(T14:T20)","v":{"$error":"#N/A"}},{"$f":"SUM(U14:U20)","v":{"$error":"#N/A"}}]
["* При заполнении реестра по форме социального обслуживания на дому в графе 22 указываются сведения о социальном работнике/сиделке, предоставляющем социальные услуги на дому: ФИО, дата рождения, номер СНИЛС"]
[]
["Итого сумма ежемесяцной субсидии: ______________________________________________________________"]
[null,null,null,"(сумма цифрами и прописью)"]
[]
["Численность получателей социальных услуг",null,null,null,null,"_______","человек"]
[]
["Количество индивидуальных программ предоставления социальных услуг, по которым предоставлены социальные услуги __________ед.",null,null,null,null,null,null,null,"_______","ед."]
[]
["Руководитель"]
[]
[{"$f":"CONCATENATE(VLOOKUP(A14,РегистрПолучателей[],21,0))","v":"Общество с ограниченной ответственностью «Гармония»"}]
["(Наименование поставщика услуг)"]
[]
[null,"___________________",null,"__________________________________________________"]
[null,"(подпись)",null,"(Расшифровка подписи)"]

{"sheet":"Справочник Поставщики","index":6,"n_rows":40,"n_cols":2,"rows_kept":40,"cut":false,"hidden":false,"merged":[]}
["Полное наименование организации","Регистрационный номер учетной записи"]
["Санкт-Петербургское государственное бюджетное стационарное учреждение социального обслуживания «Специнтернат для инвалидов и граждан пенсионного возраста, освобожденных из мест лишения свободы»",7810020]
["Общество с ограниченной ответственностью «Гармония»",7820093]
["Санкт-Петербургская еврейская благотворительная общественная организация инвалидов «Ева»",7830091]
["Общество с ограниченной ответственностью «Социальный гериатрический центр «Опека Комфорт»",7820090]
["Межрегиональная общественная организация социальной поддержки и защиты граждан «Еврейский Благотворительный Центр «Забота - Хэсэд Авраам»",7830094]
["Межрегиональная общественная организация поддержки семьи, материнства и детства «Врачи Детям»",7830097]
["Автономная некоммерческая образовательная организация дополнительного профессионального образования «Центр программ и проектов в области развития здравоохранения»",7830096]
["Учреждение Межрегиональной общественной организации помощи социально незащищенным гражданам «Детский ковчег» - Социальный приют \"Детский Ковчег\"",7830099]
["Частное социально-реабилитационное учреждение «Детский приют «Жизнь»",7830100]
["Автономная некоммерческая организация социального обслуживания граждан пожилого возраста и инвалидов «Свет»",7830101]
["Общество с ограниченной ответственностью «Агентство ЮСИ»",7830102]
["Федеральное государственное бюджетное учреждение здравоохранения Санаторий «Царскосельский» Министерства науки и высшего образования Российской Федерации",7810103]
["Автономная некоммерческая организация «Содружество по противодействию детско-подростковой дезадаптации «Герой»",7830104]
["Общество с ограниченной ответственностью «Социальный гериатрический центр «Опека»",7830110]
["Учреждение религиозного объединения «Епархиальная православная церковная благотворительная больница святой блаженной Ксении Петербургской»",7830112]
["Санкт-Петербургский благотворительный фонд «Гуманитарное действие»",7830113]
["Благотворительный фонд «Центр святителя Василия Великого»",7830115]
["Межрегиональная общественная организация «Ассоциация ветеранов, инвалидов и пенсионеров»",7830121]
["Автономная некоммерческая организация социального обслуживания «НОВЫЕ ПЕРСПЕКТИВЫ»",7830127]
["Санкт-Петербургская благотворительная общественная организация «Перспективы»",7830128]
["Общество с ограниченной ответственностью «Леге»",7830130]
["Санкт-Петербургская ассоциация общественных объединений родителей детей-инвалидов «ГАООРДИ»",7830131]
["Общество с ограниченной ответственностью «Система Забота»",7830132]
["Общество с ограниченной ответственностью «Титан Сервис»",7830133]
["Московская Местная Организация Санкт-Петербургская Городская Организация Общероссийская Общественная Организация «Всероссийское Общество Инвалидов»",7830134]
["Автономная некоммерческая организация «Центр развития инновационных социальных услуг «Партнерство каждому ребенку»",7830135]
["Центральная местная организация Санкт-Петербургская городская организация общероссийская общественная организация «Всероссийское общество инвалидов»",7830137]
["Региональная Санкт-Петербургская общественная организация инвалидов по социальной защите и содействию в трудоустройстве «Верба»",7830138]
["Региональный общественный благотворительный Фонд социальной реабилитации и помощи инвалидам «КЕДР»",7830139]
["Общество с ограниченной ответственностью «Эглин»",7830140]
["Региональная общественная организация «Центр реабилитации инвалидов «ОРТОЛЮКС»",7830141]
["Санкт-Петербургская общественная организация по гармоничному развитию семьи и личности «Центр «РАДОМИРА»",7830142]
["Автономная некоммерческая организация «Санкт-Петербургский Центр социальной адаптации, реабилитации и абилитации»",7830143]
["Общество с ограниченной ответственностью «Наша забота»",7830187]
["Частное учреждение социального обслуживания «Детская деревня - SOS Пушкин»",7830188]
["Общество с ограниченной ответственностью «СОЦИАЛЬНАЯ СЛУЖБА ПОМОЩНИК»",7830197]
["Общество с ограниченной ответственностью «АТГ»",7830202]
["Санкт-Петербургское региональное отделение Общероссийской общественной организации «Российский Красный Крест»",7830204]
["Общество с ограниченной ответственностью «Азимут»",7830206]

{"sheet":"Справочник Услуги","index":7,"n_rows":253,"n_cols":12,"rows_kept":253,"cut":false,"hidden":false,"merged":[]}
["Наименование услуги с кодом","№ услуги по 58р","Наименование услуги","Вид услуг","Код","Форма обслуживания","Тариф на социальную услугу, руб.","Ед.изм.тарифа","Наименование подушевого  норматива финансирования социальной услуги","Подушевой норматив финансирования социальной услуги, руб.","Ед.изм.норматива","Количество минут на оказание услуги по тех. регламенту"]
[{"$f":"CONCATENATE(B2,\" \",C2)","v":"1.1.1 Покупка за счет средств получателя социальных услуг и доставка на дом продуктов питания, промышленных товаров первой необходимости, средств санитарии и гигиены, средств ухода"},"1.1.1","Покупка за счет средств получателя социальных услуг и доставка на дом продуктов питания, промышленных товаров первой необходимости, средств санитарии и гигиены, средств ухода","Социально-бытовые",3749,"Cоциальное обслуживание на дому",381.64,"руб. за услугу",null,363.47,"руб. за услугу",40]
["1.1.10 Вызов врача на дом, в том числе запись на прием к врачу","1.1.10","Вызов врача на дом, в том числе запись на прием к врачу","Социально-бытовые",3731,"Cоциальное обслуживание на дому",285.48,"руб. за услугу",null,271.89,"руб. за услугу",30]
["1.1.11 Сопровождение к врачу","1.1.11","Сопровождение к врачу","Социально-бытовые",3769,"Cоциальное обслуживание на дому",1141.96,"руб. за услугу",null,1087.58,"руб. за услугу",120]
["1.1.12 Помощь при подготовке вещей для выезда на отдых за пределы города","1.1.12","Помощь при подготовке вещей для выезда на отдых за пределы города","Социально-бытовые",3753,"Cоциальное обслуживание на дому",300.29000000000002,"руб. за услугу",null,285.99,"руб. за услугу",30]
["1.1.13 Сдача за счет средств получателя социальных услуг вещей в стирку, химчистку, ремонт, обратная их доставка","1.1.13","Сдача за счет средств получателя социальных услуг вещей в стирку, химчистку, ремонт, обратная их доставка","Социально-бытовые",3756,"Cоциальное обслуживание на дому",221.11,"руб. за услугу",null,210.58,"руб. за услугу",20]
["1.1.14 Содействие в обеспечении топливом (для проживающих в жилых помещениях без центрального отопления)","1.1.14","Содействие в обеспечении топливом (для проживающих в жилых помещениях без центрального отопления)","Социально-бытовые",3760,"Cоциальное обслуживание на дому",190.32,"руб. за услугу",null,181.26,"руб. за услугу",20]
["1.1.15 Топка печей (для проживающих в жилых помещениях без центрального отопления)","1.1.15","Топка печей (для проживающих в жилых помещениях без центрального отопления)","Социально-бытовые",3772,"Cоциальное обслуживание на дому",285.48,"руб. за услугу",null,271.89,"руб. за услугу",30]
["1.1.16 Доставка воды (для проживающих в жилых помещениях без центрального водоснабжения)","1.1.16","Доставка воды (для проживающих в жилых помещениях без центрального водоснабжения)","Социально-бытовые",3733,"Cоциальное обслуживание на дому",190.32,"руб. за услугу",null,181.26,"руб. за услугу",20]
[{"$f":"CONCATENATE(B10,\" \",C10)","v":"1.1.17 Организация помощи в проведении за счет средств получателя социальных услуг ремонта жилых помещений"},"1.1.17","Организация помощи в проведении за счет средств получателя социальных услуг ремонта жилых помещений","Социально-бытовые",3746,"Cоциальное обслуживание на дому",366.49,"руб. за услугу",null,349.04,"руб. за услугу",30]
["1.1.18 Содействие в проведении за счет средств получателя социальных услуг уборки жилых помещений, мытья окон","1.1.18","Содействие в проведении за счет средств получателя социальных услуг уборки жилых помещений, мытья окон","Социально-бытовые",3764,"Cоциальное обслуживание на дому",183.25,"руб. за услугу",null,174.52,"руб. за услугу",15]
["1.1.19 Вынос мусора","1.1.19","Вынос мусора","Социально-бытовые",3732,"Cоциальное обслуживание на дому",150.69,"руб. за услугу",null,143.51,"руб. за услугу",15]
[{"$f":"CONCATENATE(B13,\" \",C13)","v":"1.1.2 Помощь в приготовлении пищи"},"1.1.2","Помощь в приготовлении пищи","Социально-бытовые",3751,"Cоциальное обслуживание на дому",285.48,"руб. за услугу",null,271.89,"руб. за услугу",30]
["1.1.20 Оплата за счет средств получателя социальных услуг жилищно-коммунальных услуг и услуг связи","1.1.20","Оплата за счет средств получателя социальных услуг жилищно-коммунальных услуг и услуг связи","Социально-бытовые",3743,"Cоциальное обслуживание на дому",285.68,"руб. за услугу",null,272.08,"руб. за услугу",30]
["1.1.21 Оформление за счет средств получателя социальных услуг подписки на газеты и журналы","1.1.21","Оформление за счет средств получателя социальных услуг подписки на газеты и журналы","Социально-бытовые",3748,"Cоциальное обслуживание на дому",286.47000000000003,"руб. за услугу",null,272.83,"руб. за услугу",30]
["1.1.22 Отправка за счет средств получателя социальных услуг почтовой корреспонденции","1.1.22","Отправка за счет средств получателя социальных услуг почтовой корреспонденции","Социально-бытовые",3747,"Cоциальное обслуживание на дому",190.32,"руб. за услугу",null,181.26,"руб. за услугу",20]
["1.1.23 Обеспечение кратковременного присмотра за детьми","1.1.23","Обеспечение кратковременного присмотра за детьми","Социально-бытовые",3739,"Cоциальное обслуживание на дому",1141.96,"руб. за услугу",null,1087.58,"руб. за услугу",120]
["1.1.24 Оповещение родственников","1.1.24","Оповещение родственников","Социально-бытовые",3744,"Cоциальное обслуживание на дому",164.66,"руб. за услугу",null,156.82,"руб. за услугу",20]
["1.1.25 Организация (содействие в оказании) ритуальных услуг","1.1.25","Организация (содействие в оказании) ритуальных услуг","Социально-бытовые",3745,"Cоциальное обслуживание на дому",493.99,"руб. за услугу",null,470.47,"руб. за услугу",60]
[{"$f":"CONCATENATE(B20,\" \",C20)","v":"1.1.26 Уборка жилых помещений у лиц, не способных по состоянию здоровья самостоятельно осуществлять за собой уход"},"1.1.26","Уборка жилых помещений у лиц, не способных по состоянию здоровья самостоятельно осуществлять за собой уход","Социально-бытовые",3838,"Cоциальное обслуживание на дому",390.97,"руб. за услугу",null,372.35,"руб. за услугу",40]
["1.1.27.1 Предоставление лицам, нуждающимся по состоянию здоровья, специализированных услуг монтажа, подключения, программирования функций устройства для предоставления социальной услуги экстренной помощи \"тревожная кнопка\"","1.1.27.1","Предоставление лицам, нуждающимся по состоянию здоровья, специализированных услуг монтажа, подключения, программирования функций устройства для предоставления социальной услуги экстренной помощи \"тревожная кнопка\"","Социально-бытовые",3824,"Cоциальное обслуживание на дому",471.15,"руб. в год за услугу","монтаж, подключение, программирование функций устройства для предоставления получателю социальной услуги «Предоставление лицам, нуждающимся по состоянию здоровья, специализированных услуг экстренной помощи «тревожная кнопка»",448.71,"руб. в год за услугу",0]
[{"$f":"CONCATENATE(B22,\" \",C22)","v":"1.1.27.2 Предоставление лицам, нуждающимся по состоянию здоровья, специализированных услуг экстренной помощи \"тревожная кнопка\""},"1.1.27.2","Предоставление лицам, нуждающимся по состоянию здоровья, специализированных услуг экстренной помощи \"тревожная кнопка\"","Социально-бытовые",3755,"Cоциальное обслуживание на дому",843.5,"руб. в месяц за услугу","обслуживание получателя социальной услуги «Предоставление лицам, нуждающимся по состоянию здоровья, специализированных услуг экстренной помощи «тревожная кнопка»",803.33,"руб. в месяц за услугу",70]
["1.1.3 Помощь в приеме пищи (кормление)","1.1.3","Помощь в приеме пищи (кормление)","Социально-бытовые",3752,"Cоциальное обслуживание на дому",316.27,"руб. за услугу",null,301.20999999999998,"руб. за услугу",30]
["1.1.4 Помощь в одевании и переодевании лицам, не способным по состоянию здоровья самостоятельно осуществлять за собой уход","1.1.4","Помощь в одевании и переодевании лицам, не способным по состоянию здоровья самостоятельно осуществлять за собой уход","Социально-бытовые",3750,"Cоциальное обслуживание на дому",275.12,"руб. за услугу",null,262.02,"руб. за услугу",20]
["1.1.5 Смена (помощь в смене) постельного белья","1.1.5","Смена (помощь в смене) постельного белья","Социально-бытовые",3757,"Cоциальное обслуживание на дому",125.95,"руб. за услугу",null,119.95,"руб. за услугу",10]
["1.1.6 Смена подгузников и абсорбирующего белья лицам, не способным по состоянию здоровья самостоятельно осуществлять за собой уход","1.1.6","Смена подгузников и абсорбирующего белья лицам, не способным по состоянию здоровья самостоятельно осуществлять за собой уход","Социально-бытовые",3758,"Cоциальное обслуживание на дому",125.95,"руб. за услугу",null,119.95,"руб. за услугу",10]
["1.1.7 Предоставление гигиенических услуг лицам, не способным по состоянию здоровья самостоятельно осуществлять за собой уход","1.1.7","Предоставление гигиенических услуг лицам, не способным по состоянию здоровья самостоятельно осуществлять за собой уход","Социально-бытовые",3754,"Cоциальное обслуживание на дому",221.11,"руб. за услугу",null,210.58,"руб. за услугу",20]
["1.1.8 Содействие за счет средств получателя социальных услуг в оказании парикмахерских услуг","1.1.8","Содействие за счет средств получателя социальных услуг в оказании парикмахерских услуг","Социально-бытовые",3765,"Cоциальное обслуживание на дому",95.16,"руб. за услугу",null,90.63,"руб. за услугу",10]
["1.1.9 Сопровождение в баню (для проживающих в жилых помещениях без горячего водоснабжения)","1.1.9","Сопровождение в баню (для проживающих в жилых помещениях без горячего водоснабжения)","Социально-бытовые",3768,"Cоциальное обслуживание на дому",1141.96,"руб. за услугу",null,1087.58,"руб. за услугу",120]
["1.2.1 Консультирование по социально-медицинским вопросам","1.2.1","Консультирование по социально-медицинским вопросам","Социально-медицинские",3774,"Cоциальное обслуживание на дому",166.45,"руб. за услугу",null,158.52000000000001,"руб. за услугу",20]
["1.2.2 Систематическое наблюдение за получателем социальных услуг в целях выявления отклонений в состоянии его здоровья","1.2.2","Систематическое наблюдение за получателем социальных услуг в целях выявления отклонений в состоянии его здоровья","Социально-медицинские",3780,"Cоциальное обслуживание на дому",226.96,"руб. за услугу",null,216.15,"руб. за услугу",30]
["1.2.3 Выполнение процедур, связанных с организацией ухода, лицам, не способным по состоянию здоровья самостоятельно осуществлять за собой уход","1.2.3","Выполнение процедур, связанных с организацией ухода, лицам, не способным по состоянию здоровья самостоятельно осуществлять за собой уход","Социально-медицинские",3836,"Cоциальное обслуживание на дому",465.15,"руб. за услугу",null,443,"руб. за услугу",60]
["1.2.4 Обеспечение приема получателем социальных услуг лекарственных средств в соответствии с назначением врача","1.2.4","Обеспечение приема получателем социальных услуг лекарственных средств в соответствии с назначением врача","Социально-медицинские",3775,"Cоциальное обслуживание на дому",104.4,"руб. за услугу",null,99.43,"руб. за услугу",10]
["1.2.5 Проведение мероприятий, направленных на формирование здорового образа жизни","1.2.5","Проведение мероприятий, направленных на формирование здорового образа жизни","Социально-медицинские",3778,"Cоциальное обслуживание на дому",285.48,"руб. за услугу",null,271.89,"руб. за услугу",30]
["1.2.6 Профилактика образования пролежней, проведение обработки пролежней","1.2.6","Профилактика образования пролежней, проведение обработки пролежней","Социально-медицинские",3837,"Cоциальное обслуживание на дому",158.06,"руб. за услугу",null,150.53,"руб. за услугу",20]
["1.4.1 Консультирование получателя социальных услуг и (или) его ближайшего окружения по вопросам социальной реабилитации","1.4.1","Консультирование получателя социальных услуг и (или) его ближайшего окружения по вопросам социальной реабилитации","Социально-педагогические",3786,"Cоциальное обслуживание на дому",0,"руб. за услугу",null,266.83999999999997,"руб. за услугу",30]
["1.4.2 Обучение практическим навыкам общего ухода за тяжелобольными получателями социальных услуг, получателями социальных услуг, имеющими ограничения жизнедеятельности, в том числе за детьми-инвалидами","1.4.2","Обучение практическим навыкам общего ухода за тяжелобольными получателями социальных услуг, получателями социальных услуг, имеющими ограничения жизнедеятельности, в том числе за детьми-инвалидами","Социально-педагогические",3788,"Cоциальное обслуживание на дому",0,"руб. за услугу",null,274.33999999999997,"руб. за услугу",30]
["1.4.3 Чтение журналов, газет, книг","1.4.3","Чтение журналов, газет, книг","Социально-педагогические",3799,"Cоциальное обслуживание на дому",0,"руб. за услугу",null,543.79,"руб. за услугу",60]
["1.6.1 Оказание помощи в оформлении документов и восстановлении утраченных документов получателя социальных услуг","1.6.1","Оказание помощи в оформлении документов и восстановлении утраченных документов получателя социальных услуг","Социально-правовые",3803,"Cоциальное обслуживание на дому",0,"руб. за услугу",null,190.59,"руб. за услугу",30]
["1.6.2 Содействие в получении полиса обязательного медицинского страхования","1.6.2","Содействие в получении полиса обязательного медицинского страхования","Социально-правовые",3811,"Cоциальное обслуживание на дому",0,"руб. за услугу",null,582.79,"руб. за услугу",90]
["1.6.3 Содействие в оформлении документов, необходимых для помещения в стационарную организацию социального обслуживания","1.6.3","Содействие в оформлении документов, необходимых для помещения в стационарную организацию социального обслуживания","Социально-правовые",3810,"Cоциальное обслуживание на дому",0,"руб. за услугу",null,815.68,"руб. за услугу",90]
["1.6.4 Содействие в восстановлении утраченного (сохранении занимаемого) жилья, наследства","1.6.4","Содействие в восстановлении утраченного (сохранении занимаемого) жилья, наследства","Социально-правовые",3809,"Cоциальное обслуживание на дому",0,"руб. за услугу",null,563.86,"руб. за услугу",90]
["1.6.5 Оказание помощи в получении юридических услуг (в том числе бесплатно)","1.6.5","Оказание помощи в получении юридических услуг (в том числе бесплатно)","Социально-правовые",3804,"Cоциальное обслуживание на дому",0,"руб. за услугу",null,1121.52,"руб. за услугу",90]
["1.6.6 Оказание помощи в защите прав и законных интересов получателя социальных услуг","1.6.6","Оказание помощи в защите прав и законных интересов получателя социальных услуг","Социально-правовые",3802,"Cоциальное обслуживание на дому",0,"руб. за услугу",null,252.8,"руб. за услугу",40]
["1.3.1 Социально-психологическое консультирование (в том числе по вопросам внутрисемейных отношений)","1.3.1","Социально-психологическое консультирование (в том числе по вопросам внутрисемейных отношений)","Социально-психологические",3815,"Cоциальное обслуживание на дому",0,"руб. за услугу",null,549.95000000000005,"руб. за услугу",90]
["1.3.2 Социально-психологический патронаж","1.3.2","Социально-психологический патронаж","Социально-психологические",3814,"Cоциальное обслуживание на дому",0,"руб. за услугу",null,545.48,"руб. за услугу",60]
["1.5.1 Содействие родственникам получателя социальных услуг в нахождении работы по гибкому графику","1.5.1","Содействие родственникам получателя социальных услуг в нахождении работы по гибкому графику","Социально-трудовые",3823,"Cоциальное обслуживание на дому",0,"руб. за услугу",null,265.33999999999997,"руб. за услугу",30]
["1.7.1 Консультирование по вопросам социально-средовой реабилитации","1.7.1","Консультирование по вопросам социально-средовой реабилитации","Услуги в целях повышения коммуникативного потенциала получателей социальных услуг, имеющих ограничения жизнедеятельности, в том числе детей-инвалидов",3725,"Cоциальное обслуживание на дому",0,"руб. за услугу",null,545.48,"руб. за услугу",60]
["1.7.2 Обучение инвалидов (детей-инвалидов) пользованию средствами ухода и техническими средствами реабилитации","1.7.2","Обучение инвалидов (детей-инвалидов) пользованию средствами ухода и техническими средствами реабилитации","Услуги в целях повышения коммуникативного потенциала получателей социальных услуг, имеющих ограничения жизнедеятельности, в том числе детей-инвалидов",3726,"Cоциальное обслуживание на дому",0,"руб. за услугу",null,290.55,"руб. за услугу",45]
["1.7.3 Обучение навыкам (поддержание навыков) поведения в быту и общественных местах","1.7.3","Обучение навыкам (поддержание навыков) поведения в быту и общественных местах","Услуги в целях повышения коммуникативного потенциала получателей социальных услуг, имеющих ограничения жизнедеятельности, в том числе детей-инвалидов",3727,"Cоциальное обслуживание на дому",0,"руб. за услугу",null,352.53,"руб. за услугу",40]
["1.7.4 Содействие в получении лекарственных препаратов, изделий медицинского назначения, предоставляемых в соответствии с действующим законодательством","1.7.4","Содействие в получении лекарственных препаратов, изделий медицинского назначения, предоставляемых в соответствии с действующим законодательством","Услуги в целях повышения коммуникативного потенциала получателей социальных услуг, имеющих ограничения жизнедеятельности, в том числе детей-инвалидов",3831,"Cоциальное обслуживание на дому",0,"руб. за услугу",null,815.68,"руб. за услугу",90]
["1.7.5 Содействие в организации санаторно-курортного лечения или оздоровительного отдыха, предоставляемого в соответствии с действующим законодательством","1.7.5","Содействие в организации санаторно-курортного лечения или оздоровительного отдыха, предоставляемого в соответствии с действующим законодательством","Услуги в целях повышения коммуникативного потенциала получателей социальных услуг, имеющих ограничения жизнедеятельности, в том числе детей-инвалидов",3832,"Cоциальное обслуживание на дому",0,"руб. за услугу",null,581.09,"руб. за услугу",90]
["1.7.6 Консультирование по вопросам оборудования специальными средствами и приспособлениями жилого помещения, занимаемого получателем социальных услуг (для инвалидов (детей-инвалидов), имеющих стойкие расстройства опорно-двигательного аппарата, зрения, слуха, умственные отклонения)","1.7.6","Консультирование по вопросам оборудования специальными средствами и приспособлениями жилого помещения, занимаемого получателем социальных услуг (для инвалидов (детей-инвалидов), имеющих стойкие расстройства опорно-двигательного аппарата, зрения, слуха, умственные отклонения)","Услуги в целях повышения коммуникативного потенциала получателей социальных услуг, имеющих ограничения жизнедеятельности, в том числе детей-инвалидов",3833,"Cоциальное обслуживание на дому",0,"руб. за услугу",null,543.79,"руб. за услугу",60]
["1.7.7 Содействие в обеспечении техническими средствами реабилитации, предоставляемыми в соответствии с действующим законодательством либо за счет средств получателя социальных услуг","1.7.7","Содействие в обеспечении техническими средствами реабилитации, предоставляемыми в соответствии с действующим законодательством либо за счет средств получателя социальных услуг","Услуги в целях повышения коммуникативного потенциала получателей социальных услуг, имеющих ограничения жизнедеятельности, в том числе детей-инвалидов",3834,"Cоциальное обслуживание на дому",0,"руб. за услугу",null,819.63,"руб. за услугу",90]
["1.7.8 Консультирование по вопросам самообслуживания и социально-бытовой адаптации","1.7.8","Консультирование по вопросам самообслуживания и социально-бытовой адаптации","Услуги в целях повышения коммуникативного потенциала получателей социальных услуг, имеющих ограничения жизнедеятельности, в том числе детей-инвалидов",3835,"Cоциальное обслуживание на дому",0,"руб. за услугу",null,181.26,"руб. за услугу",20]
["2.1.1 Обеспечение площадью жилых помещений в соответствии с утвержденными нормативами","2.1.1","Обеспечение площадью жилых помещений в соответствии с утвержденными нормативами","Социально-бытовые",3742,"Полустационарная форма социального обслуживания",247.98,"руб. за услугу",null,236.17,"руб. за услугу",30]
["2.1.2.1 Обеспечение мягким инвентарем (одеждой, обувью, нательным бельем и постельными принадлежностями) в соответствии с утвержденными нормативами*:","2.1.2.1","Обеспечение мягким инвентарем (одеждой, обувью, нательным бельем и постельными принадлежностями) в соответствии с утвержденными нормативами*:","Социально-бытовые",3740,"Полустационарная форма социального обслуживания",117.58,"руб. за услугу","гражданам пожилого и трудоспособного возраста без определенного места жительства (бездомным)",111.98,"руб. за услугу",20]
["2.1.3.1 Обеспечение питанием согласно утвержденным нормативам:","2.1.3.1","Обеспечение питанием согласно утвержденным нормативам:","Социально-бытовые",3741,"Полустационарная форма социального обслуживания",514.82000000000005,"руб. в день за услугу","граждан пожилого возраста и инвалидов в организациях социального обслуживания населения, за исключением психоневрологических интернатов",490.3,"руб. в день за услугу",1]
["2.1.3.10 Обеспечение питанием согласно утвержденным нормативам:","2.1.3.10","Обеспечение питанием согласно утвержденным нормативам:","Социально-бытовые",3741,"Полустационарная форма социального обслуживания",175.36,"руб. в день за услугу","детей в возрасте 0-2 мес. первого года жизни, проживающих с матерями - получателями социальных услуг в организациях социального обслуживания населения",167.01,"руб. в день за услугу",1]
["2.1.3.11 Обеспечение питанием согласно утвержденным нормативам:","2.1.3.11","Обеспечение питанием согласно утвержденным нормативам:","Социально-бытовые",3741,"Полустационарная форма социального обслуживания",197.37,"руб. в день за услугу","детей в возрасте 2-3 мес. первого года жизни, проживающих с матерями - получателями социальных услуг в организациях социального обслуживания населения",187.97,"руб. в день за услугу",1]
["2.1.3.12 Обеспечение питанием согласно утвержденным нормативам:","2.1.3.12","Обеспечение питанием согласно утвержденным нормативам:","Социально-бытовые",3741,"Полустационарная форма социального обслуживания",263.83999999999997,"руб. в день за услугу","детей в возрасте 4 мес. первого года жизни, проживающих с матерями - получателями социальных услуг в организациях социального обслуживания населения",251.28,"руб. в день за услугу",1]
["2.1.3.13 Обеспечение питанием согласно утвержденным нормативам:","2.1.3.13","Обеспечение питанием согласно утвержденным нормативам:","Социально-бытовые",3741,"Полустационарная форма социального обслуживания",348.67,"руб. в день за услугу","детей в возрасте 5 мес. первого года жизни, проживающих с матерями - получателями социальных услуг в организациях социального обслуживания населения",332.07,"руб. в день за услугу",1]
["2.1.3.14 Обеспечение питанием согласно утвержденным нормативам:","2.1.3.14","Обеспечение питанием согласно утвержденным нормативам:","Социально-бытовые",3741,"Полустационарная форма социального обслуживания",252.8,"руб. в день за услугу","детей в возрасте 6 мес. первого года жизни, проживающих с матерями - получателями социальных услуг в организациях социального обслуживания населения",240.76,"руб. в день за услугу",1]
["2.1.3.15 Обеспечение питанием согласно утвержденным нормативам:","2.1.3.15","Обеспечение питанием согласно утвержденным нормативам:","Социально-бытовые",3741,"Полустационарная форма социального обслуживания",353.45,"руб. в день за услугу","детей в возрасте 7 мес. первого года жизни, проживающих с матерями - получателями социальных услуг в организациях социального обслуживания населения",336.62,"руб. в день за услугу",1]
["2.1.3.16 Обеспечение питанием согласно утвержденным нормативам:","2.1.3.16","Обеспечение питанием согласно утвержденным нормативам:","Социально-бытовые",3741,"Полустационарная форма социального обслуживания",416.87,"руб. в день за услугу","детей в возрасте 8 мес. первого года жизни, проживающих с матерями - получателями социальных услуг в организациях социального обслуживания населения",397.02,"руб. в день за услугу",1]
["2.1.3.17 Обеспечение питанием согласно утвержденным нормативам:","2.1.3.17","Обеспечение питанием согласно утвержденным нормативам:","Социально-бытовые",3741,"Полустационарная форма социального обслуживания",573.41999999999996,"руб. в день за услугу","детей в возрасте 9-12 мес. первого года жизни, проживающих с матерями - получателями социальных услуг в организациях социального обслуживания населения",546.11,"руб. в день за услугу",1]
["2.1.3.18 Обеспечение питанием согласно утвержденным нормативам:","2.1.3.18","Обеспечение питанием согласно утвержденным нормативам:","Социально-бытовые",3741,"Полустационарная форма социального обслуживания",468.91,"руб. в день за услугу","детей в возрасте от 12 до 18 мес., в организациях социального обслуживания населения",446.58,"руб. в день за услугу",1]
["2.1.3.19 Обеспечение питанием согласно утвержденным нормативам:","2.1.3.19","Обеспечение питанием согласно утвержденным нормативам:","Социально-бытовые",3741,"Полустационарная форма социального обслуживания",394.62,"руб. в день за услугу","детей в возрасте от 18 мес. до 3 лет, в организациях социального обслуживания населения",375.83,"руб. в день за услугу",1]
["2.1.3.2 Обеспечение питанием согласно утвержденным нормативам:","2.1.3.2","Обеспечение питанием согласно утвержденным нормативам:","Социально-бытовые",3741,"Полустационарная форма социального обслуживания",515.45000000000005,"руб. в день за услугу","граждан пожилого возраста и инвалидов с заболеванием сахарным диабетом в организациях социального обслуживания населения, за исключением психоневрологических интернатов",490.9,"руб. в день за услугу",1]
["2.1.3.20 Обеспечение питанием согласно утвержденным нормативам:","2.1.3.20","Обеспечение питанием согласно утвержденным нормативам:","Социально-бытовые",3741,"Полустационарная форма социального обслуживания",457.22,"руб. в день за услугу","детей в возрасте от 3 до 7 лет, в организациях социального обслуживания населения",435.45,"руб. в день за услугу",1]
["2.1.3.21 Обеспечение питанием согласно утвержденным нормативам:","2.1.3.21","Обеспечение питанием согласно утвержденным нормативам:","Социально-бытовые",3741,"Полустационарная форма социального обслуживания",572.88,"руб. в день за услугу","детей в возрасте от 7 до 11 лет, в организациях социального обслуживания населения",545.6,"руб. в день за услугу",1]
["2.1.3.22 Обеспечение питанием согласно утвержденным нормативам:","2.1.3.22","Обеспечение питанием согласно утвержденным нормативам:","Социально-бытовые",3741,"Полустационарная форма социального обслуживания",640.12,"руб. в день за услугу","детей в возрасте от 12 до 18 лет, лиц из числа детей-сирот и детей, оставшихся без попечения родителей, в возрасте от 18 до 23 лет и старше, в организациях социального обслуживания населения",609.64,"руб. в день за услугу",1]
["2.1.3.23 Обеспечение питанием согласно утвержденным нормативам:","2.1.3.23","Обеспечение питанием согласно утвержденным нормативам:","Социально-бытовые",3741,"Полустационарная форма социального обслуживания",132.08000000000001,"руб. в день за услугу","граждан без определенного места жительства (бездомных) в организациях социального обслуживания населения",125.79,"руб. в день за услугу",1]
["2.1.3.3 Обеспечение питанием согласно утвержденным нормативам:","2.1.3.3","Обеспечение питанием согласно утвержденным нормативам:","Социально-бытовые",3741,"Полустационарная форма социального обслуживания",392.01,"руб. в день за услугу","граждан пожилого возраста и инвалидов с заболеванием желудочно-кишечного тракта в организациях социального обслуживания населения, за исключением психоневрологических интернатов",373.34,"руб. в день за услугу",1]
["2.1.3.4 Обеспечение питанием согласно утвержденным нормативам:","2.1.3.4","Обеспечение питанием согласно утвержденным нормативам:","Социально-бытовые",3741,"Полустационарная форма социального обслуживания",542.61,"руб. в день за услугу","граждан пожилого возраста и инвалидов в организациях социального обслуживания населения - психоневрологических интернатах",516.77,"руб. в день за услугу",1]
[{"$f":"CONCATENATE(B76,\" \",C76)","v":"2.1.3.5 Обеспечение питанием согласно утвержденным нормативам:"},"2.1.3.5","Обеспечение питанием согласно утвержденным нормативам:","Социально-бытовые",3741,"Полустационарная форма социального обслуживания",531.77,"руб. в день за услугу","граждан пожилого возраста и инвалидов с заболеванием сахарным диабетом в организациях социального обслуживания населения - психоневрологических интернатах",506.45,"руб. в день за услугу",1]
["2.1.3.6 Обеспечение питанием согласно утвержденным нормативам:","2.1.3.6","Обеспечение питанием согласно утвержденным нормативам:","Социально-бытовые",3741,"Полустационарная форма социального обслуживания",465.02,"руб. в день за услугу","граждан пожилого возраста и инвалидов (без смеси белково-композитной сухой) в организациях социального обслуживания населения - психоневрологических интернатах",442.88,"руб. в день за услугу",1]
["2.1.3.7 Обеспечение питанием согласно утвержденным нормативам:","2.1.3.7","Обеспечение питанием согласно утвержденным нормативам:","Социально-бытовые",3741,"Полустационарная форма социального обслуживания",408.33,"руб. в день за услугу","граждан пожилого возраста и инвалидов с заболеванием желудочно-кишечного тракта в организациях социального обслуживания населения - психоневрологических интернатах",388.89,"руб. в день за услугу",1]
["2.1.3.8 Обеспечение питанием согласно утвержденным нормативам:","2.1.3.8","Обеспечение питанием согласно утвержденным нормативам:","Социально-бытовые",3741,"Полустационарная форма социального обслуживания",501.63,"руб. в день за услугу","беременных женщин в организациях социального обслуживания населения",477.74,"руб. в день за услугу",1]
["2.1.3.9 Обеспечение питанием согласно утвержденным нормативам:","2.1.3.9","Обеспечение питанием согласно утвержденным нормативам:","Социально-бытовые",3741,"Полустационарная форма социального обслуживания",464.96,"руб. в день за услугу","кормящих матерей в организациях социального обслуживания населения",442.82,"руб. в день за услугу",1]
["2.1.4.1 Обеспечение бесплатным горячим питанием или набором продуктов","2.1.4.1","Обеспечение бесплатным горячим питанием или набором продуктов","Социально-бытовые",3737,"Полустационарная форма социального обслуживания",257.67,"руб. за услугу","Обеспечение бесплатным горячим питанием",245.4,"руб. за услугу",10]
["2.1.4.2 Обеспечение бесплатным горячим питанием или набором продуктов","2.1.4.2","Обеспечение бесплатным горячим питанием или набором продуктов","Социально-бытовые",3737,"Полустационарная форма социального обслуживания",877.72,"руб. за услугу","Обеспечение бесплатным набором продуктов",835.92,"руб. за услугу",10]
["2.1.5 Помощь в одевании и переодевании лицам, не способным по состоянию здоровья самостоятельно осуществлять за собой уход","2.1.5","Помощь в одевании и переодевании лицам, не способным по состоянию здоровья самостоятельно осуществлять за собой уход","Социально-бытовые",3750,"Полустационарная форма социального обслуживания",226.92,"руб. за услугу",null,216.11,"руб. за услугу",20]
["2.1.6 Смена подгузников и абсорбирующего белья лицам, не способным по состоянию здоровья самостоятельно осуществлять за собой уход","2.1.6","Смена подгузников и абсорбирующего белья лицам, не способным по состоянию здоровья самостоятельно осуществлять за собой уход","Социально-бытовые",3758,"Полустационарная форма социального обслуживания",185.28,"руб. за услугу",null,176.46,"руб. за услугу",10]
["2.1.7 Предоставление гигиенических услуг лицам, не способным по состоянию здоровья самостоятельно осуществлять за собой уход","2.1.7","Предоставление гигиенических услуг лицам, не способным по состоянию здоровья самостоятельно осуществлять за собой уход","Социально-бытовые",3754,"Полустационарная форма социального обслуживания",165.91,"руб. за услугу",null,158.01,"руб. за услугу",20]
["2.1.8 Отправка за счет средств получателя социальных услуг почтовой корреспонденции","2.1.8","Отправка за счет средств получателя социальных услуг почтовой корреспонденции","Социально-бытовые",3747,"Полустационарная форма социального обслуживания",137.91999999999999,"руб. за услугу",null,131.35,"руб. за услугу",0]
["2.1.9 Обеспечение кратковременного присмотра за детьми","2.1.9","Обеспечение кратковременного присмотра за детьми","Социально-бытовые",3739,"Полустационарная форма социального обслуживания",813.53,"руб. за услугу",null,774.79,"руб. за услугу",120]
["2.2.1 Консультирование по социально-медицинским вопросам","2.2.1","Консультирование по социально-медицинским вопросам","Социально-медицинские",3774,"Полустационарная форма социального обслуживания",221.27,"руб. за услугу",null,210.73,"руб. за услугу",20]
["2.2.2 Систематическое наблюдение за получателем социальных услуг в целях выявления отклонений в состоянии его здоровья","2.2.2","Систематическое наблюдение за получателем социальных услуг в целях выявления отклонений в состоянии его здоровья","Социально-медицинские",3780,"Полустационарная форма социального обслуживания",114.37,"руб. за услугу",null,108.92,"руб. за услугу",15]
["2.2.3 Выполнение процедур, связанных с организацией ухода, лицам, не способным по состоянию здоровья самостоятельно осуществлять за собой уход","2.2.3","Выполнение процедур, связанных с организацией ухода, лицам, не способным по состоянию здоровья самостоятельно осуществлять за собой уход","Социально-медицинские",3836,"Полустационарная форма социального обслуживания",241.08,"руб. за услугу",null,229.6,"руб. за услугу",30]
["2.2.4 Обеспечение приема получателем социальных услуг лекарственных средств в соответствии с назначением врача","2.2.4","Обеспечение приема получателем социальных услуг лекарственных средств в соответствии с назначением врача","Социально-медицинские",3775,"Полустационарная форма социального обслуживания",104.4,"руб. за услугу",null,99.43,"руб. за услугу",10]
["2.2.5 Проведение мероприятий, направленных на формирование здорового образа жизни","2.2.5","Проведение мероприятий, направленных на формирование здорового образа жизни","Социально-медицинские",3778,"Полустационарная форма социального обслуживания",203.39,"руб. за услугу",null,193.7,"руб. за услугу",30]
["2.2.6 Проведение лечебно-оздоровительных мероприятий (в том числе с использованием реабилитационного оборудования)","2.2.6","Проведение лечебно-оздоровительных мероприятий (в том числе с использованием реабилитационного оборудования)","Социально-медицинские",3777,"Полустационарная форма социального обслуживания",263.98,"руб. за услугу",null,251.41,"руб. за услугу",30]
["2.2.7 Проведение занятий по адаптивной физической культуре","2.2.7","Проведение занятий по адаптивной физической культуре","Социально-медицинские",3776,"Полустационарная форма социального обслуживания",523.47,"руб. за услугу",null,498.54,"руб. за услугу",45]
["2.2.8 Санитарная обработка (обработка волосистых поверхностей тела дезинфицирующими растворами от педикулеза, помывка)","2.2.8","Санитарная обработка (обработка волосистых поверхностей тела дезинфицирующими растворами от педикулеза, помывка)","Социально-медицинские",3779,"Полустационарная форма социального обслуживания",317.85000000000002,"руб. за услугу",null,302.70999999999998,"руб. за услугу",30]
["2.4.1.1 Консультирование получателя социальных услуг и (или) ближайшего окружения получателя социальных услуг по вопросам социальной реабилитации","2.4.1.1","Консультирование получателя социальных услуг и (или) ближайшего окружения получателя социальных услуг по вопросам социальной реабилитации","Социально-педагогические",3785,"Полустационарная форма социального обслуживания",0,"руб. за услугу","в организации социального обслуживания",266.08999999999997,"руб. за услугу",30]
["2.4.1.2 Консультирование получателя социальных услуг и (или) ближайшего окружения получателя социальных услуг по вопросам социальной реабилитации","2.4.1.2","Консультирование получателя социальных услуг и (или) ближайшего окружения получателя социальных услуг по вопросам социальной реабилитации","Социально-педагогические",3785,"Полустационарная форма социального обслуживания",0,"руб. за услугу","с использованием телекоммуникационных технологий, в том числе онлайн-платформ (Skype, WhatsApp, Zoom Video Communications, Viber)",266.08999999999997,"руб. за услугу",30]
["2.4.10 Организация помощи родителям и иным законным представителям детей-инвалидов, воспитываемых дома, в обучении таких детей навыкам самообслуживания, общения, направленным на развитие личности","2.4.10","Организация помощи родителям и иным законным представителям детей-инвалидов, воспитываемых дома, в обучении таких детей навыкам самообслуживания, общения, направленным на развитие личности","Социально-педагогические",3793,"Полустационарная форма социального обслуживания",0,"руб. за услугу",null,5898.14,"руб. за услугу",525]
["2.4.11 Формирование позитивных интересов (в том числе в сфере досуга)","2.4.11","Формирование позитивных интересов (в том числе в сфере досуга)","Социально-педагогические",3798,"Полустационарная форма социального обслуживания",0,"руб. за услугу",null,1403.36,"руб. за услугу",150]
["2.4.12.1 Проведение занятий в соответствии с разработанным индивидуальным социально-педагогическим планом (сенсорное развитие, предметно-практическая деятельность, социально-бытовая ориентация, изодеятельность, арт-терапия, игровая деятельность, музыкальные занятия, спортивные, досуговые, экскурсионные мероприятия), в том числе групповых","2.4.12.1","Проведение занятий в соответствии с разработанным индивидуальным социально-педагогическим планом (сенсорное развитие, предметно-практическая деятельность, социально-бытовая ориентация, изодеятельность, арт-терапия, игровая деятельность, музыкальные занятия, спортивные, досуговые, экскурсионные мероприятия), в том числе групповых","Социально-педагогические",3794,"Полустационарная форма социального обслуживания",0,"руб. за услугу","в организации социального обслуживания",40.049999999999997,"руб. за услугу",45]
["2.4.12.2 Проведение занятий в соответствии с разработанным индивидуальным социально-педагогическим планом (сенсорное развитие, предметно-практическая деятельность, социально-бытовая ориентация, изодеятельность, арт-терапия, игровая деятельность, музыкальные занятия, спортивные, досуговые, экскурсионные мероприятия), в том числе групповых","2.4.12.2","Проведение занятий в соответствии с разработанным индивидуальным социально-педагогическим планом (сенсорное развитие, предметно-практическая деятельность, социально-бытовая ориентация, изодеятельность, арт-терапия, игровая деятельность, музыкальные занятия, спортивные, досуговые, экскурсионные мероприятия), в том числе групповых","Социально-педагогические",3794,"Полустационарная форма социального обслуживания",0,"руб. за услугу","с использованием телекоммуникационных технологий, в том числе онлайн-платформ (Skype, WhatsApp, Zoom Video Communications, Viber)",40.049999999999997,"руб. за услугу",45]
["2.4.13.1 Оказание помощи в обучении навыкам компьютерной грамотности","2.4.13.1","Оказание помощи в обучении навыкам компьютерной грамотности","Социально-педагогические",3790,"Полустационарная форма социального обслуживания",0,"руб. за услугу","в организации социального обслуживания",79.66,"руб. за услугу",45]
["2.4.13.2 Оказание помощи в обучении навыкам компьютерной грамотности","2.4.13.2","Оказание помощи в обучении навыкам компьютерной грамотности","Социально-педагогические",3790,"Полустационарная форма социального обслуживания",0,"руб. за услугу","с использованием телекоммуникационных технологий, в том числе онлайн-платформ (Skype, WhatsApp, Zoom Video Communications, Viber)",79.66,"руб. за услугу",45]
["2.4.14 Организация досуга (в том числе сопровождение на социокультурные мероприятия)","2.4.14","Организация досуга (в том числе сопровождение на социокультурные мероприятия)","Социально-педагогические",3791,"Полустационарная форма социального обслуживания",0,"руб. за услугу",null,55.56,"руб. за услугу",90]
["2.4.2 Социально-педагогическая коррекция, включая диагностику и консультирование","2.4.2","Социально-педагогическая коррекция, включая диагностику и консультирование","Социально-педагогические",3796,"Полустационарная форма социального обслуживания",0,"руб. за услугу",null,2003,"руб. за услугу",380]
["2.4.3.1 Социально-педагогический патронаж","2.4.3.1","Социально-педагогический патронаж","Социально-педагогические",3797,"Полустационарная форма социального обслуживания",0,"руб. за услугу","в организации социального обслуживания",484.03,"руб. за услугу",60]
["2.4.3.2 Социально-педагогический патронаж","2.4.3.2","Социально-педагогический патронаж","Социально-педагогические",3797,"Полустационарная форма социального обслуживания",0,"руб. за услугу","с использованием телекоммуникационных технологий, в том числе онлайн-платформ (Skype, WhatsApp, Zoom Video Communications, Viber)",484.03,"руб. за услугу",60]
["2.4.4 Обучение родительским функциям","2.4.4","Обучение родительским функциям","Социально-педагогические",3789,"Полустационарная форма социального обслуживания",0,"руб. за услугу",null,733.9,"руб. за услугу",45]
["2.4.5 Обучение матери созданию социально-бытовой среды для развития ребенка","2.4.5","Обучение матери созданию социально-бытовой среды для развития ребенка","Социально-педагогические",3787,"Полустационарная форма социального обслуживания",0,"руб. за услугу",null,237.33,"руб. за услугу",30]
["2.4.6.1 Консультирование ближайшего окружения ребенка по развитию игровой и продуктивной деятельности","2.4.6.1","Консультирование ближайшего окружения ребенка по развитию игровой и продуктивной деятельности","Социально-педагогические",3783,"Полустационарная форма социального обслуживания",0,"руб. за услугу","в организации социального обслуживания",243.71,"руб. за услугу",30]
["2.4.6.2 Консультирование ближайшего окружения ребенка по развитию игровой и продуктивной деятельности","2.4.6.2","Консультирование ближайшего окружения ребенка по развитию игровой и продуктивной деятельности","Социально-педагогические",3783,"Полустационарная форма социального обслуживания",0,"руб. за услугу","с использованием телекоммуникационных технологий, в том числе онлайн-платформ (Skype, WhatsApp, Zoom Video Communications, Viber)",243.71,"руб. за услугу",30]
["2.4.7.1 Консультирование по организации учебной деятельности несовершеннолетнего в домашних условиях","2.4.7.1","Консультирование по организации учебной деятельности несовершеннолетнего в домашних условиях","Социально-педагогические",3784,"Полустационарная форма социального обслуживания",0,"руб. за услугу","в организации социального обслуживания",243.71,"руб. за услугу",30]
["2.4.7.2 Консультирование по организации учебной деятельности несовершеннолетнего в домашних условиях","2.4.7.2","Консультирование по организации учебной деятельности несовершеннолетнего в домашних условиях","Социально-педагогические",3784,"Полустационарная форма социального обслуживания",0,"руб. за услугу","с использованием телекоммуникационных технологий, в том числе онлайн-платформ (Skype, WhatsApp, Zoom Video Communications, Viber)",243.71,"руб. за услугу",30]
["2.4.8 Обучение практическим навыкам общего ухода за тяжелобольными получателями социальных услуг, получателями социальных услуг, имеющими ограничения жизнедеятельности, в том числе за детьми-инвалидами","2.4.8","Обучение практическим навыкам общего ухода за тяжелобольными получателями социальных услуг, получателями социальных услуг, имеющими ограничения жизнедеятельности, в том числе за детьми-инвалидами","Социально-педагогические",3788,"Полустационарная форма социального обслуживания",0,"руб. за услугу",null,216.9,"руб. за услугу",30]
["2.4.9.1 Проведение логопедических занятий","2.4.9.1","Проведение логопедических занятий","Социально-педагогические",3795,"Полустационарная форма социального обслуживания",0,"руб. за услугу","в организации социального обслуживания",855.71,"руб. за услугу",45]
["2.4.9.2 Проведение логопедических занятий","2.4.9.2","Проведение логопедических занятий","Социально-педагогические",3795,"Полустационарная форма социального обслуживания",0,"руб. за услугу","с использованием телекоммуникационных технологий, в том числе онлайн-платформ (Skype, WhatsApp, Zoom Video Communications, Viber)",855.71,"руб. за услугу",45]
["2.6.1 Оказание помощи в оформлении документов и восстановлении утраченных документов получателя социальных услуг","2.6.1","Оказание помощи в оформлении документов и восстановлении утраченных документов получателя социальных услуг","Социально-правовые",3803,"Полустационарная форма социального обслуживания",0,"руб. за услугу",null,190.59,"руб. за услугу",30]
["2.6.2 Содействие в получении полиса обязательного медицинского страхования","2.6.2","Содействие в получении полиса обязательного медицинского страхования","Социально-правовые",3811,"Полустационарная форма социального обслуживания",0,"руб. за услугу",null,582.79,"руб. за услугу",90]
["2.6.3 Оформление исковых заявлений на лишение родительских прав либо восстановление в родительских правах","2.6.3","Оформление исковых заявлений на лишение родительских прав либо восстановление в родительских правах","Социально-правовые",3805,"Полустационарная форма социального обслуживания",0,"руб. за услугу",null,344.43,"руб. за услугу",45]
["2.6.4 Содействие в привлечении к уголовной ответственности подозреваемых в психическом и физическом насилии над получателем социальных услуг","2.6.4","Содействие в привлечении к уголовной ответственности подозреваемых в психическом и физическом насилии над получателем социальных услуг","Социально-правовые",3812,"Полустационарная форма социального обслуживания",0,"руб. за услугу",null,374.22,"руб. за услугу",60]
["2.6.5 Содействие в оформлении документов, необходимых для помещения в стационарную организацию социального обслуживания","2.6.5","Содействие в оформлении документов, необходимых для помещения в стационарную организацию социального обслуживания","Социально-правовые",3810,"Полустационарная форма социального обслуживания",0,"руб. за услугу",null,398.29,"руб. за услугу",45]
["2.6.6 Содействие в восстановлении утраченного (сохранении занимаемого) жилья, наследства","2.6.6","Содействие в восстановлении утраченного (сохранении занимаемого) жилья, наследства","Социально-правовые",3809,"Полустационарная форма социального обслуживания",0,"руб. за услугу",null,563.86,"руб. за услугу",90]
["2.6.7 Оказание помощи в получении юридических услуг (в том числе бесплатно)","2.6.7","Оказание помощи в получении юридических услуг (в том числе бесплатно)","Социально-правовые",3804,"Полустационарная форма социального обслуживания",0,"руб. за услугу",null,374.97,"руб. за услугу",60]
["2.6.8 Оказание помощи в защите прав и законных интересов получателя социальных услуг","2.6.8","Оказание помощи в защите прав и законных интересов получателя социальных услуг","Социально-правовые",3802,"Полустационарная форма социального обслуживания",0,"руб. за услугу",null,256.56,"руб. за услугу",40]
["2.3.1.1 Социально-психологическое консультирование (в том числе семейное консультирование)","2.3.1.1","Социально-психологическое консультирование (в том числе семейное консультирование)","Социально-психологические",3816,"Полустационарная форма социального обслуживания",0,"руб. за услугу","в организации социального обслуживания",379.39,"руб. за услугу",60]
["2.3.1.2 Социально-психологическое консультирование (в том числе семейное консультирование)","2.3.1.2","Социально-психологическое консультирование (в том числе семейное консультирование)","Социально-психологические",3816,"Полустационарная форма социального обслуживания",0,"руб. за услугу","с использованием телекоммуникационных технологий, в том числе онлайн-платформ (Skype, WhatsApp, Zoom Video Communications, Viber)",368.33,"руб. за услугу",60]
["2.3.2.1 Социально-психологический патронаж","2.3.2.1","Социально-психологический патронаж","Социально-психологические",3814,"Полустационарная форма социального обслуживания",0,"руб. за услугу","в организации социального обслуживания",505.54,"руб. за услугу",60]
["2.3.2.2 Социально-психологический патронаж","2.3.2.2","Социально-психологический патронаж","Социально-психологические",3814,"Полустационарная форма социального обслуживания",0,"руб. за услугу","с использованием телекоммуникационных технологий, в том числе онлайн-платформ (Skype, WhatsApp, Zoom Video Communications, Viber)",505.54,"руб. за услугу",60]
["2.3.3 Проведение социально-психологических тренингов","2.3.3","Проведение социально-психологических тренингов","Социально-психологические",3813,"Полустационарная форма социального обслуживания",0,"руб. за услугу",null,88.54,"руб. за услугу",90]
["2.5.1 Проведение мероприятий по использованию трудовых возможностей и обучению доступным профессиональным навыкам","2.5.1","Проведение мероприятий по использованию трудовых возможностей и обучению доступным профессиональным навыкам","Социально-трудовые",3820,"Полустационарная форма социального обслуживания",0,"руб. за услугу",null,899.23,"руб. за услугу",140]
["2.5.2 Профессиональная ориентация","2.5.2","Профессиональная ориентация","Социально-трудовые",3821,"Полустационарная форма социального обслуживания",0,"руб. за услугу",null,447.1,"руб. за услугу",60]
["2.5.3 Организация обучения в трудовых мастерских","2.5.3","Организация обучения в трудовых мастерских","Социально-трудовые",3818,"Полустационарная форма социального обслуживания",0,"руб. за услугу",null,143.63,"руб. за услугу",45]
["2.5.4 Организация помощи в получении образования, в том числе профессионального образования, инвалидами (детьми-инвалидами) в соответствии с их способностями","2.5.4","Организация помощи в получении образования, в том числе профессионального образования, инвалидами (детьми-инвалидами) в соответствии с их способностями","Социально-трудовые",3819,"Полустационарная форма социального обслуживания",0,"руб. за услугу",null,1611.84,"руб. за услугу",155]
["2.5.5 Содействие в получении образования и (или) профессии","2.5.5","Содействие в получении образования и (или) профессии","Социально-трудовые",3822,"Полустационарная форма социального обслуживания",0,"руб. за услугу",null,265.33999999999997,"руб. за услугу",30]
["2.5.6 Оказание помощи в трудоустройстве","2.5.6","Оказание помощи в трудоустройстве","Социально-трудовые",3817,"Полустационарная форма социального обслуживания",0,"руб. за услугу",null,266.83999999999997,"руб. за услугу",30]
["2.5.7 Содействие родственникам получателя социальных услуг в нахождении работы по гибкому графику","2.5.7","Содействие родственникам получателя социальных услуг в нахождении работы по гибкому графику","Социально-трудовые",3823,"Полустационарная форма социального обслуживания",0,"руб. за услугу",null,265.33999999999997,"руб. за услугу",30]
["2.7.1.1 Консультирование по вопросам социально-средовой реабилитации","2.7.1.1","Консультирование по вопросам социально-средовой реабилитации","Услуги в целях повышения коммуникативного потенциала получателей социальных услуг, имеющих ограничения жизнедеятельности, в том числе детей-инвалидов",3725,"Полустационарная форма социального обслуживания",0,"руб. за услугу","в организации социального обслуживания",472.16,"руб. за услугу",60]
["2.7.1.2 Консультирование по вопросам социально-средовой реабилитации","2.7.1.2","Консультирование по вопросам социально-средовой реабилитации","Услуги в целях повышения коммуникативного потенциала получателей социальных услуг, имеющих ограничения жизнедеятельности, в том числе детей-инвалидов",3725,"Полустационарная форма социального обслуживания",0,"руб. за услугу","с использованием телекоммуникационных технологий, в том числе онлайн-платформ (Skype, WhatsApp, Zoom Video Communications, Viber)",389.05,"руб. за услугу",60]
["2.7.2 Обучение навыкам социально-средовой ориентации (в том числе самостоятельному передвижению, включая изучение жизненно важных маршрутов передвижения)","2.7.2","Обучение навыкам социально-средовой ориентации (в том числе самостоятельному передвижению, включая изучение жизненно важных маршрутов передвижения)","Услуги в целях повышения коммуникативного потенциала получателей социальных услуг, имеющих ограничения жизнедеятельности, в том числе детей-инвалидов",3728,"Полустационарная форма социального обслуживания",0,"руб. за услугу",null,290.55,"руб. за услугу",45]
[{"$f":"CONCATENATE(B140,\" \",C140)","v":"2.7.3 Обучение инвалидов (детей-инвалидов) пользованию средствами ухода и техническими средствами реабилитации"},"2.7.3","Обучение инвалидов (детей-инвалидов) пользованию средствами ухода и техническими средствами реабилитации","Услуги в целях повышения коммуникативного потенциала получателей социальных услуг, имеющих ограничения жизнедеятельности, в том числе детей-инвалидов",3726,"Полустационарная форма социального обслуживания",0,"руб. за услугу",null,396.59,"руб. за услугу",45]
["2.7.4 Обучение навыкам (поддержание навыков) поведения в быту и общественных местах","2.7.4","Обучение навыкам (поддержание навыков) поведения в быту и общественных местах","Услуги в целях повышения коммуникативного потенциала получателей социальных услуг, имеющих ограничения жизнедеятельности, в том числе детей-инвалидов",3727,"Полустационарная форма социального обслуживания",0,"руб. за услугу",null,352.53,"руб. за услугу",40]
["2.7.5 Организация коммуникативного пространства и коммуникативных ситуаций по месту проживания (получения социальных услуг)","2.7.5","Организация коммуникативного пространства и коммуникативных ситуаций по месту проживания (получения социальных услуг)","Услуги в целях повышения коммуникативного потенциала получателей социальных услуг, имеющих ограничения жизнедеятельности, в том числе детей-инвалидов",3729,"Полустационарная форма социального обслуживания",0,"руб. за услугу",null,396.59,"руб. за услугу",45]
["2.7.6 Содействие в организации санаторно-курортного лечения или оздоровительного отдыха, предоставляемого в соответствии с действующим законодательством","2.7.6","Содействие в организации санаторно-курортного лечения или оздоровительного отдыха, предоставляемого в соответствии с действующим законодательством","Услуги в целях повышения коммуникативного потенциала получателей социальных услуг, имеющих ограничения жизнедеятельности, в том числе детей-инвалидов",3832,"Полустационарная форма социального обслуживания",0,"руб. за услугу",null,581.09,"руб. за услугу",0]
["2.7.7.1 Консультирование по вопросам оборудования специальными средствами и приспособлениями жилого помещения, занимаемого получателем социальных услуг (для инвалидов (детей-инвалидов), имеющих стойкие расстройства опорно-двигательного аппарата, зрения, слуха, умственные отклонения)","2.7.7.1","Консультирование по вопросам оборудования специальными средствами и приспособлениями жилого помещения, занимаемого получателем социальных услуг (для инвалидов (детей-инвалидов), имеющих стойкие расстройства опорно-двигательного аппарата, зрения, слуха, умственные отклонения)","Услуги в целях повышения коммуникативного потенциала получателей социальных услуг, имеющих ограничения жизнедеятельности, в том числе детей-инвалидов",3833,"Полустационарная форма социального обслуживания",0,"руб. за услугу","в организации социального обслуживания",387.39,"руб. за услугу",60]
["2.7.7.2 Консультирование по вопросам оборудования специальными средствами и приспособлениями жилого помещения, занимаемого получателем социальных услуг (для инвалидов (детей-инвалидов), имеющих стойкие расстройства опорно-двигательного аппарата, зрения, слуха, умственные отклонения)","2.7.7.2","Консультирование по вопросам оборудования специальными средствами и приспособлениями жилого помещения, занимаемого получателем социальных услуг (для инвалидов (детей-инвалидов), имеющих стойкие расстройства опорно-двигательного аппарата, зрения, слуха, умственные отклонения)","Услуги в целях повышения коммуникативного потенциала получателей социальных услуг, имеющих ограничения жизнедеятельности, в том числе детей-инвалидов",3833,"Полустационарная форма социального обслуживания",0,"руб. за услугу","с использованием телекоммуникационных технологий, в том числе онлайн-платформ (Skype, WhatsApp, Zoom Video Communications, Viber)",387.39,"руб. за услугу",60]
["2.7.8 Содействие в обеспечении техническими средствами реабилитации, предоставляемыми в соответствии с действующим законодательством либо за счет средств получателя социальных услуг","2.7.8","Содействие в обеспечении техническими средствами реабилитации, предоставляемыми в соответствии с действующим законодательством либо за счет средств получателя социальных услуг","Услуги в целях повышения коммуникативного потенциала получателей социальных услуг, имеющих ограничения жизнедеятельности, в том числе детей-инвалидов",3834,"Полустационарная форма социального обслуживания",0,"руб. за услугу",null,532.74,"руб. за услугу",60]
["2.7.9.1 Консультирование по вопросам самообслуживания и социально-бытовой адаптации","2.7.9.1","Консультирование по вопросам самообслуживания и социально-бытовой адаптации","Услуги в целях повышения коммуникативного потенциала получателей социальных услуг, имеющих ограничения жизнедеятельности, в том числе детей-инвалидов",3835,"Полустационарная форма социального обслуживания",0,"руб. за услугу","в организации социального обслуживания",156.82,"руб. за услугу",20]
["2.7.9.2 Консультирование по вопросам самообслуживания и социально-бытовой адаптации","2.7.9.2","Консультирование по вопросам самообслуживания и социально-бытовой адаптации","Услуги в целях повышения коммуникативного потенциала получателей социальных услуг, имеющих ограничения жизнедеятельности, в том числе детей-инвалидов",3835,"Полустационарная форма социального обслуживания",0,"руб. за услугу","с использованием телекоммуникационных технологий, в том числе онлайн-платформ (Skype, WhatsApp, Zoom Video Communications, Viber)",129.12,"руб. за услугу",20]
["3.1.1 Обеспечение площадью жилых помещений в соответствии с утвержденными нормативами","3.1.1","Обеспечение площадью жилых помещений в соответствии с утвержденными нормативами","Социально-бытовые",3742,"Стационарная форма социального обслуживания",326.14999999999998,"руб. за услугу",null,310.62,"руб. за услугу",30]
["3.1.10 Бритье (помощь в бритье) бороды и усов лицам, не способным по состоянию здоровья самостоятельно осуществлять за собой уход","3.1.10","Бритье (помощь в бритье) бороды и усов лицам, не способным по состоянию здоровья самостоятельно осуществлять за собой уход","Социально-бытовые",3730,"Стационарная форма социального обслуживания",89.87,"руб. за услугу",null,85.59,"руб. за услугу",10]
["3.1.11 Стрижка волос","3.1.11","Стрижка волос","Социально-бытовые",3771,"Стационарная форма социального обслуживания",196.72,"руб. за услугу",null,187.35,"руб. за услугу",30]
["3.1.12 Сопровождение на прогулках","3.1.12","Сопровождение на прогулках","Социально-бытовые",3770,"Стационарная форма социального обслуживания",1032.6600000000001,"руб. за услугу",null,983.49,"руб. за услугу",90]
["3.1.13 Обеспечение за счет средств получателя социальных услуг книгами, журналами, газетами, настольными играми","3.1.13","Обеспечение за счет средств получателя социальных услуг книгами, журналами, газетами, настольными играми","Социально-бытовые",3738,"Стационарная форма социального обслуживания",327.17,"руб. за услугу",null,311.58999999999997,"руб. за услугу",40]
["3.1.14 Отправка за счет средств получателя социальных услуг почтовой корреспонденции","3.1.14","Отправка за счет средств получателя социальных услуг почтовой корреспонденции","Социально-бытовые",3747,"Стационарная форма социального обслуживания",165.43,"руб. за услугу",null,157.55000000000001,"руб. за услугу",20]
["3.1.15 Создание условий (оказание помощи) молодым матерям по уходу за детьми младенческого возраста","3.1.15","Создание условий (оказание помощи) молодым матерям по уходу за детьми младенческого возраста","Социально-бытовые",3766,"Стационарная форма социального обслуживания",313.33,"руб. за услугу",null,298.41000000000003,"руб. за услугу",30]
["3.1.16 Помощь при подготовке вещей для выезда на отдых за пределы города","3.1.16","Помощь при подготовке вещей для выезда на отдых за пределы города","Социально-бытовые",3753,"Стационарная форма социального обслуживания",261.3,"руб. за услугу",null,248.86,"руб. за услугу",30]
["3.1.17 Сдача за счет средств получателя социальных услуг вещей в стирку, химчистку, ремонт, обратная их доставка","3.1.17","Сдача за счет средств получателя социальных услуг вещей в стирку, химчистку, ремонт, обратная их доставка","Социально-бытовые",3756,"Стационарная форма социального обслуживания",181.45,"руб. за услугу",null,172.81,"руб. за услугу",20]
["3.1.18 Оповещение родственников","3.1.18","Оповещение родственников","Социально-бытовые",3744,"Стационарная форма социального обслуживания",216.77,"руб. за услугу",null,206.45,"руб. за услугу",20]
["3.1.19 Организация (содействие в оказании) ритуальных услуг","3.1.19","Организация (содействие в оказании) ритуальных услуг","Социально-бытовые",3745,"Стационарная форма социального обслуживания",650.32000000000005,"руб. за услугу",null,619.35,"руб. за услугу",60]
["3.1.2.1 Обеспечение мягким инвентарем (одеждой, обувью, нательным бельем и постельными принадлежностями) в соответствии с утвержденными нормативами*:","3.1.2.1","Обеспечение мягким инвентарем (одеждой, обувью, нательным бельем и постельными принадлежностями) в соответствии с утвержденными нормативами*:","Социально-бытовые",3740,"Стационарная форма социального обслуживания",169.74,"руб. за услугу","граждан пожилого возраста, граждан трудоспособного возраста и инвалидов трудоспособного возраста",161.66,"руб. за услугу",20]
["3.1.2.2 Обеспечение мягким инвентарем (одеждой, обувью, нательным бельем и постельными принадлежностями) в соответствии с утвержденными нормативами*:","3.1.2.2","Обеспечение мягким инвентарем (одеждой, обувью, нательным бельем и постельными принадлежностями) в соответствии с утвержденными нормативами*:","Социально-бытовые",3740,"Стационарная форма социального обслуживания",169.74,"руб. за услугу","граждан пожилого возраста и инвалидов трудоспособного возраста, проживающих в отделениях милосердия",161.66,"руб. за услугу",20]
["3.1.2.3 Обеспечение мягким инвентарем (одеждой, обувью, нательным бельем и постельными принадлежностями) в соответствии с утвержденными нормативами*:","3.1.2.3","Обеспечение мягким инвентарем (одеждой, обувью, нательным бельем и постельными принадлежностями) в соответствии с утвержденными нормативами*:","Социально-бытовые",3740,"Стационарная форма социального обслуживания",153.18,"руб. за услугу","детей-инвалидов, детей-сирот и детей, оставшихся без попечения родителей, несовершеннолетних, находящихся в сложной жизненной ситуации, школьного возраста",145.88999999999999,"руб. за услугу",20]
["3.1.2.4 Обеспечение мягким инвентарем (одеждой, обувью, нательным бельем и постельными принадлежностями) в соответствии с утвержденными нормативами*:","3.1.2.4","Обеспечение мягким инвентарем (одеждой, обувью, нательным бельем и постельными принадлежностями) в соответствии с утвержденными нормативами*:","Социально-бытовые",3740,"Стационарная форма социального обслуживания",153.18,"руб. за услугу","детей-инвалидов, детей-сирот и детей, оставшихся без попечения родителей, несовершеннолетних, находящихся в сложной жизненной ситуации, дошкольного возраста",145.88999999999999,"руб. за услугу",20]
["3.1.2.5 Обеспечение мягким инвентарем (одеждой, обувью, нательным бельем и постельными принадлежностями) в соответствии с утвержденными нормативами*:","3.1.2.5","Обеспечение мягким инвентарем (одеждой, обувью, нательным бельем и постельными принадлежностями) в соответствии с утвержденными нормативами*:","Социально-бытовые",3740,"Стационарная форма социального обслуживания",153.18,"руб. за услугу","детей-инвалидов, детей-сирот и детей, оставшихся без попечения родителей, несовершеннолетних, находящихся в сложной жизненной ситуации, проживающих в отделениях милосердия, школьного возраста",145.88999999999999,"руб. за услугу",20]
["3.1.2.6 Обеспечение мягким инвентарем (одеждой, обувью, нательным бельем и постельными принадлежностями) в соответствии с утвержденными нормативами*:","3.1.2.6","Обеспечение мягким инвентарем (одеждой, обувью, нательным бельем и постельными принадлежностями) в соответствии с утвержденными нормативами*:","Социально-бытовые",3740,"Стационарная форма социального обслуживания",153.18,"руб. за услугу","детей-инвалидов, детей-сирот и детей, оставшихся без попечения родителей, несовершеннолетних, находящихся в сложной жизненной ситуации, проживающих в отделениях милосердия, дошкольного возраста",145.88999999999999,"руб. за услугу",20]
["3.1.2.7 Обеспечение мягким инвентарем (одеждой, обувью, нательным бельем и постельными принадлежностями) в соответствии с утвержденными нормативами*:","3.1.2.7","Обеспечение мягким инвентарем (одеждой, обувью, нательным бельем и постельными принадлежностями) в соответствии с утвержденными нормативами*:","Социально-бытовые",3740,"Стационарная форма социального обслуживания",120.25,"руб. за услугу","женщин, находящихся в трудной жизненной ситуации или социально опасном положении, в том числе несовершеннолетних беременных",114.52,"руб. за услугу",20]
["3.1.2.8 Обеспечение мягким инвентарем (одеждой, обувью, нательным бельем и постельными принадлежностями) в соответствии с утвержденными нормативами*:","3.1.2.8","Обеспечение мягким инвентарем (одеждой, обувью, нательным бельем и постельными принадлежностями) в соответствии с утвержденными нормативами*:","Социально-бытовые",3740,"Стационарная форма социального обслуживания",120.25,"руб. за услугу","женщин с детьми в возрасте до трех лет, находящихся в трудной жизненной ситуации или социально опасном положении, в том числе несовершеннолетних матерей с младенцами",114.52,"руб. за услугу",20]
["3.1.2.9 Обеспечение мягким инвентарем (одеждой, обувью, нательным бельем и постельными принадлежностями) в соответствии с утвержденными нормативами*:","3.1.2.9","Обеспечение мягким инвентарем (одеждой, обувью, нательным бельем и постельными принадлежностями) в соответствии с утвержденными нормативами*:","Социально-бытовые",3740,"Стационарная форма социального обслуживания",120.25,"руб. за услугу","женщин с детьми старше трех лет, находящихся в трудной жизненной ситуации или социально опасном положении",114.52,"руб. за услугу",20]
["3.1.3.1 Обеспечение питанием согласно утвержденным нормативам:","3.1.3.1","Обеспечение питанием согласно утвержденным нормативам:","Социально-бытовые",3741,"Стационарная форма социального обслуживания",532.91999999999996,"руб. в день за услугу","граждан пожилого возраста и инвалидов в организациях социального обслуживания населения, за исключением психоневрологических интернатов",507.54,"руб. в день за услугу",1]
["3.1.3.10 Обеспечение питанием согласно утвержденным нормативам:","3.1.3.10","Обеспечение питанием согласно утвержденным нормативам:","Социально-бытовые",3741,"Стационарная форма социального обслуживания",184.16,"руб. в день за услугу","детей в возрасте 0-2 мес. первого года жизни, проживающих с матерями - получателями социальных услуг в организациях социального обслуживания населения",175.39,"руб. в день за услугу",1]
["3.1.3.11 Обеспечение питанием согласно утвержденным нормативам:","3.1.3.11","Обеспечение питанием согласно утвержденным нормативам:","Социально-бытовые",3741,"Стационарная форма социального обслуживания",206.17,"руб. в день за услугу","детей в возрасте 2-3 мес. первого года жизни, проживающих с матерями - получателями социальных услуг в организациях социального обслуживания населения",196.35,"руб. в день за услугу",1]
["3.1.3.12 Обеспечение питанием согласно утвержденным нормативам:","3.1.3.12","Обеспечение питанием согласно утвержденным нормативам:","Социально-бытовые",3741,"Стационарная форма социального обслуживания",272.64,"руб. в день за услугу","детей в возрасте 4 мес. первого года жизни, проживающих с матерями - получателями социальных услуг в организациях социального обслуживания населения",259.66000000000003,"руб. в день за услугу",1]
["3.1.3.13 Обеспечение питанием согласно утвержденным нормативам:","3.1.3.13","Обеспечение питанием согласно утвержденным нормативам:","Социально-бытовые",3741,"Стационарная форма социального обслуживания",357.47,"руб. в день за услугу","детей в возрасте 5 мес. первого года жизни, проживающих с матерями - получателями социальных услуг в организациях социального обслуживания населения",340.45,"руб. в день за услугу",1]
["3.1.3.15 Обеспечение питанием согласно утвержденным нормативам:","3.1.3.15","Обеспечение питанием согласно утвержденным нормативам:","Социально-бытовые",3741,"Стационарная форма социального обслуживания",362.25,"руб. в день за услугу","детей в возрасте 7 мес. первого года жизни, проживающих с матерями - получателями социальных услуг в организациях социального обслуживания населения",345,"руб. в день за услугу",1]
["3.1.3.16 Обеспечение питанием согласно утвержденным нормативам:","3.1.3.16","Обеспечение питанием согласно утвержденным нормативам:","Социально-бытовые",3741,"Стационарная форма социального обслуживания",425.67,"руб. в день за услугу","детей в возрасте 8 мес. первого года жизни, проживающих с матерями - получателями социальных услуг в организациях социального обслуживания населения",405.4,"руб. в день за услугу",1]
["3.1.3.17 Обеспечение питанием согласно утвержденным нормативам:","3.1.3.17","Обеспечение питанием согласно утвержденным нормативам:","Социально-бытовые",3741,"Стационарная форма социального обслуживания",582.21,"руб. в день за услугу","детей в возрасте 9-12 мес. первого года жизни, проживающих с матерями - получателями социальных услуг в организациях социального обслуживания населения",554.49,"руб. в день за услугу",1]
["3.1.3.18 Обеспечение питанием согласно утвержденным нормативам:","3.1.3.18","Обеспечение питанием согласно утвержденным нормативам:","Социально-бытовые",3741,"Стационарная форма социального обслуживания",477.71,"руб. в день за услугу","детей в возрасте от 12 до 18 мес. в организациях социального обслуживания населения",454.96,"руб. в день за услугу",1]
["3.1.3.19 Обеспечение питанием согласно утвержденным нормативам:","3.1.3.19","Обеспечение питанием согласно утвержденным нормативам:","Социально-бытовые",3741,"Стационарная форма социального обслуживания",403.42,"руб. в день за услугу","детей в возрасте от 18 мес. до 3 лет в организациях социального обслуживания населения",384.21,"руб. в день за услугу",1]
["3.1.3.2 Обеспечение питанием согласно утвержденным нормативам:","3.1.3.2","Обеспечение питанием согласно утвержденным нормативам:","Социально-бытовые",3741,"Стационарная форма социального обслуживания",533.54999999999995,"руб. в день за услугу","граждан пожилого возраста и инвалидов с заболеванием сахарным диабетом в организациях социального обслуживания населения, за исключением психоневрологических интернатов",508.14,"руб. в день за услугу",1]
["3.1.3.20 Обеспечение питанием согласно утвержденным нормативам:","3.1.3.20","Обеспечение питанием согласно утвержденным нормативам:","Социально-бытовые",3741,"Стационарная форма социального обслуживания",466.08,"руб. в день за услугу","детей в возрасте от 3 до 7 лет в организациях социального обслуживания населения",443.89,"руб. в день за услугу",1]
["3.1.3.21 Обеспечение питанием согласно утвержденным нормативам:","3.1.3.21","Обеспечение питанием согласно утвержденным нормативам:","Социально-бытовые",3741,"Стационарная форма социального обслуживания",581.74,"руб. в день за услугу","детей в возрасте от 7 до 11 лет в организациях социального обслуживания населения",554.04,"руб. в день за услугу",1]
["3.1.3.22 Обеспечение питанием согласно утвержденным нормативам:","3.1.3.22","Обеспечение питанием согласно утвержденным нормативам:","Социально-бытовые",3741,"Стационарная форма социального обслуживания",648.98,"руб. в день за услугу","детей в возрасте от 12 до 18 лет, лиц из числа детей-сирот и детей, оставшихся без попечения родителей, в возрасте от 18 до 23 лет и старше в организациях социального обслуживания населения",618.08000000000004,"руб. в день за услугу",1]
["3.1.3.23.1 Обеспечение питанием согласно утвержденным нормативам:","3.1.3.23.1","Обеспечение питанием согласно утвержденным нормативам:","Социально-бытовые",3741,"Стационарная форма социального обслуживания",25.56,"руб. в день за услугу","детей в возрасте от 4 лет и старше, специализированным лечебным сбалансированным энтеральным питанием в организациях социального обслуживания населения (находящихся на длительном зондовом питании)",24.34,"руб. в день за услугу",1]
["3.1.3.23.2 Обеспечение питанием согласно утвержденным нормативам:","3.1.3.23.2","Обеспечение питанием согласно утвержденным нормативам:","Социально-бытовые",3741,"Стационарная форма социального обслуживания",365.25,"руб. в день за услугу","детей в возрасте от 4 лет и старше, специализированным лечебным сбалансированным энтеральным питанием в организациях социального обслуживания населения (по медицинским показаниям нуждающихся в сухой адаптированной молочной смеси специального назначения (а",347.86,"руб. в день за услугу",1]
["3.1.3.24 Обеспечение питанием согласно утвержденным нормативам:","3.1.3.24","Обеспечение питанием согласно утвержденным нормативам:","Социально-бытовые",3741,"Стационарная форма социального обслуживания",10572.38,"руб. в месяц за услугу","граждан трудоспособного возраста в организациях социального обслуживания населения",10068.93,"руб. в месяц за услугу",1]
["3.1.3.3 Обеспечение питанием согласно утвержденным нормативам:","3.1.3.3","Обеспечение питанием согласно утвержденным нормативам:","Социально-бытовые",3741,"Стационарная форма социального обслуживания",410.12,"руб. в день за услугу","граждан пожилого возраста и инвалидов с заболеванием желудочно-кишечного тракта в организациях социального обслуживания населения, за исключением психоневрологических интернатов",390.59,"руб. в день за услугу",1]
["3.1.3.4 Обеспечение питанием согласно утвержденным нормативам:","3.1.3.4","Обеспечение питанием согласно утвержденным нормативам:","Социально-бытовые",3741,"Стационарная форма социального обслуживания",544.39,"руб. в день за услугу","граждан пожилого возраста и инвалидов в организациях социального обслуживания населения - психоневрологических интернатах",518.47,"руб. в день за услугу",1]
["3.1.3.5 Обеспечение питанием согласно утвержденным нормативам:","3.1.3.5","Обеспечение питанием согласно утвержденным нормативам:","Социально-бытовые",3741,"Стационарная форма социального обслуживания",533.54999999999995,"руб. в день за услугу","граждан пожилого возраста и инвалидов с заболеванием сахарным диабетом в организациях социального обслуживания населения - психоневрологических интернатах",508.14,"руб. в день за услугу",1]
["3.1.3.6 Обеспечение питанием согласно утвержденным нормативам:","3.1.3.6","Обеспечение питанием согласно утвержденным нормативам:","Социально-бытовые",3741,"Стационарная форма социального обслуживания",466.8,"руб. в день за услугу","граждан пожилого возраста и инвалидов (без смеси белково-композитной сухой) в организациях социального обслуживания населения - психоневрологических интернатах",444.57,"руб. в день за услугу",1]
["3.1.3.7 Обеспечение питанием согласно утвержденным нормативам:","3.1.3.7","Обеспечение питанием согласно утвержденным нормативам:","Социально-бытовые",3741,"Стационарная форма социального обслуживания",410.12,"руб. в день за услугу","граждан пожилого возраста и инвалидов с заболеванием желудочно-кишечного тракта в организациях социального обслуживания населения - психоневрологических интернатах",390.59,"руб. в день за услугу",1]
["3.1.3.8 Обеспечение питанием согласно утвержденным нормативам:","3.1.3.8","Обеспечение питанием согласно утвержденным нормативам:","Социально-бытовые",3741,"Стационарная форма социального обслуживания",510.43,"руб. в день за услугу","беременных женщин в организациях социального обслуживания населения",486.12,"руб. в день за услугу",1]
["3.1.3.9 Обеспечение питанием согласно утвержденным нормативам:","3.1.3.9","Обеспечение питанием согласно утвержденным нормативам:","Социально-бытовые",3741,"Стационарная форма социального обслуживания",473.76,"руб. в день за услугу","кормящих матерей в организациях социального обслуживания населения",451.2,"руб. в день за услугу",1]
["3.1.4 Помощь в приеме пищи (кормление)","3.1.4","Помощь в приеме пищи (кормление)","Социально-бытовые",3752,"Стационарная форма социального обслуживания",263.88,"руб. за услугу",null,251.31,"руб. за услугу",30]
["3.1.5 Помощь в одевании и переодевании лицам, не способным по состоянию здоровья самостоятельно осуществлять за собой уход","3.1.5","Помощь в одевании и переодевании лицам, не способным по состоянию здоровья самостоятельно осуществлять за собой уход","Социально-бытовые",3750,"Стационарная форма социального обслуживания",349.3,"руб. за услугу",null,332.67,"руб. за услугу",20]
["3.1.6 Смена подгузников и абсорбирующего белья лицам, не способным по состоянию здоровья самостоятельно осуществлять за собой уход","3.1.6","Смена подгузников и абсорбирующего белья лицам, не способным по состоянию здоровья самостоятельно осуществлять за собой уход","Социально-бытовые",3758,"Стационарная форма социального обслуживания",163.94,"руб. за услугу",null,156.13,"руб. за услугу",10]
["3.1.7 Предоставление гигиенических услуг лицам, не способным по состоянию здоровья самостоятельно осуществлять за собой уход","3.1.7","Предоставление гигиенических услуг лицам, не способным по состоянию здоровья самостоятельно осуществлять за собой уход","Социально-бытовые",3754,"Стационарная форма социального обслуживания",172.24,"руб. за услугу",null,164.04,"руб. за услугу",20]
["3.1.8 Сопровождение в туалет или высаживание на судно лиц, не способных по состоянию здоровья самостоятельно осуществлять за собой уход","3.1.8","Сопровождение в туалет или высаживание на судно лиц, не способных по состоянию здоровья самостоятельно осуществлять за собой уход","Социально-бытовые",3767,"Стационарная форма социального обслуживания",95.16,"руб. за услугу",null,90.63,"руб. за услугу",10]
["3.1.9 Мытье (помощь в мытье) лиц, не способных по состоянию здоровья самостоятельно осуществлять за собой уход","3.1.9","Мытье (помощь в мытье) лиц, не способных по состоянию здоровья самостоятельно осуществлять за собой уход","Социально-бытовые",3736,"Стационарная форма социального обслуживания",195.76,"руб. за услугу",null,186.44,"руб. за услугу",20]
["3.13.14 Обеспечение питанием согласно утвержденным нормативам:","3.13.14","Обеспечение питанием согласно утвержденным нормативам:","Социально-бытовые",3741,"Стационарная форма социального обслуживания",261.60000000000002,"руб. в день за услугу","детей в возрасте 6 мес. первого года жизни, проживающих с матерями - получателями социальных услуг в организациях социального обслуживания населения",249.14,"руб. в день за услугу",1]
["3.2.1 Консультирование по социально-медицинским вопросам","3.2.1","Консультирование по социально-медицинским вопросам","Социально-медицинские",3774,"Стационарная форма социального обслуживания",220.92,"руб. за услугу",null,210.4,"руб. за услугу",20]
["3.2.10 Профилактика образования пролежней, проведение обработки пролежней","3.2.10","Профилактика образования пролежней, проведение обработки пролежней","Социально-медицинские",3837,"Стационарная форма социального обслуживания",405.45,"руб. за услугу",null,386.14,"руб. за услугу",20]
[{"$f":"CONCATENATE(B202,\" \",C202)","v":"3.2.2 Систематическое наблюдение за получателем социальных услуг в целях выявления отклонений в состоянии его здоровья"},"3.2.2","Систематическое наблюдение за получателем социальных услуг в целях выявления отклонений в состоянии его здоровья","Социально-медицинские",3780,"Стационарная форма социального обслуживания",482.98,"руб. за услугу",null,459.98,"руб. за услугу",50]
["3.2.3 Выполнение процедур, связанных с организацией ухода, лицам, не способным по состоянию здоровья самостоятельно осуществлять за собой уход","3.2.3","Выполнение процедур, связанных с организацией ухода, лицам, не способным по состоянию здоровья самостоятельно осуществлять за собой уход","Социально-медицинские",3836,"Стационарная форма социального обслуживания",598.98,"руб. за услугу",null,570.46,"руб. за услугу",60]
["3.2.4 Обеспечение приема получателем социальных услуг лекарственных средств в соответствии с назначением врача","3.2.4","Обеспечение приема получателем социальных услуг лекарственных средств в соответствии с назначением врача","Социально-медицинские",3775,"Стационарная форма социального обслуживания",96.24,"руб. за услугу",null,91.66,"руб. за услугу",10]
["3.2.5 Содействие в получении медицинской помощи в соответствии с действующим законодательством","3.2.5","Содействие в получении медицинской помощи в соответствии с действующим законодательством","Социально-медицинские",3781,"Стационарная форма социального обслуживания",896.94,"руб. за услугу",null,854.23,"руб. за услугу",90]
["3.2.6 Проведение мероприятий, направленных на формирование здорового образа жизни","3.2.6","Проведение мероприятий, направленных на формирование здорового образа жизни","Социально-медицинские",3778,"Стационарная форма социального обслуживания",366.95,"руб. за услугу",null,349.48,"руб. за услугу",45]
["3.2.7 Проведение лечебно-оздоровительных мероприятий (в том числе с использованием реабилитационного оборудования)","3.2.7","Проведение лечебно-оздоровительных мероприятий (в том числе с использованием реабилитационного оборудования)","Социально-медицинские",3777,"Стационарная форма социального обслуживания",449.1,"руб. за услугу",null,427.71,"руб. за услугу",30]
["3.2.8 Проведение занятий по адаптивной физической культуре","3.2.8","Проведение занятий по адаптивной физической культуре","Социально-медицинские",3776,"Стационарная форма социального обслуживания",450.92,"руб. за услугу",null,429.45,"руб. за услугу",45]
["3.2.9 Санитарная обработка (обработка волосистых поверхностей тела дезинфицирующими растворами от педикулеза, помывка)","3.2.9","Санитарная обработка (обработка волосистых поверхностей тела дезинфицирующими растворами от педикулеза, помывка)","Социально-медицинские",3779,"Стационарная форма социального обслуживания",393.6,"руб. за услугу",null,374.86,"руб. за услугу",30]
["3.4.1 Консультирование получателя социальных услуг и (или) ближайшего окружения получателя социальных услуг по вопросам социальной реабилитации","3.4.1","Консультирование получателя социальных услуг и (или) ближайшего окружения получателя социальных услуг по вопросам социальной реабилитации","Социально-педагогические",3785,"Стационарная форма социального обслуживания",0,"руб. за услугу",null,252.72,"руб. за услугу",30]
["3.4.10 Формирование позитивных интересов (в том числе в сфере досуга)","3.4.10","Формирование позитивных интересов (в том числе в сфере досуга)","Социально-педагогические",3798,"Стационарная форма социального обслуживания",0,"руб. за услугу",null,1271.48,"руб. за услугу",150]
["3.4.11 Проведение занятий в соответствии с разработанным индивидуальным социально-педагогическим планом (сенсорное развитие, предметно-практическая деятельность, социально-бытовая ориентация, изодеятельность, арт-терапия, игровая деятельность, музыкальные занятия, спортивные, досуговые, экскурсионные мероприятия), в том числе групповых","3.4.11","Проведение занятий в соответствии с разработанным индивидуальным социально-педагогическим планом (сенсорное развитие, предметно-практическая деятельность, социально-бытовая ориентация, изодеятельность, арт-терапия, игровая деятельность, музыкальные занятия, спортивные, досуговые, экскурсионные мероприятия), в том числе групповых","Социально-педагогические",3794,"Стационарная форма социального обслуживания",0,"руб. за услугу",null,80.180000000000007,"руб. за услугу",45]
["3.4.12 Оказание помощи в обучении навыкам компьютерной грамотности","3.4.12","Оказание помощи в обучении навыкам компьютерной грамотности","Социально-педагогические",3790,"Стационарная форма социального обслуживания",0,"руб. за услугу",null,70.23,"руб. за услугу",45]
["3.4.13 Организация досуга (в том числе сопровождение на социокультурные мероприятия)","3.4.13","Организация досуга (в том числе сопровождение на социокультурные мероприятия)","Социально-педагогические",3791,"Стационарная форма социального обслуживания",0,"руб. за услугу",null,132.47,"руб. за услугу",90]
["3.4.14 Организация летнего отдыха","3.4.14","Организация летнего отдыха","Социально-педагогические",3792,"Стационарная форма социального обслуживания",0,"руб. за услугу",null,1168.08,"руб. за услугу",120]
["3.4.15 Чтение журналов, газет, книг","3.4.15","Чтение журналов, газет, книг","Социально-педагогические",3799,"Стационарная форма социального обслуживания",0,"руб. за услугу",null,655.66,"руб. за услугу",60]
["3.4.2 Социально-педагогическая коррекция, включая диагностику и консультирование","3.4.2","Социально-педагогическая коррекция, включая диагностику и консультирование","Социально-педагогические",3796,"Стационарная форма социального обслуживания",0,"руб. за услугу",null,1394.03,"руб. за услугу",350]
["3.4.3 Социально-педагогический патронаж","3.4.3","Социально-педагогический патронаж","Социально-педагогические",3797,"Стационарная форма социального обслуживания",0,"руб. за услугу",null,773.06,"руб. за услугу",90]
["3.4.4 Обучение родительским функциям","3.4.4","Обучение родительским функциям","Социально-педагогические",3789,"Стационарная форма социального обслуживания",0,"руб. за услугу",null,733.9,"руб. за услугу",45]
["3.4.5 Обучение матери созданию социально-бытовой среды для развития ребенка","3.4.5","Обучение матери созданию социально-бытовой среды для развития ребенка","Социально-педагогические",3787,"Стационарная форма социального обслуживания",0,"руб. за услугу",null,354.78,"руб. за услугу",45]
["3.4.6 Консультирование ближайшего окружения ребенка по развитию игровой и продуктивной деятельности","3.4.6","Консультирование ближайшего окружения ребенка по развитию игровой и продуктивной деятельности","Социально-педагогические",3783,"Стационарная форма социального обслуживания",0,"руб. за услугу",null,252.72,"руб. за услугу",30]
["3.4.7 Консультирование по организации учебной деятельности несовершеннолетнего в домашних условиях","3.4.7","Консультирование по организации учебной деятельности несовершеннолетнего в домашних условиях","Социально-педагогические",3784,"Стационарная форма социального обслуживания",0,"руб. за услугу",null,243.71,"руб. за услугу",30]
["3.4.8 Занятия по подготовке к жизни в семье","3.4.8","Занятия по подготовке к жизни в семье","Социально-педагогические",3782,"Стационарная форма социального обслуживания",0,"руб. за услугу",null,222.85,"руб. за услугу",30]
["3.4.9 Проведение логопедических занятий","3.4.9","Проведение логопедических занятий","Социально-педагогические",3795,"Стационарная форма социального обслуживания",0,"руб. за услугу",null,786.46,"руб. за услугу",45]
["3.6.1 Оказание помощи в оформлении документов и восстановлении утраченных документов получателя социальных услуг","3.6.1","Оказание помощи в оформлении документов и восстановлении утраченных документов получателя социальных услуг","Социально-правовые",3803,"Стационарная форма социального обслуживания",0,"руб. за услугу",null,230.58,"руб. за услугу",30]
["3.6.10 Оказание помощи в получении юридических услуг (в том числе бесплатно)","3.6.10","Оказание помощи в получении юридических услуг (в том числе бесплатно)","Социально-правовые",3804,"Стационарная форма социального обслуживания",0,"руб. за услугу",null,454.96,"руб. за услугу",60]
["3.6.11 Оказание помощи в защите прав и законных интересов получателя социальных услуг","3.6.11","Оказание помощи в защите прав и законных интересов получателя социальных услуг","Социально-правовые",3802,"Стационарная форма социального обслуживания",0,"руб. за услугу",null,306.13,"руб. за услугу",40]
["3.6.2 Содействие в получении полиса обязательного медицинского страхования","3.6.2","Содействие в получении полиса обязательного медицинского страхования","Социально-правовые",3811,"Стационарная форма социального обслуживания",0,"руб. за услугу",null,700.65,"руб. за услугу",90]
["3.6.3 Оформление исковых заявлений на лишение родительских прав либо восстановление в родительских правах","3.6.3","Оформление исковых заявлений на лишение родительских прав либо восстановление в родительских правах","Социально-правовые",3805,"Стационарная форма социального обслуживания",0,"руб. за услугу",null,344.43,"руб. за услугу",45]
["3.6.4 Содействие в привлечении к уголовной ответственности подозреваемых в психическом и физическом насилии над получателем социальных услуг","3.6.4","Содействие в привлечении к уголовной ответственности подозреваемых в психическом и физическом насилии над получателем социальных услуг","Социально-правовые",3812,"Стационарная форма социального обслуживания",0,"руб. за услугу",null,454.21,"руб. за услугу",60]
["3.6.5 Содействие в оформлении документов, необходимых для помещения в стационарную организацию социального обслуживания","3.6.5","Содействие в оформлении документов, необходимых для помещения в стационарную организацию социального обслуживания","Социально-правовые",3810,"Стационарная форма социального обслуживания",0,"руб. за услугу",null,467.66,"руб. за услугу",60]
["3.6.6 Подготовка документов в государственные или муниципальные органы, организации и (или) суды","3.6.6","Подготовка документов в государственные или муниципальные органы, организации и (или) суды","Социально-правовые",3807,"Стационарная форма социального обслуживания",0,"руб. за услугу",null,467.66,"руб. за услугу",60]
["3.6.7 Контроль соблюдения имущественных прав получателя социальных услуг","3.6.7","Контроль соблюдения имущественных прав получателя социальных услуг","Социально-правовые",3801,"Стационарная форма социального обслуживания",0,"руб. за услугу",null,239.5,"руб. за услугу",30]
["3.6.8 Оформление сберегательных вкладов","3.6.8","Оформление сберегательных вкладов","Социально-правовые",3806,"Стационарная форма социального обслуживания",0,"руб. за услугу",null,233.93,"руб. за услугу",30]
["3.6.9 Содействие в восстановлении утраченного (сохранении занимаемого) жилья, наследства","3.6.9","Содействие в восстановлении утраченного (сохранении занимаемого) жилья, наследства","Социально-правовые",3809,"Стационарная форма социального обслуживания",0,"руб. за услугу",null,683.85,"руб. за услугу",90]
["3.3.1 Социально-психологическое консультирование (в том числе семейное консультирование)","3.3.1","Социально-психологическое консультирование (в том числе семейное консультирование)","Социально-психологические",3816,"Стационарная форма социального обслуживания",0,"руб. за услугу",null,670.91,"руб. за услугу",90]
["3.3.2 Социально-психологический патронаж","3.3.2","Социально-психологический патронаж","Социально-психологические",3814,"Стационарная форма социального обслуживания",0,"руб. за услугу",null,658.73,"руб. за услугу",90]
["3.3.3 Проведение социально-психологических тренингов","3.3.3","Проведение социально-психологических тренингов","Социально-психологические",3813,"Стационарная форма социального обслуживания",0,"руб. за услугу",null,81.34,"руб. за услугу",60]
["3.5.1 Проведение мероприятий по использованию трудовых возможностей и обучению доступным профессиональным навыкам","3.5.1","Проведение мероприятий по использованию трудовых возможностей и обучению доступным профессиональным навыкам","Социально-трудовые",3820,"Стационарная форма социального обслуживания",0,"руб. за услугу",null,860.47,"руб. за услугу",140]
["3.5.2 Профессиональная ориентация","3.5.2","Профессиональная ориентация","Социально-трудовые",3821,"Стационарная форма социального обслуживания",0,"руб. за услугу",null,504.51,"руб. за услугу",60]
["3.5.3 Организация обучения в трудовых мастерских","3.5.3","Организация обучения в трудовых мастерских","Социально-трудовые",3818,"Стационарная форма социального обслуживания",0,"руб. за услугу",null,106.93,"руб. за услугу",45]
[{"$f":"CONCATENATE(B242,\" \",C242)","v":"3.5.4 Организация помощи в получении образования, в том числе профессионального образования, инвалидами (детьми-инвалидами) в соответствии с их способностями"},"3.5.4","Организация помощи в получении образования, в том числе профессионального образования, инвалидами (детьми-инвалидами) в соответствии с их способностями","Социально-трудовые",3819,"Стационарная форма социального обслуживания",0,"руб. за услугу",null,1885.99,"руб. за услугу",185]
["3.5.5 Содействие в получении образования и (или) профессии","3.5.5","Содействие в получении образования и (или) профессии","Социально-трудовые",3822,"Стационарная форма социального обслуживания",0,"руб. за услугу",null,503,"руб. за услугу",60]
["3.5.6 Оказание помощи в трудоустройстве","3.5.6","Оказание помощи в трудоустройстве","Социально-трудовые",3817,"Стационарная форма социального обслуживания",0,"руб. за услугу",null,235.43,"руб. за услугу",30]
["3.7.1 Консультирование по вопросам социально-средовой реабилитации","3.7.1","Консультирование по вопросам социально-средовой реабилитации","Услуги в целях повышения коммуникативного потенциала получателей социальных услуг, имеющих ограничения жизнедеятельности, в том числе детей-инвалидов",3725,"Стационарная форма социального обслуживания",0,"руб. за услугу",null,503.75,"руб. за услугу",60]
["3.7.2 Обучение навыкам социально-средовой ориентации (в том числе самостоятельному передвижению, включая изучение жизненно важных маршрутов передвижения)","3.7.2","Обучение навыкам социально-средовой ориентации (в том числе самостоятельному передвижению, включая изучение жизненно важных маршрутов передвижения)","Услуги в целях повышения коммуникативного потенциала получателей социальных услуг, имеющих ограничения жизнедеятельности, в том числе детей-инвалидов",3728,"Стационарная форма социального обслуживания",0,"руб. за услугу",null,349.48,"руб. за услугу",45]
["3.7.3 Обучение инвалидов (детей-инвалидов) пользованию средствами ухода и техническими средствами реабилитации","3.7.3","Обучение инвалидов (детей-инвалидов) пользованию средствами ухода и техническими средствами реабилитации","Услуги в целях повышения коммуникативного потенциала получателей социальных услуг, имеющих ограничения жизнедеятельности, в том числе детей-инвалидов",3726,"Стационарная форма социального обслуживания",0,"руб. за услугу",null,349.48,"руб. за услугу",45]
["3.7.4 Обучение навыкам (поддержание навыков) поведения в быту и общественных местах","3.7.4","Обучение навыкам (поддержание навыков) поведения в быту и общественных местах","Услуги в целях повышения коммуникативного потенциала получателей социальных услуг, имеющих ограничения жизнедеятельности, в том числе детей-инвалидов",3727,"Стационарная форма социального обслуживания",0,"руб. за услугу",null,310.64999999999998,"руб. за услугу",40]
["3.7.5 Организация коммуникативного пространства и коммуникативных ситуаций по месту проживания (получения социальных услуг)","3.7.5","Организация коммуникативного пространства и коммуникативных ситуаций по месту проживания (получения социальных услуг)","Услуги в целях повышения коммуникативного потенциала получателей социальных услуг, имеющих ограничения жизнедеятельности, в том числе детей-инвалидов",3729,"Стационарная форма социального обслуживания",0,"руб. за услугу",null,349.48,"руб. за услугу",45]
["3.7.6 Содействие в получении лекарственных препаратов, изделий медицинского назначения, предоставляемых в соответствии с действующим законодательством","3.7.6","Содействие в получении лекарственных препаратов, изделий медицинского назначения, предоставляемых в соответствии с действующим законодательством","Услуги в целях повышения коммуникативного потенциала получателей социальных услуг, имеющих ограничения жизнедеятельности, в том числе детей-инвалидов",3831,"Стационарная форма социального обслуживания",0,"руб. за услугу",null,931.94,"руб. за услугу",60]
["3.7.7 Содействие в организации санаторно-курортного лечения или оздоровительного отдыха, предоставляемого в соответствии с действующим законодательством","3.7.7","Содействие в организации санаторно-курортного лечения или оздоровительного отдыха, предоставляемого в соответствии с действующим законодательством","Услуги в целях повышения коммуникативного потенциала получателей социальных услуг, имеющих ограничения жизнедеятельности, в том числе детей-инвалидов",3832,"Стационарная форма социального обслуживания",0,"руб. за услугу",null,699.9,"руб. за услугу",90]
["3.7.8 Содействие в обеспечении техническими средствами реабилитации, предоставляемыми в соответствии с действующим законодательством либо за счет средств получателя социальных услуг","3.7.8","Содействие в обеспечении техническими средствами реабилитации, предоставляемыми в соответствии с действующим законодательством либо за счет средств получателя социальных услуг","Услуги в целях повышения коммуникативного потенциала получателей социальных услуг, имеющих ограничения жизнедеятельности, в том числе детей-инвалидов",3834,"Стационарная форма социального обслуживания",0,"руб. за услугу",null,473.68,"руб. за услугу",60]
["3.7.9 Консультирование по вопросам самообслуживания и социально-бытовой адаптации","3.7.9","Консультирование по вопросам самообслуживания и социально-бытовой адаптации","Услуги в целях повышения коммуникативного потенциала получателей социальных услуг, имеющих ограничения жизнедеятельности, в том числе детей-инвалидов",3835,"Стационарная форма социального обслуживания",0,"руб. за услугу",null,206.45,"руб. за услугу",20]

{"sheet":"Справочник Категории","index":8,"n_rows":15,"n_cols":2,"rows_kept":15,"cut":false,"hidden":true,"merged":[]}
["Наименование категории","Код"]
["Несовершеннолетние дети",10]
["Лица, пострадавшие в результате чрезвычайных ситуаций, вооруженных межнациональных (межэтнических) конфликтов;",11]
["Родители (законные представители) несовершеннолетних детей, находящихся в социально опасном положении",12]
["Инвалиды ВОВ",13]
["Прочие",20]
["Лица из числа детей-сирот и детей, оставшихся без попечения, в возр. от 18 до 23 лет",25]
["Участник ВОВ",30]
["Инвалид боевых действий",31]
["Житель блокадного Ленинграда",32]
["Житель осажденного Севастополя",33]
["Лицо, работавшее в период ВОВ на объектах ПВО",34]
["Житель осажденного Сталинграда",37]
["Лицо, работавшее в тылу в период 22.06.1941-09.05.1945",35]
["Бывший несовершеннолетний узник концлагерей",36]

{"sheet":"Справочник формы обслуживания","index":9,"n_rows":4,"n_cols":2,"rows_kept":4,"cut":false,"hidden":true,"merged":[]}
["Наименование формы обслуживания","Код"]
["Cоциальное обслуживание на дому",1]
["Полустационарная форма социального обслуживания",2]
["Стационарная форма социального обслуживания",3]

{"sheet":"Места предоставления услуг","index":10,"n_rows":71,"n_cols":4,"rows_kept":71,"cut":false,"hidden":false,"merged":[]}
["Поставщик","Место предоставления социальных услуг","Столбец1","Столбец2"]
["Санкт-Петербургское государственное бюджетное стационарное учреждение социального обслуживания «Специнтернат для инвалидов и граждан пенсионного возраста, освобожденных из мест лишения свободы»",{"$f":"IF(МестаПредоставления[[#This Row],[Поставщик]]='Регистр получателей'!$U$2,МестаПредоставления[[#This Row],[Столбец1]],\"\")","v":""},"196645, г Санкт-Петербург, п. Усть-Ижора, ш. Шлиссельбургское, д. 253,  Литер А",{"$f":"IFERROR(INDEX($B$2:$B$762,MATCH(0,IF(ISBLANK($B$2:$B$762),\"\",COUNTIF($D$1:D1,$B$2:$B$762)),0)),\"\")","v":""}]
["Общество с ограниченной ответственностью «Гармония»",{"$f":"IF(МестаПредоставления[[#This Row],[Поставщик]]='Регистр получателей'!$U$2,МестаПредоставления[[#This Row],[Столбец1]],\"\")","v":"197706, г Санкт-Петербург, г. Сестрорецк, ул. Первого Мая, д. 3, пом. 1Н, литера А"},"197706, г Санкт-Петербург, г. Сестрорецк, ул. Первого Мая, д. 3, пом. 1Н, литера А",{"$f":"IFERROR(INDEX($B$2:$B$762,MATCH(0,IF(ISBLANK($B$2:$B$762),\"\",COUNTIF($D$1:D2,$B$2:$B$762)),0)),\"\")","v":"197706, г Санкт-Петербург, г. Сестрорецк, ул. Первого Мая, д. 3, пом. 1Н, литера А"}]
["Санкт-Петербургская еврейская благотворительная общественная организация инвалидов «Ева»",{"$f":"IF(МестаПредоставления[[#This Row],[Поставщик]]='Регистр получателей'!$U$2,МестаПредоставления[[#This Row],[Столбец1]],\"\")","v":""},"190000, г Санкт-Петербург, наб. Реки Мойки, д. 60,  Литер А, помещение 1-Н",{"$f":"IFERROR(INDEX($B$2:$B$762,MATCH(0,IF(ISBLANK($B$2:$B$762),\"\",COUNTIF($D$1:D3,$B$2:$B$762)),0)),\"\")","v":"195030, г Санкт-Петербург, ш. Революции, д. 112, корп. 3,  Литер А"}]
["Общество с ограниченной ответственностью «Социальный гериатрический центр «Опека Комфорт»",{"$f":"IF(МестаПредоставления[[#This Row],[Поставщик]]='Регистр получателей'!$U$2,МестаПредоставления[[#This Row],[Столбец1]],\"\")","v":""},"197183, г Санкт-Петербург, пр-кт. Приморский, д. 35а,  Литер А",{"$f":"IFERROR(INDEX($B$2:$B$762,MATCH(0,IF(ISBLANK($B$2:$B$762),\"\",COUNTIF($D$1:D4,$B$2:$B$762)),0)),\"\")","v":"195112, г Санкт-Петербург, пр-кт. Новочеркасский, д. 33, корп. 3,  Литер А, пом. 13-н"}]
["Общество с ограниченной ответственностью «Социальный гериатрический центр «Опека Комфорт»",{"$f":"IF(МестаПредоставления[[#This Row],[Поставщик]]='Регистр получателей'!$U$2,МестаПредоставления[[#This Row],[Столбец1]],\"\")","v":""},"195009, г Санкт-Петербург, ул. Комиссара Смирнова, д. 4, корп. 3,  Литер А",{"$f":"IFERROR(INDEX($B$2:$B$762,MATCH(0,IF(ISBLANK($B$2:$B$762),\"\",COUNTIF($D$1:D5,$B$2:$B$762)),0)),\"\")","v":"188820, обл Ленинградская, Выборгский р-н, гп. Рощино, ш. Первомайское, д. 15, корп. 17"}]
["Общество с ограниченной ответственностью «Социальный гериатрический центр «Опека Комфорт»",{"$f":"IF(МестаПредоставления[[#This Row],[Поставщик]]='Регистр получателей'!$U$2,МестаПредоставления[[#This Row],[Столбец1]],\"\")","v":""},"188643, обл Ленинградская, Всеволожский р-н, г. Всеволожск, пр-кт. Достоевского, д. 56",{"$f":"IFERROR(INDEX($B$2:$B$762,MATCH(0,IF(ISBLANK($B$2:$B$762),\"\",COUNTIF($D$1:D6,$B$2:$B$762)),0)),\"\")","v":"188820, обл Ленинградская, Выборгский р-н, гп. Рощино, ш. Первомайское, д. 15, корп. 18"}]
["Общество с ограниченной ответственностью «Социальный гериатрический центр «Опека Комфорт»",{"$f":"IF(МестаПредоставления[[#This Row],[Поставщик]]='Регистр получателей'!$U$2,МестаПредоставления[[#This Row],[Столбец1]],\"\")","v":""},"188643, обл Ленинградская, Всеволожский р-н, г. Всеволожск, пр-кт. Некрасова, д. 2",{"$f":"IFERROR(INDEX($B$2:$B$762,MATCH(0,IF(ISBLANK($B$2:$B$762),\"\",COUNTIF($D$1:D7,$B$2:$B$762)),0)),\"\")","v":"188820, обл Ленинградская, Выборгский р-н, гп. Рощино, ш. Первомайское, д. 15, корп. 14"}]
["Межрегиональная общественная организация социальной поддержки и защиты граждан «Еврейский Благотворительный Центр «Забота - Хэсэд Авраам»",{"$f":"IF(МестаПредоставления[[#This Row],[Поставщик]]='Регистр получателей'!$U$2,МестаПредоставления[[#This Row],[Столбец1]],\"\")","v":""},"197110, г Санкт-Петербург, ул. Большая Разночинная, д. 25,  Литер А",{"$f":"IFERROR(INDEX($B$2:$B$762,MATCH(0,IF(ISBLANK($B$2:$B$762),\"\",COUNTIF($D$1:D8,$B$2:$B$762)),0)),\"\")","v":"197755, г Санкт-Петербург, п. Лисий Нос, ул. Красноармейская, д. 16,  Литер А"}]
["Межрегиональная общественная организация социальной поддержки и защиты граждан «Еврейский Благотворительный Центр «Забота - Хэсэд Авраам»",{"$f":"IF(МестаПредоставления[[#This Row],[Поставщик]]='Регистр получателей'!$U$2,МестаПредоставления[[#This Row],[Столбец1]],\"\")","v":""},"197758, г Санкт-Петербург, п. Песочный, ул. Ленинградская, д. 83, корп. 3,  Строение 1",{"$f":"IFERROR(INDEX($B$2:$B$762,MATCH(0,IF(ISBLANK($B$2:$B$762),\"\",COUNTIF($D$1:D9,$B$2:$B$762)),0)),\"\")","v":""}]
["Межрегиональная общественная организация поддержки семьи, материнства и детства «Врачи Детям»",{"$f":"IF(МестаПредоставления[[#This Row],[Поставщик]]='Регистр получателей'!$U$2,МестаПредоставления[[#This Row],[Столбец1]],\"\")","v":""},"190031, г Санкт-Петербург, наб. Реки Фонтанки, д. 89,  Литер А, пом. 20-Н",{"$f":"IFERROR(INDEX($B$2:$B$762,MATCH(0,IF(ISBLANK($B$2:$B$762),\"\",COUNTIF($D$1:D10,$B$2:$B$762)),0)),\"\")","v":""}]
["Автономная некоммерческая образовательная организация дополнительного профессионального образования «Центр программ и проектов в области развития здравоохранения»",{"$f":"IF(МестаПредоставления[[#This Row],[Поставщик]]='Регистр получателей'!$U$2,МестаПредоставления[[#This Row],[Столбец1]],\"\")","v":""},"195248, г Санкт-Петербург, пр-кт. Энергетиков, д. 19",{"$f":"IFERROR(INDEX($B$2:$B$762,MATCH(0,IF(ISBLANK($B$2:$B$762),\"\",COUNTIF($D$1:D11,$B$2:$B$762)),0)),\"\")","v":""}]
["Учреждение Межрегиональной общественной организации помощи социально незащищенным гражданам «Детский ковчег» - Социальный приют \"Детский Ковчег\"",{"$f":"IF(МестаПредоставления[[#This Row],[Поставщик]]='Регистр получателей'!$U$2,МестаПредоставления[[#This Row],[Столбец1]],\"\")","v":""},"192177, г Санкт-Петербург, ул. Прибрежная, д. 10, корп. 1,  Литер А",{"$f":"IFERROR(INDEX($B$2:$B$762,MATCH(0,IF(ISBLANK($B$2:$B$762),\"\",COUNTIF($D$1:D12,$B$2:$B$762)),0)),\"\")","v":""}]
["Частное социально-реабилитационное учреждение «Детский приют «Жизнь»",{"$f":"IF(МестаПредоставления[[#This Row],[Поставщик]]='Регистр получателей'!$U$2,МестаПредоставления[[#This Row],[Столбец1]],\"\")","v":""},"193318, г Санкт-Петербург, ул. Коллонтай, д. 6, корп. 2, кв. 286-288",{"$f":"IFERROR(INDEX($B$2:$B$762,MATCH(0,IF(ISBLANK($B$2:$B$762),\"\",COUNTIF($D$1:D13,$B$2:$B$762)),0)),\"\")","v":""}]
["Автономная некоммерческая организация социального обслуживания граждан пожилого возраста и инвалидов «Свет»",{"$f":"IF(МестаПредоставления[[#This Row],[Поставщик]]='Регистр получателей'!$U$2,МестаПредоставления[[#This Row],[Столбец1]],\"\")","v":""},"191186, г Санкт-Петербург, пр-кт. Невский, д. 44,  Литер А, пом. 50-Н, офисы 20,19",{"$f":"IFERROR(INDEX($B$2:$B$762,MATCH(0,IF(ISBLANK($B$2:$B$762),\"\",COUNTIF($D$1:D14,$B$2:$B$762)),0)),\"\")","v":""}]
["Общество с ограниченной ответственностью «Агентство ЮСИ»",{"$f":"IF(МестаПредоставления[[#This Row],[Поставщик]]='Регистр получателей'!$U$2,МестаПредоставления[[#This Row],[Столбец1]],\"\")","v":""},"195271, г Санкт-Петербург, пр-кт. Кондратьевский, д. 62, корп. 3",{"$f":"IFERROR(INDEX($B$2:$B$762,MATCH(0,IF(ISBLANK($B$2:$B$762),\"\",COUNTIF($D$1:D15,$B$2:$B$762)),0)),\"\")","v":""}]
["Федеральное государственное бюджетное учреждение здравоохранения «Санкт-Петербургский Дом-пансионат ветеранов науки Российской академии наук»",{"$f":"IF(МестаПредоставления[[#This Row],[Поставщик]]='Регистр получателей'!$U$2,МестаПредоставления[[#This Row],[Столбец1]],\"\")","v":""},"196602, г Санкт-Петербург, г. Пушкин, ш. Павловское, д. 93",{"$f":"IFERROR(INDEX($B$2:$B$762,MATCH(0,IF(ISBLANK($B$2:$B$762),\"\",COUNTIF($D$1:D16,$B$2:$B$762)),0)),\"\")","v":""}]
["Автономная некоммерческая организация «Содружество по противодействию детско-подростковой дезадаптации «Герой»",{"$f":"IF(МестаПредоставления[[#This Row],[Поставщик]]='Регистр получателей'!$U$2,МестаПредоставления[[#This Row],[Столбец1]],\"\")","v":""},"191144, г Санкт-Петербург, ул. 10-я Советская, д. 14, пом. 1-Н",{"$f":"IFERROR(INDEX($B$2:$B$762,MATCH(0,IF(ISBLANK($B$2:$B$762),\"\",COUNTIF($D$1:D17,$B$2:$B$762)),0)),\"\")","v":""}]
["Общество с ограниченной ответственностью «Социальный гериатрический центр «Опека»",{"$f":"IF(МестаПредоставления[[#This Row],[Поставщик]]='Регистр получателей'!$U$2,МестаПредоставления[[#This Row],[Столбец1]],\"\")","v":""},"196643, г Санкт-Петербург, п. Понтонный, ул. Клубная, д. 5,  Литер А",{"$f":"IFERROR(INDEX($B$2:$B$762,MATCH(0,IF(ISBLANK($B$2:$B$762),\"\",COUNTIF($D$1:D18,$B$2:$B$762)),0)),\"\")","v":""}]
["Учреждение религиозного объединения «Епархиальная православная церковная благотворительная больница святой блаженной Ксении Петербургской»",{"$f":"IF(МестаПредоставления[[#This Row],[Поставщик]]='Регистр получателей'!$U$2,МестаПредоставления[[#This Row],[Столбец1]],\"\")","v":""},"191167, г Санкт-Петербург, наб. Обводного канала, д. 19,  Литер И",{"$f":"IFERROR(INDEX($B$2:$B$762,MATCH(0,IF(ISBLANK($B$2:$B$762),\"\",COUNTIF($D$1:D19,$B$2:$B$762)),0)),\"\")","v":""}]
["Санкт-Петербургский благотворительный фонд «Гуманитарное действие»",{"$f":"IF(МестаПредоставления[[#This Row],[Поставщик]]='Регистр получателей'!$U$2,МестаПредоставления[[#This Row],[Столбец1]],\"\")","v":""},"197110, г Санкт-Петербург, ул. Ремесленная, д. 17,  Литер Л",{"$f":"IFERROR(INDEX($B$2:$B$762,MATCH(0,IF(ISBLANK($B$2:$B$762),\"\",COUNTIF($D$1:D20,$B$2:$B$762)),0)),\"\")","v":""}]
["Благотворительный фонд «Центр святителя Василия Великого»",{"$f":"IF(МестаПредоставления[[#This Row],[Поставщик]]='Регистр получателей'!$U$2,МестаПредоставления[[#This Row],[Столбец1]],\"\")","v":""},"199034, г Санкт-Петербург, линия. 16-я В.О., д. 1/33, пом. 12Н",{"$f":"IFERROR(INDEX($B$2:$B$762,MATCH(0,IF(ISBLANK($B$2:$B$762),\"\",COUNTIF($D$1:D21,$B$2:$B$762)),0)),\"\")","v":""}]
["Межрегиональная общественная организация «Ассоциация ветеранов, инвалидов и пенсионеров»",{"$f":"IF(МестаПредоставления[[#This Row],[Поставщик]]='Регистр получателей'!$U$2,МестаПредоставления[[#This Row],[Столбец1]],\"\")","v":""},"192007, г Санкт-Петербург, ул. Тамбовская, д. 63",{"$f":"IFERROR(INDEX($B$2:$B$762,MATCH(0,IF(ISBLANK($B$2:$B$762),\"\",COUNTIF($D$1:D22,$B$2:$B$762)),0)),\"\")","v":""}]
["Межрегиональная общественная организация «Ассоциация ветеранов, инвалидов и пенсионеров»",{"$f":"IF(МестаПредоставления[[#This Row],[Поставщик]]='Регистр получателей'!$U$2,МестаПредоставления[[#This Row],[Столбец1]],\"\")","v":""},"190005, г Санкт-Петербург, ул. 3-я Красноармейская, д. 10,  Литер А, пом. 6-Н",{"$f":"IFERROR(INDEX($B$2:$B$762,MATCH(0,IF(ISBLANK($B$2:$B$762),\"\",COUNTIF($D$1:D23,$B$2:$B$762)),0)),\"\")","v":""}]
["Межрегиональная общественная организация «Ассоциация ветеранов, инвалидов и пенсионеров»",{"$f":"IF(МестаПредоставления[[#This Row],[Поставщик]]='Регистр получателей'!$U$2,МестаПредоставления[[#This Row],[Столбец1]],\"\")","v":""},"190121, г Санкт-Петербург, пр-кт. Римского-Корсакова, д. 75,  Литер А, пом. 1-Н",{"$f":"IFERROR(INDEX($B$2:$B$762,MATCH(0,IF(ISBLANK($B$2:$B$762),\"\",COUNTIF($D$1:D24,$B$2:$B$762)),0)),\"\")","v":""}]
["Автономная некоммерческая организация социального обслуживания «НОВЫЕ ПЕРСПЕКТИВЫ»",{"$f":"IF(МестаПредоставления[[#This Row],[Поставщик]]='Регистр получателей'!$U$2,МестаПредоставления[[#This Row],[Столбец1]],\"\")","v":""},"190013, г Санкт-Петербург, ул. Серпуховская, д. 5,  Литер А, кв.6",{"$f":"IFERROR(INDEX($B$2:$B$762,MATCH(0,IF(ISBLANK($B$2:$B$762),\"\",COUNTIF($D$1:D25,$B$2:$B$762)),0)),\"\")","v":""}]
["Санкт-Петербургская благотворительная общественная организация «Перспективы»",{"$f":"IF(МестаПредоставления[[#This Row],[Поставщик]]='Регистр получателей'!$U$2,МестаПредоставления[[#This Row],[Столбец1]],\"\")","v":""},"195220, г Санкт-Петербург, пр-кт. Непокорённых, д. 16, корп. 1,  Литер Е",{"$f":"IFERROR(INDEX($B$2:$B$762,MATCH(0,IF(ISBLANK($B$2:$B$762),\"\",COUNTIF($D$1:D26,$B$2:$B$762)),0)),\"\")","v":""}]
["Общество с ограниченной ответственностью «Леге»",{"$f":"IF(МестаПредоставления[[#This Row],[Поставщик]]='Регистр получателей'!$U$2,МестаПредоставления[[#This Row],[Столбец1]],\"\")","v":""},"197101, г Санкт-Петербург, ул. Рентгена, д. 7,  Литер А, помещение 1-Н, Ч.П. 248",{"$f":"IFERROR(INDEX($B$2:$B$762,MATCH(0,IF(ISBLANK($B$2:$B$762),\"\",COUNTIF($D$1:D27,$B$2:$B$762)),0)),\"\")","v":""}]
["Санкт-Петербургская ассоциация общественных объединений родителей детей-инвалидов «ГАООРДИ»",{"$f":"IF(МестаПредоставления[[#This Row],[Поставщик]]='Регистр получателей'!$U$2,МестаПредоставления[[#This Row],[Столбец1]],\"\")","v":""},"192174, г Санкт-Петербург, пр-кт. Обуховской Обороны, д. 199, пом.2Н лит.А",{"$f":"IFERROR(INDEX($B$2:$B$762,MATCH(0,IF(ISBLANK($B$2:$B$762),\"\",COUNTIF($D$1:D28,$B$2:$B$762)),0)),\"\")","v":""}]
["Общество с ограниченной ответственностью «Система Забота»",{"$f":"IF(МестаПредоставления[[#This Row],[Поставщик]]='Регистр получателей'!$U$2,МестаПредоставления[[#This Row],[Столбец1]],\"\")","v":""},"197101, г Санкт-Петербург, ул. Рентгена, д. 7",{"$f":"IFERROR(INDEX($B$2:$B$762,MATCH(0,IF(ISBLANK($B$2:$B$762),\"\",COUNTIF($D$1:D29,$B$2:$B$762)),0)),\"\")","v":""}]
["Общество с ограниченной ответственностью «Титан Сервис»",{"$f":"IF(МестаПредоставления[[#This Row],[Поставщик]]='Регистр получателей'!$U$2,МестаПредоставления[[#This Row],[Столбец1]],\"\")","v":""},"195276, г Санкт-Петербург, вн.тер.г. Муниципальный округ Прометей, ул. Демьяна Бедного, д. 21,  Литер А, помещ.6-Н,помещ.6",{"$f":"IFERROR(INDEX($B$2:$B$762,MATCH(0,IF(ISBLANK($B$2:$B$762),\"\",COUNTIF($D$1:D30,$B$2:$B$762)),0)),\"\")","v":""}]
["Московская Местная Организация Санкт-Петербургская Городская Организация Общероссийская Общественная Организация «Всероссийское Общество Инвалидов»",{"$f":"IF(МестаПредоставления[[#This Row],[Поставщик]]='Регистр получателей'!$U$2,МестаПредоставления[[#This Row],[Столбец1]],\"\")","v":""},"196158, г Санкт-Петербург, ш. Московское, д. 16, корп. 1",{"$f":"IFERROR(INDEX($B$2:$B$762,MATCH(0,IF(ISBLANK($B$2:$B$762),\"\",COUNTIF($D$1:D31,$B$2:$B$762)),0)),\"\")","v":""}]
["Автономная некоммерческая организация «Центр развития инновационных социальных услуг «Партнерство каждому ребенку»",{"$f":"IF(МестаПредоставления[[#This Row],[Поставщик]]='Регистр получателей'!$U$2,МестаПредоставления[[#This Row],[Столбец1]],\"\")","v":""},"197183, г Санкт-Петербург, пр-кт. Приморский, д. 33,  Литер А, пом. 1-Н",{"$f":"IFERROR(INDEX($B$2:$B$762,MATCH(0,IF(ISBLANK($B$2:$B$762),\"\",COUNTIF($D$1:D32,$B$2:$B$762)),0)),\"\")","v":""}]
["Центральная местная организация Санкт-Петербургская городская организация общероссийская общественная организация «Всероссийское общество инвалидов»",{"$f":"IF(МестаПредоставления[[#This Row],[Поставщик]]='Регистр получателей'!$U$2,МестаПредоставления[[#This Row],[Столбец1]],\"\")","v":""},"191123, г Санкт-Петербург, ул. Чайковского, д. 81",{"$f":"IFERROR(INDEX($B$2:$B$762,MATCH(0,IF(ISBLANK($B$2:$B$762),\"\",COUNTIF($D$1:D33,$B$2:$B$762)),0)),\"\")","v":""}]
["Региональная Санкт-Петербургская общественная организация инвалидов по социальной защите и содействию в трудоустройстве «Верба»",{"$f":"IF(МестаПредоставления[[#This Row],[Поставщик]]='Регистр получателей'!$U$2,МестаПредоставления[[#This Row],[Столбец1]],\"\")","v":""},"196066, г Санкт-Петербург, ул. Типанова, д. 4,  Литер А",{"$f":"IFERROR(INDEX($B$2:$B$762,MATCH(0,IF(ISBLANK($B$2:$B$762),\"\",COUNTIF($D$1:D34,$B$2:$B$762)),0)),\"\")","v":""}]
["Региональный общественный благотворительный Фонд социальной реабилитации и помощи инвалидам «КЕДР»",{"$f":"IF(МестаПредоставления[[#This Row],[Поставщик]]='Регистр получателей'!$U$2,МестаПредоставления[[#This Row],[Столбец1]],\"\")","v":""},"191167, г Санкт-Петербург, наб. Обводного канала, д. 5",{"$f":"IFERROR(INDEX($B$2:$B$762,MATCH(0,IF(ISBLANK($B$2:$B$762),\"\",COUNTIF($D$1:D35,$B$2:$B$762)),0)),\"\")","v":""}]
["Общество с ограниченной ответственностью «Эглин»",{"$f":"IF(МестаПредоставления[[#This Row],[Поставщик]]='Регистр получателей'!$U$2,МестаПредоставления[[#This Row],[Столбец1]],\"\")","v":""},"198152, г Санкт-Петербург, ул. Новостроек, д. 3,  Литер А, Помещение 6-Н",{"$f":"IFERROR(INDEX($B$2:$B$762,MATCH(0,IF(ISBLANK($B$2:$B$762),\"\",COUNTIF($D$1:D36,$B$2:$B$762)),0)),\"\")","v":""}]
["Региональная общественная организация «Центр реабилитации инвалидов «ОРТОЛЮКС»",{"$f":"IF(МестаПредоставления[[#This Row],[Поставщик]]='Регистр получателей'!$U$2,МестаПредоставления[[#This Row],[Столбец1]],\"\")","v":""},"197755, г Санкт-Петербург, п. Лисий Нос, ул. Железнодорожная, д. 6",{"$f":"IFERROR(INDEX($B$2:$B$762,MATCH(0,IF(ISBLANK($B$2:$B$762),\"\",COUNTIF($D$1:D37,$B$2:$B$762)),0)),\"\")","v":""}]
["Санкт-Петербургская общественная организация по гармоничному развитию семьи и личности «Центр «РАДОМИРА»",{"$f":"IF(МестаПредоставления[[#This Row],[Поставщик]]='Регистр получателей'!$U$2,МестаПредоставления[[#This Row],[Столбец1]],\"\")","v":""},"191119, г Санкт-Петербург, ул. Социалистическая, д. 16,  Литер А, помещение 14Н",{"$f":"IFERROR(INDEX($B$2:$B$762,MATCH(0,IF(ISBLANK($B$2:$B$762),\"\",COUNTIF($D$1:D38,$B$2:$B$762)),0)),\"\")","v":""}]
["Автономная некоммерческая организация «Санкт-Петербургский Центр социальной адаптации, реабилитации и абилитации»",{"$f":"IF(МестаПредоставления[[#This Row],[Поставщик]]='Регистр получателей'!$U$2,МестаПредоставления[[#This Row],[Столбец1]],\"\")","v":""},"197110, г Санкт-Петербург, ул. Большая Зеленина, д. 30,  Литер А",{"$f":"IFERROR(INDEX($B$2:$B$762,MATCH(0,IF(ISBLANK($B$2:$B$762),\"\",COUNTIF($D$1:D39,$B$2:$B$762)),0)),\"\")","v":""}]
["Автономная некоммерческая организация «Санкт-Петербургский Центр социальной адаптации, реабилитации и абилитации»",{"$f":"IF(МестаПредоставления[[#This Row],[Поставщик]]='Регистр получателей'!$U$2,МестаПредоставления[[#This Row],[Столбец1]],\"\")","v":""},"198328, г Санкт-Петербург, ул. Маршала Захарова, д. 16, корп. 5,  Литер А",{"$f":"IFERROR(INDEX($B$2:$B$762,MATCH(0,IF(ISBLANK($B$2:$B$762),\"\",COUNTIF($D$1:D40,$B$2:$B$762)),0)),\"\")","v":""}]
["Частное учреждение социального обслуживания «Детская деревня - SOS Пушкин»",{"$f":"IF(МестаПредоставления[[#This Row],[Поставщик]]='Регистр получателей'!$U$2,МестаПредоставления[[#This Row],[Столбец1]],\"\")","v":""},"196620, г Санкт-Петербург, г. Пушкин, ул. Железнодорожная (Гуммолосары), д. 34",{"$f":"IFERROR(INDEX($B$2:$B$762,MATCH(0,IF(ISBLANK($B$2:$B$762),\"\",COUNTIF($D$1:D41,$B$2:$B$762)),0)),\"\")","v":""}]
["Санкт-Петербургская ассоциация общественных объединений родителей детей-инвалидов «ГАООРДИ»",{"$f":"IF(МестаПредоставления[[#This Row],[Поставщик]]='Регистр получателей'!$U$2,МестаПредоставления[[#This Row],[Столбец1]],\"\")","v":""},"195299, г Санкт-Петербург, ул. Корнея Чуковского, д. 3, корп. 2,  Строение 1, пом.14-Н,15-Н",{"$f":"IFERROR(INDEX($B$2:$B$762,MATCH(0,IF(ISBLANK($B$2:$B$762),\"\",COUNTIF($D$1:D42,$B$2:$B$762)),0)),\"\")","v":""}]
["Санкт-Петербургская ассоциация общественных объединений родителей детей-инвалидов «ГАООРДИ»",{"$f":"IF(МестаПредоставления[[#This Row],[Поставщик]]='Регистр получателей'!$U$2,МестаПредоставления[[#This Row],[Столбец1]],\"\")","v":""},"195299, г Санкт-Петербург, ул. Корнея Чуковского, д. 5, корп. 4,  Строение 1",{"$f":"IFERROR(INDEX($B$2:$B$762,MATCH(0,IF(ISBLANK($B$2:$B$762),\"\",COUNTIF($D$1:D43,$B$2:$B$762)),0)),\"\")","v":""}]
["Санкт-Петербургская ассоциация общественных объединений родителей детей-инвалидов «ГАООРДИ»",{"$f":"IF(МестаПредоставления[[#This Row],[Поставщик]]='Регистр получателей'!$U$2,МестаПредоставления[[#This Row],[Столбец1]],\"\")","v":""},"195299, г Санкт-Петербург, дор. Муринская, д. 51, корп. 2,  Строение 1",{"$f":"IFERROR(INDEX($B$2:$B$762,MATCH(0,IF(ISBLANK($B$2:$B$762),\"\",COUNTIF($D$1:D44,$B$2:$B$762)),0)),\"\")","v":""}]
["Автономная некоммерческая организация «Санкт-Петербургский Центр социальной адаптации, реабилитации и абилитации»",{"$f":"IF(МестаПредоставления[[#This Row],[Поставщик]]='Регистр получателей'!$U$2,МестаПредоставления[[#This Row],[Столбец1]],\"\")","v":""},"197110, г Санкт-Петербург, ул. Глухая Зеленина, д. 6,  Литер А, пом. 26н",{"$f":"IFERROR(INDEX($B$2:$B$762,MATCH(0,IF(ISBLANK($B$2:$B$762),\"\",COUNTIF($D$1:D45,$B$2:$B$762)),0)),\"\")","v":""}]
["Общество с ограниченной ответственностью «СОЦИАЛЬНАЯ СЛУЖБА ПОМОЩНИК»",{"$f":"IF(МестаПредоставления[[#This Row],[Поставщик]]='Регистр получателей'!$U$2,МестаПредоставления[[#This Row],[Столбец1]],\"\")","v":""},"196066, г Санкт-Петербург, пр-кт. Московский, д. 212,  Литер А, офис 8006",{"$f":"IFERROR(INDEX($B$2:$B$762,MATCH(0,IF(ISBLANK($B$2:$B$762),\"\",COUNTIF($D$1:D46,$B$2:$B$762)),0)),\"\")","v":""}]
["Общество с ограниченной ответственностью «Социальный гериатрический центр «Опека»",{"$f":"IF(МестаПредоставления[[#This Row],[Поставщик]]='Регистр получателей'!$U$2,МестаПредоставления[[#This Row],[Столбец1]],\"\")","v":""},"190020, г Санкт-Петербург, пр-кт. Рижский, д. 41,  Литер Б",{"$f":"IFERROR(INDEX($B$2:$B$762,MATCH(0,IF(ISBLANK($B$2:$B$762),\"\",COUNTIF($D$1:D47,$B$2:$B$762)),0)),\"\")","v":""}]
["Общество с ограниченной ответственностью «Социальный гериатрический центр «Опека»",{"$f":"IF(МестаПредоставления[[#This Row],[Поставщик]]='Регистр получателей'!$U$2,МестаПредоставления[[#This Row],[Столбец1]],\"\")","v":""},"192174, г Санкт-Петербург, ул. Леснозаводская, д. 3,  Литер Б",{"$f":"IFERROR(INDEX($B$2:$B$762,MATCH(0,IF(ISBLANK($B$2:$B$762),\"\",COUNTIF($D$1:D48,$B$2:$B$762)),0)),\"\")","v":""}]
["Общество с ограниченной ответственностью «Гармония»",{"$f":"IF(МестаПредоставления[[#This Row],[Поставщик]]='Регистр получателей'!$U$2,МестаПредоставления[[#This Row],[Столбец1]],\"\")","v":"195030, г Санкт-Петербург, ш. Революции, д. 112, корп. 3,  Литер А"},"195030, г Санкт-Петербург, ш. Революции, д. 112, корп. 3,  Литер А",{"$f":"IFERROR(INDEX($B$2:$B$762,MATCH(0,IF(ISBLANK($B$2:$B$762),\"\",COUNTIF($D$1:D49,$B$2:$B$762)),0)),\"\")","v":""}]
["Санкт-Петербургский благотворительный фонд «Гуманитарное действие»",{"$f":"IF(МестаПредоставления[[#This Row],[Поставщик]]='Регистр получателей'!$U$2,МестаПредоставления[[#This Row],[Столбец1]],\"\")","v":""},"197022, г Санкт-Петербург, пр-кт. Каменноостровский, д. 63,  Литер А",{"$f":"IFERROR(INDEX($B$2:$B$762,MATCH(0,IF(ISBLANK($B$2:$B$762),\"\",COUNTIF($D$1:D50,$B$2:$B$762)),0)),\"\")","v":""}]
["Общество с ограниченной ответственностью «Гармония»",{"$f":"IF(МестаПредоставления[[#This Row],[Поставщик]]='Регистр получателей'!$U$2,МестаПредоставления[[#This Row],[Столбец1]],\"\")","v":"195112, г Санкт-Петербург, пр-кт. Новочеркасский, д. 33, корп. 3,  Литер А, пом. 13-н"},"195112, г Санкт-Петербург, пр-кт. Новочеркасский, д. 33, корп. 3,  Литер А, пом. 13-н",{"$f":"IFERROR(INDEX($B$2:$B$762,MATCH(0,IF(ISBLANK($B$2:$B$762),\"\",COUNTIF($D$1:D51,$B$2:$B$762)),0)),\"\")","v":""}]
["Общество с ограниченной ответственностью «Наша забота»",{"$f":"IF(МестаПредоставления[[#This Row],[Поставщик]]='Регистр получателей'!$U$2,МестаПредоставления[[#This Row],[Столбец1]],\"\")","v":""},"195197, г Санкт-Петербург, пр-кт. Маршала Блюхера, д. 12,  Литер АЮ",{"$f":"IFERROR(INDEX($B$2:$B$762,MATCH(0,IF(ISBLANK($B$2:$B$762),\"\",COUNTIF($D$1:D52,$B$2:$B$762)),0)),\"\")","v":""}]
["Учреждение Межрегиональной общественной организации помощи социально незащищенным гражданам «Детский ковчег» - Социальный приют \"Детский Ковчег\"",{"$f":"IF(МестаПредоставления[[#This Row],[Поставщик]]='Регистр получателей'!$U$2,МестаПредоставления[[#This Row],[Столбец1]],\"\")","v":""},"192177, г Санкт-Петербург, ул. Прибрежная, д. 10, корп. 2,  Литер Б",{"$f":"IFERROR(INDEX($B$2:$B$762,MATCH(0,IF(ISBLANK($B$2:$B$762),\"\",COUNTIF($D$1:D53,$B$2:$B$762)),0)),\"\")","v":""}]
["Автономная некоммерческая организация «Содружество по противодействию детско-подростковой дезадаптации «Герой»",{"$f":"IF(МестаПредоставления[[#This Row],[Поставщик]]='Регистр получателей'!$U$2,МестаПредоставления[[#This Row],[Столбец1]],\"\")","v":""},"191144, г Санкт-Петербург, ул. 7-я Советская, д. 29,  Литер А, пом. 3-Н",{"$f":"IFERROR(INDEX($B$2:$B$762,MATCH(0,IF(ISBLANK($B$2:$B$762),\"\",COUNTIF($D$1:D54,$B$2:$B$762)),0)),\"\")","v":""}]
["Общество с ограниченной ответственностью «АТГ»",{"$f":"IF(МестаПредоставления[[#This Row],[Поставщик]]='Регистр получателей'!$U$2,МестаПредоставления[[#This Row],[Столбец1]],\"\")","v":""},"197761, г Санкт-Петербург, г. Кронштадт, дор. Южная Кронштадтская, д. 12, корп. 3",{"$f":"IFERROR(INDEX($B$2:$B$762,MATCH(0,IF(ISBLANK($B$2:$B$762),\"\",COUNTIF($D$1:D55,$B$2:$B$762)),0)),\"\")","v":""}]
["Благотворительный фонд «Центр святителя Василия Великого»",{"$f":"IF(МестаПредоставления[[#This Row],[Поставщик]]='Регистр получателей'!$U$2,МестаПредоставления[[#This Row],[Столбец1]],\"\")","v":""},"199178, г Санкт-Петербург, линия. 12-я В.О., д. 55/20, 1Н",{"$f":"IFERROR(INDEX($B$2:$B$762,MATCH(0,IF(ISBLANK($B$2:$B$762),\"\",COUNTIF($D$1:D56,$B$2:$B$762)),0)),\"\")","v":""}]
["Общество с ограниченной ответственностью «Социальный гериатрический центр «Опека Комфорт»",{"$f":"IF(МестаПредоставления[[#This Row],[Поставщик]]='Регистр получателей'!$U$2,МестаПредоставления[[#This Row],[Столбец1]],\"\")","v":""},"194356, г Санкт-Петербург, ш. Выборгское, д. 158,  Строение 1, пом. 31",{"$f":"IFERROR(INDEX($B$2:$B$762,MATCH(0,IF(ISBLANK($B$2:$B$762),\"\",COUNTIF($D$1:D57,$B$2:$B$762)),0)),\"\")","v":""}]
["Общество с ограниченной ответственностью «Социальный гериатрический центр «Опека»",{"$f":"IF(МестаПредоставления[[#This Row],[Поставщик]]='Регистр получателей'!$U$2,МестаПредоставления[[#This Row],[Столбец1]],\"\")","v":""},"192007, г Санкт-Петербург, пр-кт. Лиговский, д. 140,  Литер А",{"$f":"IFERROR(INDEX($B$2:$B$762,MATCH(0,IF(ISBLANK($B$2:$B$762),\"\",COUNTIF($D$1:D58,$B$2:$B$762)),0)),\"\")","v":""}]
["Общество с ограниченной ответственностью «Гармония»",{"$f":"IF(МестаПредоставления[[#This Row],[Поставщик]]='Регистр получателей'!$U$2,МестаПредоставления[[#This Row],[Столбец1]],\"\")","v":"188820, обл Ленинградская, Выборгский р-н, гп. Рощино, ш. Первомайское, д. 15, корп. 17"},"188820, обл Ленинградская, Выборгский р-н, гп. Рощино, ш. Первомайское, д. 15, корп. 17",{"$f":"IFERROR(INDEX($B$2:$B$762,MATCH(0,IF(ISBLANK($B$2:$B$762),\"\",COUNTIF($D$1:D59,$B$2:$B$762)),0)),\"\")","v":""}]
["Межрегиональная общественная организация социальной поддержки и защиты граждан «Еврейский Благотворительный Центр «Забота - Хэсэд Авраам»",{"$f":"IF(МестаПредоставления[[#This Row],[Поставщик]]='Регистр получателей'!$U$2,МестаПредоставления[[#This Row],[Столбец1]],\"\")","v":""},"197110, г Санкт-Петербург, ул. Большая Разночинная, д. 32,  Литер Л, офисы 412,417,421 (часть 28,31,32,35 пом.22-Н, часть 41 пом. 22-Н,часть 11 пом. 24-Н)",{"$f":"IFERROR(INDEX($B$2:$B$762,MATCH(0,IF(ISBLANK($B$2:$B$762),\"\",COUNTIF($D$1:D60,$B$2:$B$762)),0)),\"\")","v":""}]
["Общество с ограниченной ответственностью «Гармония»",{"$f":"IF(МестаПредоставления[[#This Row],[Поставщик]]='Регистр получателей'!$U$2,МестаПредоставления[[#This Row],[Столбец1]],\"\")","v":"188820, обл Ленинградская, Выборгский р-н, гп. Рощино, ш. Первомайское, д. 15, корп. 18"},"188820, обл Ленинградская, Выборгский р-н, гп. Рощино, ш. Первомайское, д. 15, корп. 18",{"$f":"IFERROR(INDEX($B$2:$B$762,MATCH(0,IF(ISBLANK($B$2:$B$762),\"\",COUNTIF($D$1:D61,$B$2:$B$762)),0)),\"\")","v":""}]
["Общество с ограниченной ответственностью «Гармония»",{"$f":"IF(МестаПредоставления[[#This Row],[Поставщик]]='Регистр получателей'!$U$2,МестаПредоставления[[#This Row],[Столбец1]],\"\")","v":"188820, обл Ленинградская, Выборгский р-н, гп. Рощино, ш. Первомайское, д. 15, корп. 14"},"188820, обл Ленинградская, Выборгский р-н, гп. Рощино, ш. Первомайское, д. 15, корп. 14",{"$f":"IFERROR(INDEX($B$2:$B$762,MATCH(0,IF(ISBLANK($B$2:$B$762),\"\",COUNTIF($D$1:D62,$B$2:$B$762)),0)),\"\")","v":""}]
["Санкт-Петербургское региональное отделение Общероссийской общественной организации «Российский Красный Крест»",{"$f":"IF(МестаПредоставления[[#This Row],[Поставщик]]='Регистр получателей'!$U$2,МестаПредоставления[[#This Row],[Столбец1]],\"\")","v":""},"191186, г Санкт-Петербург, ул. Миллионная, д. 11",{"$f":"IFERROR(INDEX($B$2:$B$762,MATCH(0,IF(ISBLANK($B$2:$B$762),\"\",COUNTIF($D$1:D63,$B$2:$B$762)),0)),\"\")","v":""}]
["Санкт-Петербургская еврейская благотворительная общественная организация инвалидов «Ева»",{"$f":"IF(МестаПредоставления[[#This Row],[Поставщик]]='Регистр получателей'!$U$2,МестаПредоставления[[#This Row],[Столбец1]],\"\")","v":""},"190031, г Санкт-Петербург, наб. Реки Мойки, д. 58,  Литер А, помещение 12-Н, № 1, 2, 3",{"$f":"IFERROR(INDEX($B$2:$B$762,MATCH(0,IF(ISBLANK($B$2:$B$762),\"\",COUNTIF($D$1:D64,$B$2:$B$762)),0)),\"\")","v":""}]
["Общество с ограниченной ответственностью «Агентство ЮСИ»",{"$f":"IF(МестаПредоставления[[#This Row],[Поставщик]]='Регистр получателей'!$U$2,МестаПредоставления[[#This Row],[Столбец1]],\"\")","v":""},"195112, г Санкт-Петербург, ул. Республиканская, д. 24, корп. 1,  Строение 1, 14-н",{"$f":"IFERROR(INDEX($B$2:$B$762,MATCH(0,IF(ISBLANK($B$2:$B$762),\"\",COUNTIF($D$1:D65,$B$2:$B$762)),0)),\"\")","v":""}]
["Общество с ограниченной ответственностью «Наша забота»",{"$f":"IF(МестаПредоставления[[#This Row],[Поставщик]]='Регистр получателей'!$U$2,МестаПредоставления[[#This Row],[Столбец1]],\"\")","v":""},"195272, г Санкт-Петербург, ул. Богословская, д. 13,  Строение 1",{"$f":"IFERROR(INDEX($B$2:$B$762,MATCH(0,IF(ISBLANK($B$2:$B$762),\"\",COUNTIF($D$1:D66,$B$2:$B$762)),0)),\"\")","v":""}]
["Общество с ограниченной ответственностью «Азимут»",{"$f":"IF(МестаПредоставления[[#This Row],[Поставщик]]='Регистр получателей'!$U$2,МестаПредоставления[[#This Row],[Столбец1]],\"\")","v":""},"195112, г Санкт-Петербург, пр-кт. Новочеркасский, д. 33, корп. 2,  Литер А, помещение 22Н, 23Н",{"$f":"IFERROR(INDEX($B$2:$B$762,MATCH(0,IF(ISBLANK($B$2:$B$762),\"\",COUNTIF($D$1:D67,$B$2:$B$762)),0)),\"\")","v":""}]
["Общество с ограниченной ответственностью «Гармония»",{"$f":"IF(МестаПредоставления[[#This Row],[Поставщик]]='Регистр получателей'!$U$2,МестаПредоставления[[#This Row],[Столбец1]],\"\")","v":"197755, г Санкт-Петербург, п. Лисий Нос, ул. Красноармейская, д. 16,  Литер А"},"197755, г Санкт-Петербург, п. Лисий Нос, ул. Красноармейская, д. 16,  Литер А",{"$f":"IFERROR(INDEX($B$2:$B$762,MATCH(0,IF(ISBLANK($B$2:$B$762),\"\",COUNTIF($D$1:D68,$B$2:$B$762)),0)),\"\")","v":""}]
["Санкт-Петербургская ассоциация общественных объединений родителей детей-инвалидов «ГАООРДИ»",{"$f":"IF(МестаПредоставления[[#This Row],[Поставщик]]='Регистр получателей'!$U$2,МестаПредоставления[[#This Row],[Столбец1]],\"\")","v":""},"195273, г Санкт-Петербург, пр-кт. Васнецовский, д. 18, корп. 2,  Строение 1",{"$f":"IFERROR(INDEX($B$2:$B$762,MATCH(0,IF(ISBLANK($B$2:$B$762),\"\",COUNTIF($D$1:D69,$B$2:$B$762)),0)),\"\")","v":""}]
["Автономная некоммерческая организация социального обслуживания «НОВЫЕ ПЕРСПЕКТИВЫ»",{"$f":"IF(МестаПредоставления[[#This Row],[Поставщик]]='Регистр получателей'!$U$2,МестаПредоставления[[#This Row],[Столбец1]],\"\")","v":""},"192102, г Санкт-Петербург, пр-кт. Волковский, д. 32,  Литер А, пои. 1-Н помещение № 145",{"$f":"IFERROR(INDEX($B$2:$B$762,MATCH(0,IF(ISBLANK($B$2:$B$762),\"\",COUNTIF($D$1:D70,$B$2:$B$762)),0)),\"\")","v":""}]

{"sheet":"Размер субсидии","index":11,"n_rows":18,"n_cols":7,"rows_kept":18,"cut":false,"hidden":false,"merged":[[1,0,1,6],[6,0,6,6],[14,1,14,2],[3,1,4,1],[3,0,4,0],[3,2,4,2],[3,3,4,3],[3,4,4,4],[3,6,4,6],[11,1,11,3],[13,1,13,2],[3,5,4,5]]}
[]
["Расчет размера ежемесячной части субсидии за отчетный месяц в разрезе форм социального обслуживания"]
[]
["Количество граждан, находящихся на обслуживании у поставщика социальных услуг в отчетном месяце, имеющих право на социальное обслуживание на основании Федерального закона \"Об основах социального обслуживания граждан в Российской Федерации\", индивидуальных программ предоставления социальных услуг, чел.","Подтвержденная сумма затрат на предоставленные социальные услуги, руб.","Размер платы получателей социальных услуг поставщику социальных услуг за предоставленные в течение расчетного периода, руб.","Стоимость социальных услуг, предоставленных поставщиком социальных услуг в отчетном месяце в соответствии с подтвержденной суммой произведенных затрат, руб.\n(гр. 4 = гр. 2 – гр. 3)","Стоимость социальных услуг, предоставленных поставщиком социальных услуг в отчетном месяце в соответствии с подушевыми нормативами, руб.","Стоимость социальных услуг, предоставленных поставщиком социальных услуг в отчетном месяце в соответствии с подушевыми нормативами, руб. (гр. 6 = гр. 5 – гр. 3)","Размер ежемесячной части субсидии за отчетный месяц, руб."]
[]
[1,2,3,4,5,6,7]
[{"$f":"IF('Регистр получателей'!Z2='Справочник формы обслуживания'!A2,\"в форме социального обслуживания на дому\",IF('Регистр получателей'!Z2='Справочник формы обслуживания'!A3,\"в полустационарной форме социального обслуживания\",IF('Регистр получателей'!Z2='Справочник формы обслуживания'!A4,\"в стационарной форме социального обслуживания\",\"\")))","v":"в форме социального обслуживания на дому"}]
[{"$f":"SUM(IF(ISBLANK(РегистрПолучателей[Служебный_1]),0,1/COUNTIF(РегистрПолучателей[Служебный_1],РегистрПолучателей[Служебный_1])))","v":1},null,{"$f":"SUMIF(РегистрПолучателей[1. Регистрационный номер учетной записи ],\">0\",РегистрПолучателей[11.21 Размер платы клиента за отчетный период по акту, руб.])","v":0},{"$f":"B8-C8","v":0},{"$f":"SUMIF(РегистрПолучателей[1. Регистрационный номер учетной записи ],\">0\",РегистрПолучателей[11.15 Стоимость оказанных услуг по нормативу, руб.])","v":0},{"$f":"E8-C8","v":0},{"$f":"MIN(D8,E8)","v":0}]
[]
[]
["Руководитель_______________________________________________________"]
[null," (Наименование поставщика социальных услуг)"]
[]
["____________/ ","_________________________"]
["(Подпись)","(Расшифровка подписи)"]
[]
[]
[" М.П. (При ее наличии)"]

{"sheet":"Достижение результата","index":12,"n_rows":9,"n_cols":10,"rows_kept":9,"cut":false,"hidden":true,"merged":[[1,0,1,9],[3,0,5,0],[3,1,5,1],[3,2,5,2],[3,3,3,6],[3,7,4,8],[3,9,5,9],[4,3,4,4],[4,5,4,6]]}
[]
["ОТЧЕТ\nо достижении результата предоставления субсидий и показателей, необходимых для достижения результата предоставления субсидий по целевой статье _____________ по соглашению №_____ от __________ 20__ г. за период с \"___\"_________ по \"___\"___________ 20__ г."]
[]
["№ п/п","Наименование показателя, необходимого для достижения результата предоставления субсидий (далее - показатель)","Ед. измерения","Значение показателя",null,null,null,"Степень достижения показателя",null,"Документы о достижении результата предоставления субсидий"]
[null,null,null,"установлено в соглашении на предоставление субсидий",null,"достигнуто фактически"]
[null,null,null,"всего","в отчетном периоде","всего","в отчетном периоде","всего","в отчетном периоде"]
[1,2,3,4,5,6,7,8,9,10]
[1,"Численность получателей социальных услуг, обслуженных поставщиком социальных услуг в соответствии с индивидуальными программами и на основании договоров о предоставлении социальных услуг"]
[2,"Обеспеченность специалистами в соответствии с трудовыми и гражданско-правовыми договорами"]

{"sheet":"Акт","index":13,"n_rows":61,"n_cols":9,"rows_kept":61,"cut":false,"hidden":true,"merged":[[3,0,4,3],[5,0,5,3],[14,0,14,8],[7,3,7,4],[8,0,8,8],[9,0,9,8],[11,0,11,1],[13,0,13,8],[27,0,27,3],[27,4,27,6],[16,0,16,8],[17,0,17,8],[18,0,18,3],[18,4,18,8],[19,4,19,8],[20,0,20,8],[21,1,21,3],[21,4,21,8],[22,1,22,3],[25,0,25,7],[26,0,26,8],[28,0,28,8],[29,0,29,8],[30,0,30,1],[31,0,31,8],[32,0,32,5],[32,6,32,7],[41,0,41,8],[33,0,33,8],[34,0,34,5],[34,6,34,7],[35,0,35,8],[36,0,36,1],[36,2,36,3],[37,0,37,1],[38,0,38,3],[38,5,38,8],[39,0,39,3],[39,5,39,8],[43,0,43,5],[43,6,43,7],[44,0,44,8],[45,2,45,3],[45,4,45,6],[45,7,45,8],[46,2,46,6],[47,0,47,8],[48,0,48,8],[49,0,49,8],[51,0,51,4],[51,5,51,8],[52,0,52,4],[52,5,52,8],[53,0,53,4],[53,5,53,8],[54,0,54,4],[54,5,54,8],[55,0,55,1],[55,2,55,4],[55,5,55,6],[55,7,55,8],[56,0,56,1],[56,2,56,4],[56,5,56,6],[56,7,56,8],[57,0,57,1],[57,2,57,4],[57,5,57,6],[57,7,57,8],[58,0,58,1],[58,2,58,4],[58,5,58,6],[58,7,58,8],[59,0,59,1],[59,2,59,4],[59,5,59,6],[59,7,59,8],[60,0,60,1],[60,2,60,4],[60,5,60,6],[60,7,60,8]]}
["«УТВЕРЖДАЮ»",null,null,null,null,"«УТВЕРЖДАЮ»"]
["Директор",null,null,null,null,"Председатель Комитета по"]
["________________/ФИО./",null,null,null,null,"социальной политике СПб"]
[{"$f":"'Регистр получателей'!U2","v":"Общество с ограниченной ответственностью «Гармония»"},null,null,null,null,"__________________/А.Н. Ржаненков/"]
[]
["(полное наименование поставщика социальных услуг)"]
["«_____» ____________ 2022 г.",null,null,null,null,"«_______» _____________2022 г."]
[null,null,null,"АКТ"]
["о выполненных обязательств по предоставлению гражданам Санкт - Петербурга социальных услуг, предусмотренных индивидуальной программой."]
["Соглашение № _________ от «___» ___________ 2022 г."]
[]
[null,null,"2022 г.",null,null,null,"г. Санкт-Петербург"]
[]
[{"$f":"'Регистр получателей'!U2","v":"Общество с ограниченной ответственностью «Гармония»"}]
["(полное наименование поставщика социальных услуг)"]
["именуемый в дальнейшем \"Поставщик\", в лице _____________________________"]
[]
["(должность, фамилия, имя, отчество (при наличии) уполномоченного представителя Поставщика)"]
["действующего на основании"]
[null,null,null,null,"(основание правомочия: устав, доверенность, др.)"]
["с одной стороны и Комитет по социальной политике Санкт-Петербурга, именуемый в дальнейшем «Комитет», в лице председателя Комитета Ржаненкова Александра Николаевича, действующего на основании Положения с другой стороны, составили настоящий акт о том, что в соответствии с Соглашением № _______ от  «___» __________ 2022 г. в период с 01.___ по ____.___ 2022 года Поставщик предоставил гражданам Санкт-Петербурга, в сответствии с индивидуальными программами предоставления социальных услуг и на основании договоров «о предоставлении социальных услуг», социальные услуги"]
["в",{"$f":"IF('Регистр получателей'!Z2='Справочник формы обслуживания'!A2,\"на дому\",IF('Регистр получателей'!Z2='Справочник формы обслуживания'!A3,\"полустационарной\",IF('Регистр получателей'!Z2='Справочник формы обслуживания'!A4,\"стационарной\",\"\")))","v":"на дому"},null,null,"форме социального обслуживания (далее "]
[null,"(форма обслуживания)"]
["– услуги)."]
["  Услуги предоставлены",null,null,{"$f":"'Размер субсидии'!A8","v":1},null,"гражданам."]
["   Фактическое количество предоставленных услуг в отчетном месяце",null,null,null,null,null,null,null,{"$f":"SUMIF(ПереченьУслуг[1. Регистрационный номер учетной записи],\">0\",ПереченьУслуг[11.26 Кол-во предоставленных услуг за период])","v":0}]
["   Стоимость услуг, предоставленных Поставщиком в отчетном месяце в соответствии"]
["с подушевыми нормативами",null,null,null,{"$f":"'Размер субсидии'!E8","v":0},null,null,"рублей."]
["   Размер платы, уплаченной гражданами Поставщику за предоставленные в течение"]
["отчетного месяца услуги, в соответствии с тарифами на социальные услуги составляет"]
[{"$f":"'Размер субсидии'!C8","v":0},null,"рублей."]
["   Сумма затрат Поставщика на предоставленные услуги в отчетном месяце "]
["документально подтвержденная и принятая к оплате",null,null,null,null,null,{"$f":"'Размер субсидии'!#REF!","v":{"$error":"#REF!"}},null,"руб."]
["   Стоимость услуг, предоставленных Поставщиком в отчетном месяце, в соответствии"]
["с подтвержденной суммой произведенных затрат",null,null,null,null,null,{"$f":"'Размер субсидии'!D8","v":0},null,"руб."]
["   Предоставление услуг обеспечивалось основным персоналом, предоставляющим"]
["услуги в",null,{"$f":"IF('Регистр получателей'!Z2='Справочник формы обслуживания'!A2,\"на дому\",IF('Регистр получателей'!Z2='Справочник формы обслуживания'!A3,\"полустационарной\",IF('Регистр получателей'!Z2='Справочник формы обслуживания'!A4,\"стационарной\",\"\")))","v":"на дому"},null,"форме социального обслуживания, всего"]
["чел., в том числе:"]
["наименование должности",null,null,null,null,"количество чел."]
[]
[]
["   Услуги оказаны качественно в соответствие стандартам предоставления социальных услуг."]
[]
["   Размер предоставляемой ежемесячной субсидии за",null,null,null,null,null,null,null,"2022 г."]
["равен разнице между стоимостью затрат на социальные услуги, оказанные поставщиком в соответствии с индивидуальной программой и суммой, подлежащей оплате гражданином Поставщику за предоставление услуг в отчетном месяце и"]
["составляет ",null,{"$f":"'Размер субсидии'!G8","v":0},null,"(                                                 )",null,null,"рублей."]
[null,null,"(цифрами и прописью)"]
["   Предоставление услуг гражданам Санкт-Петербурга, в соответствии с индивидуальными программами предоставления социальных услуг и на основании договоров «о предоставлении социальных услуг » подтверждено реестром получателей социальных услуг №______ от  ________2022 года, актов о социальных услугах, предоставленных поставщиком социальных услуг, в количестве ______ шт., справки - расчета №_________ от __________ 2022 г. размера ежемесячных субсидий за предоставленные социальные услуги получателям социальных услуг Санкт-Петербурга, отчета о достижении результата предоставления субсидий и показателей, необходимых для достижения результата предоставления субсидий от _________ 2022 года."]
["   Следует перечислению Поставщику за счет средств бюджета Санкт-Петербурга по целевой статье целевой статьи «Субсидии на компенсацию расходов в форме возмещения затрат поставщикам социальных услуг, включенным в реестр поставщиков социальных услуг Санкт-Петербурга, но не участвующим в выполнении государственного задания (заказа), при получении у них гражданином социальных услуг, предусмотренных индивидуальной программой предоставления социальных услуг» __________________________ руб. 00 коп. (сумма прописью). В том числе НДС ______________."]
["   Настоящий акт составлен в двух экземплярах, имеющих одинаковую юридическую силу, по одному для каждой из сторон."]
[]
[{"$f":"'Регистр получателей'!U2","v":"Общество с ограниченной ответственностью «Гармония»"},null,null,null,null,"Комитет по социальной политике Санкт-Петербурга"]
["Работу сдал:",null,null,null,null,"Работу принял:"]
[]
["Комиссия от Организации в составе:",null,null,null,null,"Комиссия от Комитета в составе:"]
[null,null,"(                                        )",null,null,null,null,"(                          )"]
[null,null,"(                                        )",null,null,null,null,"(                          )"]
[null,null,"(                                        )",null,null,null,null,"(                          )"]
[null,null,"(                                        )",null,null,null,null,"(                          )"]
[null,null,"(                                        )",null,null,null,null,"(                          )"]
[null,null,"(                                        )",null,null,null,null,"(                          )"]

{"sheet":"Акт сдачи-приемки","index":14,"n_rows":37,"n_cols":9,"rows_kept":37,"cut":false,"hidden":false,"merged":[[1,3,1,6],[1,0,1,2],[5,3,5,5],[6,0,6,1],[6,2,6,4],[6,6,6,8],[9,6,9,7],[11,0,11,8],[12,0,12,8],[13,0,13,8],[14,2,14,4],[14,5,14,8],[15,0,15,8],[16,0,16,8],[18,0,18,8],[20,5,20,6],[21,5,21,6],[20,7,20,8],[21,7,21,8],[23,0,23,8],[20,0,20,2],[21,0,21,2],[20,3,20,4],[21,3,21,4],[25,0,25,8],[26,0,26,6],[26,7,26,8],[27,0,27,8],[28,0,28,6],[28,7,28,8],[31,0,31,2],[31,5,31,7],[33,0,33,1],[33,5,33,6],[34,0,34,1],[34,5,34,6],[34,2,34,3],[34,7,34,8]]}
[]
["Выберите сиделку:",null,null,"Авдюхова Иванна Петровна, 01.02.1950, 123-847-337 33"]
[]
[]
[null,null,null,null,"АКТ"]
[null,null,null,"сдачи-приемки услуг"]
["к договору №",null,null,null,null,"от"]
[]
[]
[null,null,null,null,null,null,null,null,"20__ г."]
[]
[{"$f":"'Регистр получателей'!U2","v":"Общество с ограниченной ответственностью «Гармония»"}]
["именуемая в бальнейшем «Заказчик», в лице"]
[","]
["на основании",null,null,null,null,", с одной стороны и гражданин"]
[{"$f":"VLOOKUP(D2,'Сиделки, Соц. раб'!A1:G2,2,0)","v":{"$error":"#N/A"}}]
["именуемый в дальнейшем «Исполнитель», вместе именуемые «Стороны», составили настоящий акт о нижеследующем."]
[]
["В соответствии с заключенным Договором в период с ______________ г. по ____________ г. Исполнитель оказал следующие услуги:"]
[]
["Наименование услуги",null,null,"Сумма платы за оказанные услуги Исполнителю, руб.",null,"Количество оказанных услуг получателям",null,"Количество часов оказания услуг по технологическому регламенту"]
["Предоставление услуг по организации функционирования патронажной службы",null,null,null,null,{"$f":"VLOOKUP(D2,'Сиделки, Соц. раб'!A1:G2,5,0)","v":{"$error":"#N/A"}},null,{"$f":"VLOOKUP(D2,'Сиделки, Соц. раб'!A1:G2,7,0)","v":{"$error":"#N/A"}}]
[]
["Услуги оказаны полностью и в срок, удовлетворяют условиям Договора и надлежащим образом оформлены. Стороны взаимных претензий друг к другу не имеют."]
[]
["За оказанные услуги Заказчик в соответствии с Договором оплачивает Исполнителю "]
[null,null,null,null,null,null,null,"руб.,"]
["из которых в соответсвии с законодательством РФ Заказчиком удерживается и уплачивается в бюджет РФ НДФЛ в размере 13%, что составляет"]
[null,null,null,null,null,null,null,"руб."]
[]
[]
["Исполнитель:",null,null,null,null,"Заказчик:"]
[]
[]
["(подпись)",null,"(расшифровка подписи)",null,null,"(подпись)",null,"(расшифровка подписи)"]
[]
[null,null,null,null,null,"м.п."]